Workbook

Sheet Min_Tests
A1: Key f_b | B1: Rank | C1: Reason_for_Removal as top ranked unit for new source floor | D1: primary_fuel | E1: ORIS code | F1: Plant Name | G1: physical_state | H1: Unit Number | I1: boiler_id | J1: Unit Type | K1: boiler_type | L1: MWe_capacity | M1: max_heat_input | N1: Unit_heat_rate | O1: Fuel types | P1: fuel | Q1: Sulfur Dioxide - CEMS | R1: Sulfur Dioxide MW - CEMS | S1: Sulfur Dioxide - ERT | T1: Sulfur Dioxide MW - ERT | U1: Sulfur Dioxide - ETTS | V1: Sulfur Dioxide MW - ETTS | W1: Sulfur Dioxide - Part II | X1: Sulfur Dioxide MW - Part II | Y1: Sulfur Dioxide - min | Z1: Sulfur Dioxide MW - min | AA1: control_group_1 | AB1: control_type_1 | AC1: install_date_1 | AD1: control_group_2 | AE1: control_type_2 | AF1: install_date_2 | AG1: control_group_3 | AH1: control_type_3 | AI1: install_date_3 | AJ1: control_group_4 | AK1: control_type_4 | AL1: install_date_4 | AM1: control_group_5 | AN1: control_type_5 | AO1: install_date_5 | AP1: control_group_6 | AQ1: control_type_6 | AR1: install_date_6 | AS1: control_group_7 | AT1: control_type_7 | AU1: install_date_7 | AV1: control_group_8 | AW1: control_type_8 | AX1: install_date_8 | AY1: control_group_9 | AZ1: control_type_9 | BA1: install_date_9 | BB1: control_group_10 | BC1: control_type_10 | BD1: install_date_10 | BE1: control_group_11 | BF1: control_type_11 | BG1: install_date_11 | BH1: control_group_12 | BI1: control_type_12 | BJ1: install_date_12
A2: =E2&"_"&I2 -> 1008_2 | B2: 1 | C2: No run level data submitted. | D2: coal | E2: 1008 | F2: R. Gallagher | G2: IN | H2: 2-2007 | I2: 2 | J2: Conventional Boiler | K2: Wall firing - front firing | L2: 150 | M2: 1460 | N2: 9.733333333 | O2: coal - bituminous | P2: bituminous | W2: 0.003235993032 | X2: 0.03149699885 | Y2: 0.003235993032 | Z2: 0.03149699885 | AA2: PM control | AB2: Fabric Filter, shake and deflate | AC2: 2007-12-01
A3: 861_1 | B3: 2 | C3: No run level data submitted. | D3: coal | E3: 861 | F3: Coffeen | G3: IL | H3: 001 | I3: 1 | J3: Conventional Boiler | K3: Cyclone firing | L3: 360 | M3: 3282 | N3: 9.116666667 | O3: subbituminous | P3: subbituminous | Q3: 0.008466666667 | R3: 0.07718777778 | Y3: 0.008466666667 | Z3: 0.07718777778 | AA3: NOx control | AB3: Selective Catalytic Reduction | AC3: 2003-04-01 | AD3: PM control | AE3: Electrostatic precipitator, cold side, w/ flue gas conditioning | AF3: 1973-01-01 | AG3: SO2 control | AH3: Wet FGD - Unspecified | AI3: 2009-11-01
A4: 2824_10 | B4: 3 | C4: No run level data submitted. | D4: coal | E4: 2824 | F4: Stanton | G4: ND | H4: u10 | I4: 10 | J4: Conventional Boiler | K4: Tangential firing | L4: 60 | M4: 642 | N4: 10.7 | O4: coal - subbituminous | P4: subbituminous | W4: 0.007660119511 | X4: 0.08196327876 | Y4: 0.007660119511 | Z4: 0.08196327876 | AA4: SO2 control | AB4: Dry FGD - Spray Dryer | AC4: 2000-01-01 | AD4: PM control | AE4: Fabric Filter, reverse air | AF4: 2000-01-01
A5: 68029_BLR2 | B5: 4 | C5: No run level data submitted. | D5: coal | E5: 68029 | F5: AES Puerto Rico Cogeneration Facility | G5: PR | H5: Unit_2 | I5: BLR2 | J5: Fluidized bed firing | K5: Fluidized bed firing | L5: 255 | M5: 2461.4 | N5: 9.65254902 | O5: bituminous | P5: bituminous | Q5: 0.00871 | R5: 0.08407370196 | Y5: 0.00871 | Z5: 0.08407370196 | AA5: NOx control | AB5: Selective Noncatalytic Reduction | AD5: SO2 control | AE5: Dry FGD - Spray Dryer | AG5: PM control | AH5: Electrostatic precipitator, cold side, w/o flue gas conditioning
A6: 56068_1 | B6: 5 | C6: Unit began operations February 2010; only 1 test available. Insufficient data to determine rate that is achievable in practice with long-term continuous unit operations. | D6: coal | E6: 56068 | F6: Elm Road Generating Station | G6: WI | H6: ERGS-B1 | I6: 1 | J6: Conventional Boiler | K6: Wall firing - unspecified | L6: 677 | M6: 6515 | N6: 9.623338257 | O6: bituminous | P6: bituminous | U6: 0.009 | V6: 0.08661004431 | Y6: 0.009 | Z6: 0.08661004431 | AA6: NOx control | AB6: Selective Catalytic Reduction | AC6: 2009-10-01 | AD6: PM control | AE6: Fabric Filter, pulse | AF6: 2009-10-01 | AG6: SO2 control | AH6: Wet FGD - Spray Type | AI6: 2009-10-01 | AJ6: Other control | AK6: Wet electrostatic precipitator | AL6: 2009-10-01
A7: 68029_BLR1 | B7: 6 | C7: No run level data submitted. | D7: coal | E7: 68029 | F7: AES Puerto Rico Cogeneration Facility | G7: PR | H7: Unit_1 | I7: BLR1 | J7: Fluidized bed firing | K7: Fluidized bed firing | L7: 255 | M7: 2461.4 | N7: 9.65254902 | O7: bituminous | P7: bituminous | Q7: 0.009 | R7: 0.08687294118 | Y7: 0.009 | Z7: 0.08687294118 | AA7: NOx control | AB7: Selective Noncatalytic Reduction | AD7: SO2 control | AE7: Dry FGD - Spray Dryer | AG7: PM control | AH7: Electrostatic precipitator, cold side, w/o flue gas conditioning
A8: 52071_5A | B8: 7 | D8: coal | E8: 52071 | F8: Sandow Station | G8: TX | H8: 5A | I8: 5A | J8: Fluidized bed firing | K8: Fluidized bed firing | L8: 282.35 | M8: 2960 | N8: 10.48344254 | O8: lignite | P8: lignite | S8: 0.01115532563 | T8: 0.1169462152 | W8: 0.02566666667 | X8: 0.2690750251 | Y8: 0.01115532563 | Z8: 0.1169462152 | AA8: NOx control | AB8: Selective Noncatalytic Reduction | AC8: 2009-08-01 | AD8: Other control | AE8: Activated carbon injection | AF8: 2009-08-01 | AG8: SO2 control | AH8: Dry FGD - Circulating Dry Scrubber | AI8: 2009-08-01 | AJ8: PM control | AK8: Fabric Filter, pulse | AL8: 2009-08-01
A9: 1893_3 | B9: 8 | D9: coal | E9: 1893 | F9: Boswell Energy Center | G9: MN | H9: BEC3 | I9: 3 | J9: Conventional Boiler | K9: Tangential firing | L9: 371.3 | M9: 4115 | N9: 11.08268247 | O9: subbituminous | P9: subbituminous | Q9: 0.01166666667 | R9: 0.1292979621 | Y9: 0.01166666667 | Z9: 0.1292979621 | AA9: NOx control | AB9: Selective Catalytic Reduction | AD9: SO2 control | AE9: Wet FGD - Spray Type | AF9: 2009-01-01 | AG9: Other control | AH9: Activated carbon injection | AJ9: PM control | AK9: Fabric Filter, unspecified | AL9: 2009-01-01
A10: 6016_1 | B10: 9 | D10: coal | E10: 6016 | F10: Duck Creek | G10: IL | H10: 001 | I10: 1 | J10: Conventional Boiler | K10: Wall firing - unspecified | L10: 400 | M10: 4500 | N10: 11.25 | O10: subbituminous | P10: subbituminous | W10: 0.0133 | X10: 0.149625 | Y10: 0.0133 | Z10: 0.149625 | AA10: NOx control | AB10: Selective Catalytic Reduction | AC10: 2003-06-01 | AD10: PM control | AE10: Electrostatic precipitator, cold side, unspecified | AF10: 2009-03-01 | AG10: SO2 control | AH10: Wet FGD - Venturi Type | AI10: 2009-03-01
A11: 641_5 | B11: 10 | D11: coal | E11: 641 | F11: Crist | G11: FL | H11: Unit 5 | I11: 5 | J11: Conventional Boiler | K11: Tangential firing | L11: 82 | M11: 817.83 | N11: 9.973536585 | O11: bituminous | P11: bituminous | Q11: 0.025 | R11: 0.2493384146 | Y11: 0.025 | Z11: 0.2493384146 | AA11: NOx control | AB11: Selective Noncatalytic Reduction | AC11: 2006-04-01 | AD11: PM control | AE11: Electrostatic precipitator, hot side, w/ flue gas conditioning | AF11: 2008-03-01 | AG11: PM control | AH11: Electrostatic precipitator, cold side, w/o flue gas conditioning | AI11: 1976-01-01 | AJ11: SO2 control | AK11: Wet FGD - Spray Type | AL11: 2009-12-01
A12: 641_6 | B12: 11 | D12: coal | E12: 641 | F12: Crist | G12: FL | H12: Unit 6 | I12: 6 | J12: Conventional Boiler | K12: Wall firing - front firing | L12: 320 | M12: 3193.348 | N12: 9.9792125 | O12: bituminous | P12: bituminous | Q12: 0.025 | R12: 0.2494803125 | Y12: 0.025 | Z12: 0.2494803125 | AA12: NOx control | AB12: Selective Noncatalytic Reduction | AC12: 2005-11-01 | AD12: PM control | AE12: Electrostatic precipitator, cold side, w/o flue gas conditioning | AF12: 1994-01-01 | AG12: SO2 control | AH12: Wet FGD - Spray Type | AI12: 2009-12-01
A13: 641_7 | B13: 12 | D13: coal | E13: 641 | F13: Crist | G13: FL | H13: Unit 7 | I13: 7 | J13: Conventional Boiler | K13: Wall firing - front firing | L13: 500 | M13: 5279.792 | N13: 10.559584 | O13: bituminous | P13: bituminous | Q13: 0.025 | R13: 0.2639896 | Y13: 0.025 | Z13: 0.2639896 | AA13: NOx control | AB13: Selective Catalytic Reduction | AC13: 2005-04-01 | AD13: PM control | AE13: Electrostatic precipitator, cold side, w/o flue gas conditioning | AF13: 2004-04-01 | AG13: SO2 control | AH13: Wet FGD - Spray Type | AI13: 2009-12-01
A14: 641_4 | B14: 13 | D14: coal | E14: 641 | F14: Crist | G14: FL | H14: Unit 4 | I14: 4 | J14: Conventional Boiler | K14: Tangential firing | L14: 82 | M14: 868.842 | N14: 10.59563415 | O14: bituminous | P14: bituminous | Q14: 0.025 | R14: 0.2648908537 | Y14: 0.025 | Z14: 0.2648908537 | AA14: NOx control | AB14: Selective Noncatalytic Reduction | AC14: 2006-04-01 | AD14: PM control | AE14: Electrostatic precipitator, hot side, w/o flue gas conditioning | AF14: 2008-03-01 | AG14: PM control | AH14: Electrostatic precipitator, cold side, w/o flue gas conditioning | AI14: 1976-01-01 | AJ14: SO2 control | AK14: Wet FGD - Spray Type | AL14: 2009-12-01
A15: 10768_S-1715-3-13 | B15: 14 | D15: coal | E15: 10768 | F15: Rio Bravo Jasmin | G15: CA | H15: Config 1 | I15: S-1715-3-13 | J15: Fluidized bed firing | K15: Fluidized bed firing | L15: 36 | M15: 412.16 | N15: 11.44888889 | O15: bituminous | P15: bituminous | Q15: 0.02386666667 | R15: 0.2732468148 | W15: 0.0232 | X15: 0.2656142222 | Y15: 0.0232 | Z15: 0.2656142222 | AA15: NOx control | AB15: Selective Noncatalytic Reduction | AC15: 1990-03-01 | AD15: PM control | AE15: Fabric Filter, reverse air | AF15: 1990-03-01
A16: 3845_BD21 | B16: 15 | D16: coal | E16: 3845 | F16: TransAlta Centralia Generation | G16: WA | H16: BW21CONFIG | I16: BD21 | J16: Conventional Boiler | K16: Tangential firing | L16: 603 | M16: 7743 | N16: 12.84079602 | O16: subbituminous | P16: subbituminous | Q16: 0.05706666667 | R16: 0.7327814262 | W16: 0.0213 | X16: 0.2735089552 | Y16: 0.0213 | Z16: 0.2735089552 | AA16: PM control | AB16: Electrostatic precipitator, hot side, w/o flue gas conditioning | AC16: 1972-01-01 | AD16: SO2 control | AE16: Wet FGD - Spray Type | AF16: 2002-06-01
A17: 10769_C-E CONTRACT 24687 | B17: 16 | D17: coal | E17: 10769 | F17: Rio Bravo Poso | G17: CA | H17: Config 1 | I17: C-E CONTRACT 24687 | J17: Fluidized bed firing | K17: Fluidized bed firing | L17: 36 | M17: 407.93 | N17: 11.33138889 | O17: bituminous | P17: bituminous | Q17: 0.02503333333 | R17: 0.2836624352 | W17: 0.0245 | X17: 0.2776190278 | Y17: 0.0245 | Z17: 0.2776190278 | AA17: NOx control | AB17: Selective Noncatalytic Reduction | AC17: 1990-03-01 | AD17: PM control | AE17: Fabric Filter, reverse air | AF17: 1990-03-01
A18: 6264_1 | B18: 17 | D18: coal | E18: 6264 | F18: Mountaineer | G18: WV | H18: Mt-1 | I18: 1 | J18: Conventional Boiler | K18: Wall firing - opposed firing | L18: 1320 | M18: 11960 | N18: 9.060606061 | O18: bituminous | P18: bituminous | Q18: 0.0314 | R18: 0.2845030303 | Y18: 0.0314 | Z18: 0.2845030303 | AA18: NOx control | AB18: Selective Catalytic Reduction | AC18: 2002-01-01 | AD18: Other control | AE18: Dry sorbent injection | AF18: 2007-01-01 | AG18: PM control | AH18: Electrostatic precipitator, cold side, w/o flue gas conditioning | AI18: 1980-09-01 | AJ18: SO2 control | AK18: Wet FGD - Spray Type | AL18: 2007-01-01
A19: 708_2 | B19: 18 | D19: coal | E19: 708 | F19: Hammond | G19: GA | H19: Unit 2 | I19: 2 | J19: Conventional Boiler | K19: Wall firing - front firing | L19: 115 | M19: 1138.032 | N19: 9.895930435 | O19: bituminous | P19: bituminous | Q19: 0.02936666667 | R19: 0.2906104904 | Y19: 0.02936666667 | Z19: 0.2906104904 | AA19: PM control | AB19: Electrostatic precipitator, cold side, w/ flue gas conditioning | AC19: 1969-04-01 | AD19: SO2 control | AE19: Wet FGD - Spray Type | AF19: 2008-05-01
A20: 10771_10771-01 | B20: 19 | D20: coal | E20: 10771 | F20: Hopewell | G20: VA | H20: 1 & 2 | I20: 10771-01 | J20: Conventional Boiler | K20: Stoker - spreader | L20: 34 | M20: 433 | N20: 12.73529412 | O20: bituminous | P20: bituminous | S20: 0.02315747737 | T20: 0.2911712229 | Y20: 0.02315747737 | Z20: 0.2911712229 | AA20: NOx control | AB20: Selective Noncatalytic Reduction | AC20: 1992-04-01 | AD20: NOx control | AE20: Selective Noncatalytic Reduction | AF20: 1992-04-01 | AG20: PM control | AH20: Multiple cyclone | AI20: 1992-04-01 | AJ20: PM control | AK20: Multiple cyclone | AL20: 1992-04-01 | AM20: SO2 control | AN20: Dry FGD - Spray Dryer | AO20: 1992-04-01 | AP20: SO2 control | AQ20: Dry FGD - Spray Dryer | AR20: 1992-04-01 | AS20: PM control | AT20: Fabric Filter, pulse | AU20: 1992-04-01 | AV20: PM control | AW20: Fabric Filter, pulse | AX20: 1992-04-01
A21: 10771_10771-02 | B21: 20 | D21: coal | E21: 10771 | F21: Hopewell | G21: VA | H21: 1 & 2 | I21: 10771-02 | J21: Conventional Boiler | K21: Stoker - underfeed | L21: 34 | M21: 422 | N21: 12.41176471 | O21: bituminous | P21: bituminous | S21: 0.02315747737 | T21: 0.2911712229 | Y21: 0.02315747737 | Z21: 0.2911712229 | AA21: NOx control | AB21: Selective Noncatalytic Reduction | AC21: 1992-04-01 | AD21: NOx control | AE21: Selective Noncatalytic Reduction | AF21: 1992-04-01 | AG21: PM control | AH21: Multiple cyclone | AI21: 1992-04-01 | AJ21: PM control | AK21: Multiple cyclone | AL21: 1992-04-01 | AM21: SO2 control | AN21: Dry FGD - Spray Dryer | AO21: 1992-04-01 | AP21: SO2 control | AQ21: Dry FGD - Spray Dryer | AR21: 1992-04-01 | AS21: PM control | AT21: Fabric Filter, pulse | AU21: 1992-04-01 | AV21: PM control | AW21: Fabric Filter, pulse | AX21: 1992-04-01
A22: 708_3 | B22: 21 | D22: coal | E22: 708 | F22: Hammond | G22: GA | H22: Unit 3 | I22: 3 | J22: Conventional Boiler | K22: Wall firing - front firing | L22: 115 | M22: 1141.392 | N22: 9.925147826 | O22: bituminous | P22: bituminous | Q22: 0.02936666667 | R22: 0.2914685078 | Y22: 0.02936666667 | Z22: 0.2914685078 | AA22: PM control | AB22: Electrostatic precipitator, cold side, w/ flue gas conditioning | AC22: 1968-12-01 | AD22: SO2 control | AE22: Wet FGD - Spray Type | AF22: 2008-05-01
A23: 708_1 | B23: 22 | D23: coal | E23: 708 | F23: Hammond | G23: GA | H23: Unit 1 | I23: 1 | J23: Conventional Boiler | K23: Wall firing - front firing | L23: 115 | M23: 1158.752 | N23: 10.07610435 | O23: bituminous | P23: bituminous | Q23: 0.02936666667 | R23: 0.2959015977 | Y23: 0.02936666667 | Z23: 0.2959015977 | AA23: PM control | AB23: Electrostatic precipitator, cold side, w/ flue gas conditioning | AC23: 1971-02-01 | AD23: SO2 control | AE23: Wet FGD - Spray Type | AF23: 2008-05-01
A24: 54081_3A | B24: 23 | D24: coal | E24: 54081 | F24: Spruance Genco, LLC | G24: VA | H24: GEN3 | I24: 3A | J24: Conventional Boiler | K24: Stoker - underfeed | L24: 28.7 | M24: 375 | N24: 13.06620209 | O24: bituminous | P24: bituminous | Q24: 0.0227 | R24: 0.2966027875 | S24: 0.06527106518 | T24: 0.8528449283 | W24: 0.02524694218 | X24: 0.3298816486 | Y24: 0.0227 | Z24: 0.2966027875 | AA24: SO2 control | AB24: Dry FGD - Spray Dryer | AC24: 1992-05-01 | AD24: SO2 control | AE24: Dry FGD - Spray Dryer | AF24: 1992-05-01 | AG24: PM control | AH24: Fabric Filter, pulse | AI24: 1992-05-01 | AJ24: PM control | AK24: Fabric Filter, pulse | AL24: 1992-05-01
A25: 54081_3B | B25: 24 | D25: coal | E25: 54081 | F25: Spruance Genco, LLC | G25: VA | H25: GEN3 | I25: 3B | J25: Conventional Boiler | K25: Stoker - underfeed | L25: 28.7 | M25: 375 | N25: 13.06620209 | O25: bituminous | P25: bituminous | Q25: 0.0227 | R25: 0.2966027875 | S25: 0.06527106518 | T25: 0.8528449283 | W25: 0.02524694218 | X25: 0.3298816486 | Y25: 0.0227 | Z25: 0.2966027875 | AA25: SO2 control | AB25: Dry FGD - Spray Dryer | AC25: 1992-05-01 | AD25: SO2 control | AE25: Dry FGD - Spray Dryer | AF25: 1992-05-01 | AG25: PM control | AH25: Fabric Filter, pulse | AI25: 1992-05-01 | AJ25: PM control | AK25: Fabric Filter, pulse | AL25: 1992-05-01
A26: 3179_1 | B26: 25 | D26: coal | E26: 3179 | F26: Hatfield's Ferry Power Station | G26: PA | H26: 001 | I26: 1 | J26: Conventional Boiler | K26: Wall firing - opposed firing | L26: 590 | M26: 5700 | N26: 9.661016949 | O26: bituminous | P26: bituminous | S26: 0.03152490806 | T26: 0.3045626711 | Y26: 0.03152490806 | Z26: 0.3045626711 | AA26: PM control | AB26: Electrostatic precipitator, cold side, unspecified | AC26: 1969-01-01 | AD26: SO2 control | AE26: Wet FGD - Spray Type | AF26: 2009-06-01
A27: 708_4 | B27: 26 | D27: coal | E27: 708 | F27: Hammond | G27: GA | H27: Unit 4 | I27: 4 | J27: Conventional Boiler | K27: Wall firing - front firing | L27: 520 | M27: 5458.53 | N27: 10.49717308 | O27: bituminous | P27: bituminous | Q27: 0.02936666667 | R27: 0.3082669827 | Y27: 0.02936666667 | Z27: 0.3082669827 | AA27: NOx control | AB27: Selective Catalytic Reduction | AC27: 2002-05-01 | AD27: PM control | AE27: Electrostatic precipitator, cold side, w/ flue gas conditioning | AF27: 1970-12-01 | AG27: SO2 control | AH27: Wet FGD - Spray Type | AI27: 2008-05-01
A28: 54081_2A | B28: 27 | D28: coal | E28: 54081 | F28: Spruance Genco, LLC | G28: VA | H28: GEN2 | I28: 2A | J28: Conventional Boiler | K28: Stoker - underfeed | L28: 28.7 | M28: 375 | N28: 13.06620209 | O28: bituminous | P28: bituminous | Q28: 0.0241 | R28: 0.3148954704 | S28: 0.06567566955 | T28: 0.8581315707 | Y28: 0.0241 | Z28: 0.3148954704 | AA28: SO2 control | AB28: Dry FGD - Spray Dryer | AC28: 1992-05-01 | AD28: SO2 control | AE28: Dry FGD - Spray Dryer | AF28: 1992-05-01 | AG28: PM control | AH28: Fabric Filter, pulse | AI28: 1992-05-01 | AJ28: PM control | AK28: Fabric Filter, pulse | AL28: 1992-05-01
A29: 54081_2B | B29: 28 | D29: coal | E29: 54081 | F29: Spruance Genco, LLC | G29: VA | H29: GEN2 | I29: 2B | J29: Conventional Boiler | K29: Stoker - underfeed | L29: 28.7 | M29: 375 | N29: 13.06620209 | O29: bituminous | P29: bituminous | Q29: 0.0241 | R29: 0.3148954704 | S29: 0.06567566955 | T29: 0.8581315707 | Y29: 0.0241 | Z29: 0.3148954704 | AA29: SO2 control | AB29: Dry FGD - Spray Dryer | AC29: 1992-05-01 | AD29: SO2 control | AE29: Dry FGD - Spray Dryer | AF29: 1992-05-01 | AG29: PM control | AH29: Fabric Filter, pulse | AI29: 1992-05-01 | AJ29: PM control | AK29: Fabric Filter, pulse | AL29: 1992-05-01
A30: 3845_BD22 | B30: 29 | D30: coal | E30: 3845 | F30: TransAlta Centralia Generation | G30: WA | H30: BW22CONFIG | I30: BD22 | J30: Conventional Boiler | K30: Tangential firing | L30: 567 | M30: 7743 | N30: 13.65608466 | O30: subbituminous | P30: subbituminous | Q30: 0.0525 | R30: 0.7169444444 | W30: 0.02333333333 | X30: 0.3186419753 | Y30: 0.02333333333 | Z30: 0.3186419753 | AA30: PM control | AB30: Electrostatic precipitator, hot side, w/o flue gas conditioning | AC30: 1971-12-01 | AD30: SO2 control | AE30: Wet FGD - Spray Type | AF30: 2001-10-01
A31: 2324_3 | B31: 30 | D31: coal | E31: 2324 | F31: Reid Gardner | G31: NV | H31: 3 | I31: 3 | J31: Conventional Boiler | K31: Wall firing - front firing | L31: 111 | M31: 1237 | N31: 11.14414414 | O31: coal - bituminous, other non-fossil fuel (specify) | P31: bituminous | W31: 0.02926666667 | X31: 0.326151952 | Y31: 0.02926666667 | Z31: 0.326151952 | AA31: PM control | AB31: Fabric Filter, pulse | AC31: 2009-02-01 | AD31: SO2 control | AE31: Wet FGD - Venturi Type | AF31: 1976-07-01
A32: 52071_5B | B32: 31 | D32: coal | E32: 52071 | F32: Sandow Station | G32: TX | H32: 5B | I32: 5B | J32: Fluidized bed firing | K32: Fluidized bed firing | L32: 282.35 | M32: 2960 | N32: 10.48344254 | O32: lignite | P32: lignite | S32: 0.0479832197 | T32: 0.5030293264 | W32: 0.032 | X32: 0.3354701611 | Y32: 0.032 | Z32: 0.3354701611 | AA32: NOx control | AB32: Selective Noncatalytic Reduction | AC32: 2009-07-01 | AD32: Other control | AE32: Activated carbon injection | AF32: 2009-08-01 | AG32: SO2 control | AH32: Dry FGD - Circulating Dry Scrubber | AI32: 2009-07-01 | AJ32: PM control | AK32: Fabric Filter, pulse | AL32: 2009-07-01
A33: 10384_1A | B33: 32 | D33: coal | E33: 10384 | F33: Edgecombe Genco, LLC | G33: NC | H33: Gen 1 | I33: 1A | J33: Conventional Boiler | K33: Stoker - overfeed | L33: 30.5 | M33: 375 | N33: 12.29508197 | O33: bituminous | P33: bituminous | Q33: 0.0278 | R33: 0.3418032787 | Y33: 0.0278 | Z33: 0.3418032787 | AA33: SO2 control | AB33: Dry FGD - Spray Dryer | AC33: 1990-10-01 | AD33: SO2 control | AE33: Dry FGD - Spray Dryer | AF33: 1990-10-01 | AG33: PM control | AH33: Fabric Filter, reverse air | AI33: 1990-10-01 | AJ33: PM control | AK33: Fabric Filter, pulse | AL33: 1990-10-01
A34: 10384_1B | B34: 33 | D34: coal | E34: 10384 | F34: Edgecombe Genco, LLC | G34: NC | H34: Gen 1 | I34: 1B | J34: Conventional Boiler | K34: Stoker - overfeed | L34: 30.5 | M34: 375 | N34: 12.29508197 | O34: bituminous | P34: bituminous | Q34: 0.0278 | R34: 0.3418032787 | Y34: 0.0278 | Z34: 0.3418032787 | AA34: SO2 control | AB34: Dry FGD - Spray Dryer | AC34: 1990-10-01 | AD34: SO2 control | AE34: Dry FGD - Spray Dryer | AF34: 1990-10-01 | AG34: PM control | AH34: Fabric Filter, reverse air | AI34: 1990-10-01 | AJ34: PM control | AK34: Fabric Filter, pulse | AL34: 1990-10-01
A35: 2706_1 | B35: 34 | D35: coal | E35: 2706 | F35: Asheville Steam Electric Plant | G35: NC | H35: Ash_Cfg_1d | I35: 1 | J35: Conventional Boiler | K35: Wall firing - front firing | L35: 207 | M35: 1914 | N35: 9.246376812 | O35: bituminous | P35: bituminous | S35: 0.05166085529 | T35: 0.4776757344 | W35: 0.038 | X35: 0.3513623188 | Y35: 0.038 | Z35: 0.3513623188 | AA35: NOx control | AB35: Selective Catalytic Reduction | AC35: 2007-06-14 | AD35: PM control | AE35: Electrostatic precipitator, cold side, w/o flue gas conditioning | AF35: 2005-11-17 | AG35: SO2 control | AH35: Wet FGD - Spray/Tray Type | AI35: 2005-11-17
A36: 56224_BLR100 | B36: 35 | D36: coal | E36: 56224 | F36: TS Power Plant | G36: NV | H36: TSPower | I36: BLR100 | J36: Conventional Boiler | K36: Wall firing - opposed firing | L36: 242 | M36: 2112 | N36: 8.727272727 | O36: subbituminous | P36: subbituminous | Q36: 0.0427 | R36: 0.3726545455 | W36: 0.04166666667 | X36: 0.3636363636 | Y36: 0.04166666667 | Z36: 0.3636363636 | AA36: NOx control | AB36: Selective Catalytic Reduction | AC36: 2008-03-01 | AD36: Other control | AE36: Activated carbon injection | AF36: 2008-03-01 | AG36: SO2 control | AH36: Dry FGD - Spray Dryer | AI36: 2008-03-01 | AJ36: PM control | AK36: Fabric Filter, pulse | AL36: 2008-01-01
A37: 1082_4 | B37: 36 | D37: coal | E37: 1082 | F37: Walter Scott Jr. Energy Center | G37: IA | H37: 4 | I37: 4 | J37: Conventional Boiler | K37: Wall firing - unspecified | L37: 850 | M37: 7675 | N37: 9.029411765 | O37: subbituminous | P37: subbituminous | Q37: 0.078 | R37: 0.7042941176 | W37: 0.041 | X37: 0.3702058824 | Y37: 0.041 | Z37: 0.3702058824 | AA37: NOx control | AB37: Selective Catalytic Reduction | AC37: 2007-02-01 | AD37: Other control | AE37: Activated carbon injection | AF37: 2007-02-01 | AG37: SO2 control | AH37: Dry FGD - Circulating Dry Scrubber | AI37: 2007-02-01 | AJ37: PM control | AK37: Fabric Filter, pulse | AL37: 2007-02-01
A38: 10774_1 | B38: 37 | D38: coal | E38: 10774 | F38: Southampton Power Station | G38: VA | H38: Unit 1 & 2 | I38: 1 | J38: Conventional Boiler | K38: Stoker - spreader | L38: 34 | M38: 442 | N38: 13 | O38: bituminous | P38: bituminous | S38: 0.02869488296 | T38: 0.3751433964 | Y38: 0.02869488296 | Z38: 0.3751433964 | AA38: PM control | AB38: Multiple cyclone | AC38: 1992-03-01 | AD38: PM control | AE38: Multiple cyclone | AF38: 1992-03-01 | AG38: SO2 control | AH38: Dry FGD - Spray Dryer | AI38: 1992-03-01 | AJ38: SO2 control | AK38: Dry FGD - Spray Dryer | AL38: 1992-03-01 | AM38: PM control | AN38: Fabric Filter, pulse | AO38: 1992-03-01 | AP38: PM control | AQ38: Fabric Filter, pulse | AR38: 1992-03-01
A39: 10774_2 | B39: 38 | D39: coal | E39: 10774 | F39: Southampton Power Station | G39: VA | H39: Unit 1 & 2 | I39: 2 | J39: Conventional Boiler | K39: Stoker - spreader | L39: 34 | M39: 447 | N39: 13.14705882 | O39: bituminous | P39: bituminous | S39: 0.02869488296 | T39: 0.3751433964 | Y39: 0.02869488296 | Z39: 0.3751433964 | AA39: PM control | AB39: Multiple cyclone | AC39: 1992-03-01 | AD39: PM control | AE39: Multiple cyclone | AF39: 1992-03-01 | AG39: SO2 control | AH39: Dry FGD - Spray Dryer | AI39: 1992-03-01 | AJ39: SO2 control | AK39: Dry FGD - Spray Dryer | AL39: 1992-03-01 | AM39: PM control | AN39: Fabric Filter, pulse | AO39: 1992-03-01 | AP39: PM control | AQ39: Fabric Filter, pulse | AR39: 1992-03-01
A40: 2451_Unit 3 | B40: 39 | D40: coal | E40: 2451 | F40: San Juan | G40: NM | H40: Unit 3 | I40: Unit 3 | J40: Conventional Boiler | K40: Wall firing - opposed firing | L40: 544 | M40: 5758 | N40: 10.58455882 | O40: subbituminous | P40: subbituminous | Q40: 0.0355483871 | R40: 0.3762639943 | Y40: 0.0355483871 | Z40: 0.3762639943 | AA40: Other control | AB40: Activated carbon injection | AC40: 2008-04-01 | AD40: PM control | AE40: Fabric Filter, pulse | AF40: 2008-03-01 | AG40: SO2 control | AH40: Wet FGD - Spray Type | AI40: 1998-05-01
A41: 3935_2 | B41: 40 | D41: coal | E41: 3935 | F41: John E. Amos | G41: WV | H41: AM-2 | I41: 2 | J41: Conventional Boiler | K41: Wall firing - opposed firing | L41: 816.3 | M41: 7020 | N41: 8.599779493 | O41: bituminous | P41: bituminous | Q41: 0.04506666667 | R41: 0.3875633958 | Y41: 0.04506666667 | Z41: 0.3875633958 | AA41: NOx control | AB41: Selective Catalytic Reduction | AD41: PM control | AE41: Electrostatic precipitator, cold side, w/o flue gas conditioning | AF41: 1977-12-01 | AG41: SO2 control | AH41: Wet FGD - Spray Type | AI41: 2009-02-01
A42: 994_1 | B42: 41 | D42: coal | E42: 994 | F42: AES Petersburg | G42: IN | H42: 1s | I42: 1 | J42: Conventional Boiler | K42: Tangential firing | L42: 255 | M42: 2200 | N42: 8.62745098 | O42: bituminous | P42: bituminous | Q42: 0.04747058824 | R42: 0.409550173 | Y42: 0.04747058824 | Z42: 0.409550173 | AA42: PM control | AB42: Electrostatic precipitator, cold side, w/ flue gas conditioning | AC42: 1967-12-01 | AD42: SO2 control | AE42: Wet FGD - Spray Type | AF42: 1996-12-01
A43: 2712_2 | B43: 42 | D43: coal | E43: 2712 | F43: Roxboro Steam Electric Plant | G43: NC | H43: Rox_Cfg_2c | I43: 2 | J43: Conventional Boiler | K43: Tangential firing | L43: 703 | M43: 6893 | N43: 9.80512091 | O43: bituminous | P43: bituminous | W43: 0.042 | X43: 0.4118150782 | Y43: 0.042 | Z43: 0.4118150782 | AA43: NOx control | AB43: Selective Catalytic Reduction | AC43: 2005-05-01 | AD43: PM control | AE43: Electrostatic precipitator, cold side, w/o flue gas conditioning | AF43: 1974-05-01 | AG43: SO2 control | AH43: Wet FGD - Spray/Tray Type | AI43: 2007-04-20
A44: 2706_2 | B44: 43 | D44: coal | E44: 2706 | F44: Asheville Steam Electric Plant | G44: NC | H44: Ash_Cfg_2 | I44: 2 | J44: Conventional Boiler | K44: Wall firing - front firing | L44: 204 | M44: 1902 | N44: 9.323529412 | O44: bituminous | P44: bituminous | S44: 0.04638758921 | T44: 0.4324960524 | W44: 0.04441385631 | X44: 0.4140938956 | Y44: 0.04441385631 | Z44: 0.4140938956 | AA44: NOx control | AB44: Selective Catalytic Reduction | AC44: 2006-06-14 | AD44: PM control | AE44: Electrostatic precipitator, cold side, w/o flue gas conditioning | AF44: 1971-05-01 | AG44: SO2 control | AH44: Wet FGD - Spray/Tray Type | AI44: 2006-05-15
A45: 6076_3 | B45: 44 | D45: coal | E45: 6076 | F45: Colstrip | G45: MT | H45: Unit3 | I45: 3 | J45: Conventional Boiler | K45: Tangential firing | L45: 805 | M45: 7573 | N45: 9.407453416 | O45: subbituminous | P45: subbituminous | S45: 0.04522379137 | T45: 0.4254407106 | Y45: 0.04522379137 | Z45: 0.4254407106 | AA45: Other control | AB45: Activated carbon injection | AC45: 2009-12-01 | AD45: SO2 control | AE45: Wet FGD - Venturi Type | AF45: 1984-01-01 | AG45: PM control | AH45: PM scrubber - Venturi | AI45: 1984-01-01
A46: 8042_Unit 1 | B46: 45 | D46: coal | E46: 8042 | F46: Belews Creek Steam Station | G46: NC | H46: 1-2008 | I46: Unit 1 | J46: Conventional Boiler | K46: Wall firing - opposed firing | L46: 1185.8 | M46: 10800 | N46: 9.107775342 | O46: bituminous | P46: bituminous | S46: 0.04835983047 | T46: 0.4404504715 | Y46: 0.04835983047 | Z46: 0.4404504715 | AA46: NOx control | AB46: Selective Catalytic Reduction | AC46: 2003-06-01 | AD46: PM control | AE46: Electrostatic precipitator, cold side, w/ flue gas conditioning | AF46: 1973-01-01 | AG46: SO2 control | AH46: Wet FGD - Spray Type | AI46: 2008-01-01
A47: 4078_4 | B47: 46 | D47: coal | E47: 4078 | F47: Weston | G47: WI | H47: W4 | I47: 4 | J47: Conventional Boiler | K47: Wall firing - opposed firing | L47: 574.5 | M47: 5173.07 | N47: 9.004473455 | O47: subbituminous | P47: subbituminous | Q47: 0.06123333333 | R47: 0.5513739246 | W47: 0.05 | X47: 0.4502236728 | Y47: 0.05 | Z47: 0.4502236728 | AA47: NOx control | AB47: Selective Catalytic Reduction | AC47: 2008-07-01 | AD47: Other control | AE47: Activated carbon injection | AF47: 2008-07-01 | AG47: SO2 control | AH47: Dry FGD - Spray Dryer | AI47: 2008-07-01 | AJ47: PM control | AK47: Fabric Filter, pulse | AL47: 2008-07-01
A48: 10784_BLR1 | B48: 47 | D48: coal | E48: 10784 | F48: Colstrip Energy LP | G48: MT | H48: Config1 | I48: BLR1 | J48: Fluidized bed firing | K48: Fluidized bed firing | L48: 44 | M48: 635 | N48: 14.43181818 | O48: coal refuse (culm or gob) | P48: coal refuse (culm or gob) | U48: 0.03156666667 | V48: 0.4555643939 | Y48: 0.03156666667 | Z48: 0.4555643939 | AA48: PM control | AB48: Fabric Filter, pulse | AC48: 1990-06-01 | AD48: Other control | AE48: Activated carbon injection | AF48: 2009-12-01
A49: 10002_1 | B49: 48 | D49: coal | E49: 10002 | F49: ACE Cogeneration Company | G49: CA | H49: Config 1 | I49: 1 | J49: Fluidized bed firing | K49: Fluidized bed firing | L49: 117 | M49: 1052 | N49: 8.991452991 | O49: bituminous | P49: bituminous | Q49: 0.05456666667 | R49: 0.4906336182 | W49: 0.052 | X49: 0.4675555556 | Y49: 0.052 | Z49: 0.4675555556 | AA49: NOx control | AB49: Selective Noncatalytic Reduction | AC49: 1991-01-01 | AD49: PM control | AE49: Fabric Filter, reverse air | AF49: 1991-01-01
A50: 3935_3 | B50: 49 | D50: coal | E50: 3935 | F50: John E. Amos | G50: WV | H50: AM-3 | I50: 3 | J50: Conventional Boiler | K50: Wall firing - opposed firing | L50: 1300 | M50: 11936 | N50: 9.181538462 | O50: bituminous | P50: bituminous | Q50: 0.05214285714 | R50: 0.4787516484 | Y50: 0.05214285714 | Z50: 0.4787516484 | AA50: NOx control | AB50: Selective Catalytic Reduction | AC50: 2001-05-01 | AD50: PM control | AE50: Electrostatic precipitator, cold side, w/o flue gas conditioning | AF50: 1973-10-01 | AG50: SO2 control | AH50: Wet FGD - Spray Type | AI50: 2009-02-01
A51: 113_1 | B51: 50 | D51: coal | E51: 113 | F51: Cholla | G51: AZ | H51: 001 | I51: 1 | J51: Conventional Boiler | K51: Tangential firing | L51: 131 | M51: 1270 | N51: 9.694656489 | P51: Bituminous, Subbituminous | W51: 0.05 | X51: 0.4847328244 | Y51: 0.05 | Z51: 0.4847328244 | AA51: PM control | AB51: Fabric Filter, unspecified | AC51: 2007-01-01 | AD51: SO2 control | AE51: Wet FGD - Venturi Type | AF51: 1972-01-01
A52: 8223_2 | B52: 51 | D52: coal | E52: 8223 | F52: Springerville | G52: AZ | H52: 2 | I52: 2 | J52: Conventional Boiler | K52: Tangential firing | L52: 430 | M52: 3830 | N52: 8.906976744 | O52: bituminous | P52: bituminous | W52: 0.056 | X52: 0.4987906977 | Y52: 0.056 | Z52: 0.4987906977 | AA52: SO2 control | AB52: Dry FGD - Spray Dryer | AC52: 1990-06-01 | AD52: PM control | AE52: Fabric Filter, reverse air | AF52: 1990-06-01
A53: 7213_1 | B53: 52 | D53: coal | E53: 7213 | F53: Clover | G53: VA | H53: Unit 1 | I53: 1 | J53: Conventional Boiler | K53: Tangential firing | L53: 431 | M53: 4923 | N53: 11.42227378 | O53: bituminous | P53: bituminous | S53: 0.04384165778 | T53: 0.5007714182 | Y53: 0.04384165778 | Z53: 0.5007714182 | AA53: PM control | AB53: Fabric Filter, reverse air | AC53: 2003-05-01 | AD53: SO2 control | AE53: Wet FGD - Spray Type | AF53: 2003-05-01
A54: 7790_1-1 | B54: 53 | D54: coal | E54: 7790 | F54: Bonanza Power Plant | G54: UT | H54: 1-1 | I54: 1-1 | J54: Conventional Boiler | K54: Wall firing - opposed firing | L54: 483 | M54: 4899 | N54: 10.14285714 | O54: Bituminous | P54: Bituminous | W54: 0.04942979298 | X54: 0.5013593288 | Y54: 0.04942979298 | Z54: 0.5013593288 | AA54: PM control | AB54: Fabric Filter, reverse air | AC54: 1985-11-01 | AD54: SO2 control | AE54: Wet FGD - Spray Type | AF54: 1985-11-01
A55: 703_4 | B55: 54 | D55: coal | E55: 703 | F55: Bowen | G55: GA | H55: Unit 4 | I55: 4 | J55: Conventional Boiler | K55: Tangential firing | L55: 933 | M55: 8887.743 | N55: 9.525983923 | O55: bituminous | P55: bituminous | Q55: 0.05393333333 | R55: 0.5137680662 | Y55: 0.05393333333 | Z55: 0.5137680662 | AA55: NOx control | AB55: Selective Catalytic Reduction | AC55: 2003-05-01 | AD55: PM control | AE55: Electrostatic precipitator, cold side, w/ flue gas conditioning | AF55: 1975-11-01 | AG55: SO2 control | AH55: Wet FGD - Spray Type | AI55: 2008-12-01
A56: 3948_1 | B56: 55 | D56: coal | E56: 3948 | F56: Mitchell | G56: WV | H56: MI-1 | I56: 1 | J56: Conventional Boiler | K56: Wall firing - opposed firing | L56: 816.3 | M56: 7020 | N56: 8.599779493 | O56: bituminous | P56: bituminous | Q56: 0.0613 | R56: 0.5271664829 | Y56: 0.0613 | Z56: 0.5271664829 | AA56: NOx control | AB56: Selective Catalytic Reduction | AC56: 2007-01-01 | AD56: PM control | AE56: Electrostatic precipitator, cold side, w/o flue gas conditioning | AF56: 1977-02-01 | AG56: SO2 control | AH56: Wet FGD - Tray Type | AI56: 2007-01-01
A57: 54081_4A | B57: 56 | D57: coal | E57: 54081 | F57: Spruance Genco, LLC | G57: VA | H57: GEN4 | I57: 4A | J57: Conventional Boiler | K57: Stoker - underfeed | L57: 28.7 | M57: 375 | N57: 13.06620209 | O57: bituminous | P57: bituminous | Q57: 0.0423 | R57: 0.5527003484 | S57: 0.0941058516 | T57: 1.229606075 | W57: 0.08995347618 | X57: 1.175350299 | Y57: 0.0423 | Z57: 0.5527003484 | AA57: SO2 control | AB57: Dry FGD - Spray Dryer | AC57: 1992-05-01 | AD57: SO2 control | AE57: Dry FGD - Spray Dryer | AF57: 1992-05-01 | AG57: PM control | AH57: Fabric Filter, pulse | AI57: 1992-05-01 | AJ57: PM control | AK57: Fabric Filter, pulse | AL57: 1992-05-01
A58: 54081_4B | B58: 57 | D58: coal | E58: 54081 | F58: Spruance Genco, LLC | G58: VA | H58: GEN4 | I58: 4B | J58: Conventional Boiler | K58: Stoker - underfeed | L58: 28.7 | M58: 375 | N58: 13.06620209 | O58: bituminous | P58: bituminous | Q58: 0.0423 | R58: 0.5527003484 | S58: 0.0941058516 | T58: 1.229606075 | W58: 0.08995347618 | X58: 1.175350299 | Y58: 0.0423 | Z58: 0.5527003484 | AA58: SO2 control | AB58: Dry FGD - Spray Dryer | AC58: 1992-05-01 | AD58: SO2 control | AE58: Dry FGD - Spray Dryer | AF58: 1992-05-01 | AG58: PM control | AH58: Fabric Filter, pulse | AI58: 1992-05-01 | AJ58: PM control | AK58: Fabric Filter, pulse | AL58: 1992-05-01
A59: 113_2 | B59: 58 | D59: coal | E59: 113 | F59: Cholla | G59: AZ | H59: 002 | I59: 2 | J59: Conventional Boiler | K59: Tangential firing | L59: 305 | M59: 2938 | N59: 9.632786885 | P59: Bituminous, Subbituminous | W59: 0.061 | X59: 0.5876 | Y59: 0.061 | Z59: 0.5876 | AA59: PM control | AB59: PM scrubber - Venturi | AC59: 1978-01-01 | AD59: SO2 control | AE59: Wet FGD - Venturi Type | AF59: 1978-01-01
A60: 6018_2 | B60: 59 | D60: coal | E60: 6018 | F60: East Bend Station | G60: KY | H60: 2 | I60: 2 | J60: Conventional Boiler | K60: Wall firing - front firing | L60: 650.7246377 | M60: 6313 | N60: 9.701492205 | O60: bituminous | P60: bituminous | S60: 0.06085586976 | T60: 0.5903927461 | Y60: 0.06085586976 | Z60: 0.5903927461 | AA60: Other control | AB60: Dry sorbent injection | AC60: 2005-01-01 | AD60: PM control | AE60: Electrostatic precipitator, hot side, w/ flue gas conditioning | AF60: 1981-01-01 | AG60: NOx control | AH60: Selective Catalytic Reduction | AI60: 2002-01-01 | AJ60: SO2 control | AK60: Wet FGD - Spray Type | AL60: 1981-01-01
A61: 8_10 | B61: 60 | D61: coal | E61: 8 | F61: Gorgas | G61: AL | H61: Unit 10 | I61: 10 | J61: Conventional Boiler | K61: Tangential firing | L61: 720 | M61: 6523.794 | N61: 9.060825 | O61: coal - bituminous | P61: bituminous | W61: 0.06517622487 | X61: 0.5905503677 | Y61: 0.06517622487 | Z61: 0.5905503677 | AA61: NOx control | AB61: Selective Catalytic Reduction | AC61: 2002-05-01 | AD61: PM control | AE61: Electrostatic precipitator, cold side, w/ flue gas conditioning | AF61: 1972-10-01 | AG61: SO2 control | AH61: Wet FGD - Spray Type | AI61: 2007-12-01
A62: 6180_1 | B62: 61 | D62: coal | E62: 6180 | F62: Oak Grove | G62: TX | H62: OG1 | I62: 1 | J62: Conventional Boiler | K62: Tangential firing | L62: 817 | M62: 8970 | N62: 10.97919217 | O62: lignite | P62: lignite | S62: 0.05633464923 | T62: 0.6185089395 | W62: 0.054 | X62: 0.592876377 | Y62: 0.054 | Z62: 0.592876377 | AA62: NOx control | AB62: Selective Catalytic Reduction | AC62: 2009-08-01 | AD62: Other control | AE62: Activated carbon injection | AF62: 2009-08-01 | AG62: PM control | AH62: Fabric Filter, pulse | AI62: 2009-08-01 | AJ62: SO2 control | AK62: Wet FGD - Spray Type | AL62: 2009-08-01
A63: 8_8 | B63: 62 | D63: coal | E63: 8 | F63: Gorgas | G63: AL | H63: Unit 8 | I63: 8 | J63: Conventional Boiler | K63: Tangential firing | L63: 175 | M63: 1600.89725 | N63: 9.147984286 | O63: coal - bituminous | P63: bituminous | W63: 0.06517622487 | X63: 0.5962310809 | Y63: 0.06517622487 | Z63: 0.5962310809 | AA63: PM control | AB63: Electrostatic precipitator, hot side, w/ flue gas conditioning | AC63: 1972-06-01 | AD63: SO2 control | AE63: Wet FGD - Spray Type | AF63: 2007-12-01
A64: 2324_1 | B64: 63 | D64: coal | E64: 2324 | F64: Reid Gardner | G64: NV | H64: 1 | I64: 1 | J64: Conventional Boiler | K64: Wall firing - front firing | L64: 111 | M64: 1215 | N64: 10.94594595 | O64: bituminous | P64: bituminous | S64: 0.06214711852 | T64: 0.680259 | W64: 0.055 | X64: 0.602027027 | Y64: 0.055 | Z64: 0.602027027 | AA64: PM control | AB64: Fabric Filter, pulse | AC64: 2008-12-01 | AD64: SO2 control | AE64: Wet FGD - Venturi Type | AF64: 1976-07-01
A65: 2451_Unit 4 | B65: 64 | D65: coal | E65: 2451 | F65: San Juan | G65: NM | H65: Unit 4 | I65: Unit 4 | J65: Conventional Boiler | K65: Wall firing - opposed firing | L65: 544 | M65: 5649 | N65: 10.38419118 | O65: subbituminous | P65: subbituminous | Q65: 0.05887096774 | R65: 0.6113273838 | Y65: 0.05887096774 | Z65: 0.6113273838 | AA65: Other control | AB65: Activated carbon injection | AC65: 2008-04-01 | AD65: PM control | AE65: Fabric Filter, pulse | AF65: 2007-10-01 | AG65: SO2 control | AH65: Wet FGD - Spray Type | AI65: 1998-04-01
A66: =E66&"_"&I66 -> 3944_2 | B66: 65 | D66: coal | E66: 3944 | F66: Harrison Power Station | G66: WV | H66: Boiler2 | I66: 2 | J66: Conventional Boiler | K66: Wall firing - unspecified | L66: 692 | M66: 6042 | N66: 8.731213873 | O66: bituminous | P66: bituminous | S66: 0.07007815732 | T66: 0.6118673793 | Y66: 0.07007815732 | Z66: 0.6118673793 | AA66: NOx control | AB66: Selective Catalytic Reduction | AC66: 2003-05-01 | AD66: PM control | AE66: Electrostatic precipitator, cold side, unspecified | AF66: 1973-12-01 | AG66: SO2 control | AH66: Wet FGD - Spray Type | AI66: 1994-11-01
A67: 8_9 | B67: 66 | D67: coal | E67: 8 | F67: Gorgas | G67: AL | H67: Unit 9 | I67: 9 | J67: Conventional Boiler | K67: Tangential firing | L67: 185 | M67: 1738.62475 | N67: 9.397971621 | O67: coal - bituminous | P67: bituminous | W67: 0.06517622487 | X67: 0.6125243117 | Y67: 0.06517622487 | Z67: 0.6125243117 | AA67: PM control | AB67: Electrostatic precipitator, hot side, w/ flue gas conditioning | AC67: 1972-06-01 | AD67: SO2 control | AE67: Wet FGD - Spray Type | AF67: 2007-12-01
A68: 2324_4 | B68: 67 | D68: coal | E68: 2324 | F68: Reid Gardner | G68: NV | H68: 4 | I68: 4 | J68: Conventional Boiler | K68: Wall firing - front firing | L68: 281 | M68: 2956 | N68: 10.51957295 | P68: bituminous | W68: 0.0591 | X68: 0.6217067616 | Y68: 0.0591 | Z68: 0.6217067616 | AA68: PM control | AB68: Fabric Filter, pulse | AC68: 1983-07-01 | AD68: SO2 control | AE68: Wet FGD - Venturi Type | AF68: 1983-07-01
A69: 8224_2 | B69: 68 | D69: coal | E69: 8224 | F69: North Valmy | G69: NV | H69: 2 | I69: 2 | J69: Conventional Boiler | K69: Wall firing - front firing | L69: 270.2 | M69: 2881 | N69: 10.66247224 | P69: subbituminous, bituminous | W69: 0.05866666667 | X69: 0.6255317049 | Y69: 0.05866666667 | Z69: 0.6255317049 | AA69: SO2 control | AB69: Dry FGD - Spray Dryer | AC69: 1985-05-01 | AD69: PM control | AE69: Fabric Filter, reverse air | AF69: 1985-05-01
A70: 1606_1 | B70: 69 | D70: coal | E70: 1606 | F70: Mount Tom | G70: MA | H70: 1 current | I70: 1 | J70: Conventional Boiler | K70: Wall firing - front firing | L70: 155 | M70: 1480 | N70: 9.548387097 | O70: coal - bituminous | P70: bituminous | W70: 0.066 | X70: 0.6301935484 | Y70: 0.066 | Z70: 0.6301935484 | AA70: NOx control | AB70: Selective Catalytic Reduction | AC70: 2006-06-01 | AD70: PM control | AE70: Electrostatic precipitator, cold side, w/o flue gas conditioning | AF70: 1982-09-01 | AG70: SO2 control | AH70: Dry FGD - Circulating Dry Scrubber | AI70: 2009-12-01 | AJ70: PM control | AK70: Fabric Filter, pulse | AL70: 2009-12-01
A71: 703_3 | B71: 70 | D71: coal | E71: 703 | F71: Bowen | G71: GA | H71: Unit 3 | I71: 3 | J71: Conventional Boiler | K71: Tangential firing | L71: 933 | M71: 8184.748 | N71: 8.772505895 | O71: bituminous | P71: bituminous | Q71: 0.07193333333 | R71: 0.6310355907 | Y71: 0.07193333333 | Z71: 0.6310355907 | AA71: NOx control | AB71: Selective Catalytic Reduction | AC71: 2003-05-01 | AD71: PM control | AE71: Electrostatic precipitator, cold side, w/ flue gas conditioning | AF71: 1974-12-01 | AG71: SO2 control | AH71: Wet FGD - Spray Type | AI71: 2008-05-01
A72: 628_5 | B72: 71 | D72: coal | E72: 628 | F72: Crystal River Power Plant | G72: FL | H72: CryR_Cfg_5c | I72: 5 | J72: Conventional Boiler | K72: Wall firing - opposed firing | L72: 767 | M72: 7423 | N72: 9.677966102 | O72: bituminous | P72: bituminous | S72: 0.06522419233 | T72: 0.6312375224 | Y72: 0.06522419233 | Z72: 0.6312375224 | AA72: NOx control | AB72: Selective Catalytic Reduction | AC72: 2009-05-15 | AD72: PM control | AE72: Electrostatic precipitator, cold side, w/o flue gas conditioning | AF72: 1984-01-01 | AG72: SO2 control | AH72: Wet FGD - Spray/Tray Type | AI72: 2009-11-30
A73: 8223_1 | B73: 72 | D73: coal | E73: 8223 | F73: Springerville | G73: AZ | H73: 1 | I73: 1 | J73: Conventional Boiler | K73: Tangential firing | L73: 427 | M73: 3830 | N73: 8.969555035 | O73: coal - subbituminous | P73: subbituminous | W73: 0.071 | X73: 0.6368384075 | Y73: 0.071 | Z73: 0.6368384075 | AA73: SO2 control | AB73: Dry FGD - Spray Dryer | AC73: 1985-06-01 | AD73: PM control | AE73: Fabric Filter, reverse air | AF73: 1985-06-01
A74: 3948_2 | B74: 73 | D74: coal | E74: 3948 | F74: Mitchell | G74: WV | H74: MI-2 | I74: 2 | J74: Conventional Boiler | K74: Wall firing - opposed firing | L74: 816.3 | M74: 7020 | N74: 8.599779493 | O74: bituminous | P74: bituminous | Q74: 0.07506666667 | R74: 0.6455567806 | Y74: 0.07506666667 | Z74: 0.6455567806 | AA74: NOx control | AB74: Selective Catalytic Reduction | AC74: 2007-01-01 | AD74: PM control | AE74: Electrostatic precipitator, cold side, w/o flue gas conditioning | AF74: 1978-08-01 | AG74: SO2 control | AH74: Wet FGD - Tray Type | AI74: 2007-01-01
A75: 8223_4 | B75: 74 | D75: coal | E75: 8223 | F75: Springerville | G75: AZ | H75: 4 | I75: 4 | J75: Conventional Boiler | K75: Wall firing - opposed firing | L75: 450 | M75: 4200 | N75: 9.333333333 | O75: bituminous | P75: bituminous | Q75: 0.06923333333 | R75: 0.6461777778 | Y75: 0.06923333333 | Z75: 0.6461777778 | AA75: NOx control | AB75: Selective Catalytic Reduction | AC75: 2009-12-01 | AD75: SO2 control | AE75: Dry FGD - Spray Dryer | AF75: 2009-12-01 | AG75: PM control | AH75: Fabric Filter, pulse | AI75: 2009-12-01
A76: 56319_0001 | B76: 75 | D76: coal | E76: 56319 | F76: Wygen 2 | G76: WY | H76: WYG2Cfg | I76: 0001 | J76: Conventional Boiler | K76: Wall firing - front firing | L76: 96 | M76: 1300 | N76: 13.54166667 | O76: subbituminous | P76: subbituminous | Q76: 0.048 | R76: 0.65 | Y76: 0.048 | Z76: 0.65 | AA76: NOx control | AB76: Selective Catalytic Reduction | AC76: 2008-01-01 | AD76: SO2 control | AE76: Dry FGD - Spray Dryer | AF76: 2008-01-01 | AG76: PM control | AH76: Fabric Filter, pulse | AI76: 2008-01-01
A77: 2451_Unit 1 | B77: 76 | D77: coal | E77: 2451 | F77: San Juan | G77: NM | H77: Unit 1 | I77: Unit 1 | J77: Conventional Boiler | K77: Wall firing - front firing | L77: 370 | M77: 3707 | N77: 10.01891892 | O77: subbituminous | P77: subbituminous | Q77: 0.06547368421 | R77: 0.6559755334 | Y77: 0.06547368421 | Z77: 0.6559755334 | AA77: Other control | AB77: Activated carbon injection | AC77: 2009-06-01 | AD77: PM control | AE77: Fabric Filter, pulse | AF77: 2008-10-01 | AG77: SO2 control | AH77: Wet FGD - Spray Type | AI77: 1998-05-01
A78: 54081_1A | B78: 77 | D78: coal | E78: 54081 | F78: Spruance Genco, LLC | G78: VA | H78: GEN1 | I78: 1A | J78: Conventional Boiler | K78: Stoker - underfeed | L78: 28.7 | M78: 375 | N78: 13.06620209 | O78: bituminous | P78: bituminous | S78: 0.05156335829 | T78: 0.6737372599 | Y78: 0.05156335829 | Z78: 0.6737372599 | AA78: SO2 control | AB78: Dry FGD - Spray Dryer | AC78: 1992-05-01 | AD78: SO2 control | AE78: Dry FGD - Spray Dryer | AF78: 1992-05-01 | AG78: PM control | AH78: Fabric Filter, pulse | AI78: 1992-05-01 | AJ78: PM control | AK78: Fabric Filter, pulse | AL78: 1992-05-01
A79: 54081_1B | B79: 78 | D79: coal | E79: 54081 | F79: Spruance Genco, LLC | G79: VA | H79: GEN1 | I79: 1B | J79: Conventional Boiler | K79: Stoker - underfeed | L79: 28.7 | M79: 375 | N79: 13.06620209 | O79: bituminous | P79: bituminous | S79: 0.05156335829 | T79: 0.6737372599 | Y79: 0.05156335829 | Z79: 0.6737372599 | AA79: SO2 control | AB79: Dry FGD - Spray Dryer | AC79: 1992-05-01 | AD79: SO2 control | AE79: Dry FGD - Spray Dryer | AF79: 1992-05-01 | AG79: PM control | AH79: Fabric Filter, pulse | AI79: 1992-05-01 | AJ79: PM control | AK79: Fabric Filter, pulse | AL79: 1992-05-01
A80: 8223_3 | B80: 79 | D80: coal | E80: 8223 | F80: Springerville | G80: AZ | H80: 3 | I80: 3 | J80: Conventional Boiler | K80: Wall firing - opposed firing | L80: 450 | M80: 4200 | N80: 9.333333333 | O80: subbituminous | P80: subbituminous | Q80: 0.07436666667 | R80: 0.6940888889 | W80: 0.099 | X80: 0.924 | Y80: 0.07436666667 | Z80: 0.6940888889 | AA80: NOx control | AB80: Selective Catalytic Reduction | AC80: 2006-08-01 | AD80: SO2 control | AE80: Dry FGD - Spray Dryer | AF80: 2006-08-01 | AG80: PM control | AH80: Fabric Filter, pulse | AI80: 2006-08-01
A81: 10384_2A | B81: 80 | D81: coal | E81: 10384 | F81: Edgecombe Genco, LLC | G81: NC | H81: Gen 2 | I81: 2A | J81: Conventional Boiler | K81: Stoker - overfeed | L81: 30.5 | M81: 375 | N81: 12.29508197 | O81: bituminous | P81: bituminous | Q81: 0.0568 | R81: 0.6983606557 | Y81: 0.0568 | Z81: 0.6983606557 | AA81: SO2 control | AB81: Dry FGD - Spray Dryer | AC81: 1990-10-01 | AD81: SO2 control | AE81: Dry FGD - Spray Dryer | AF81: 1990-10-01 | AG81: PM control | AH81: Fabric Filter, reverse air | AI81: 1990-10-01 | AJ81: PM control | AK81: Fabric Filter, reverse air | AL81: 1990-10-01
A82: 10384_2B | B82: 81 | D82: coal | E82: 10384 | F82: Edgecombe Genco, LLC | G82: NC | H82: Gen 2 | I82: 2B | J82: Conventional Boiler | K82: Stoker - overfeed | L82: 30.5 | M82: 375 | N82: 12.29508197 | O82: bituminous | P82: bituminous | Q82: 0.0568 | R82: 0.6983606557 | Y82: 0.0568 | Z82: 0.6983606557 | AA82: SO2 control | AB82: Dry FGD - Spray Dryer | AC82: 1990-10-01 | AD82: SO2 control | AE82: Dry FGD - Spray Dryer | AF82: 1990-10-01 | AG82: PM control | AH82: Fabric Filter, reverse air | AI82: 1990-10-01 | AJ82: PM control | AK82: Fabric Filter, reverse air | AL82: 1990-10-01
A83: 130_3 | B83: 82 | D83: coal | E83: 130 | F83: Cross | G83: SC | H83: C3 | I83: 3 | J83: Conventional Boiler | K83: Tangential firing | L83: 625 | M83: 6058 | N83: 9.6928 | O83: bituminous | P83: bituminous | Q83: 0.0743 | R83: 0.72017504 | Y83: 0.0743 | Z83: 0.72017504 | AA83: NOx control | AB83: Selective Catalytic Reduction | AC83: 2006-08-01 | AD83: PM control | AE83: Electrostatic precipitator, cold side, w/o flue gas conditioning | AF83: 2006-08-01 | AG83: SO2 control | AH83: Wet FGD - Spray Type | AI83: 2006-08-01
A84: 6761_101 | B84: 83 | D84: coal | E84: 6761 | F84: Rawhide | G84: CO | H84: Rawhide101 | I84: 101 | J84: Conventional Boiler | K84: Tangential firing | L84: 305 | M84: 2800 | N84: 9.180327869 | O84: subbituminous | P84: subbituminous | Q84: 0.07853333333 | R84: 0.7209617486 | Y84: 0.07853333333 | Z84: 0.7209617486 | AA84: SO2 control | AB84: Dry FGD - Spray Dryer | AC84: 1984-04-01 | AD84: PM control | AE84: Fabric Filter, reverse air | AF84: 1984-04-01
A85: 1012_3 | B85: 84 | D85: coal | E85: 1012 | F85: F. B. Culley | G85: IN | H85: Config3 | I85: 3 | J85: Conventional Boiler | K85: Wall firing - opposed firing | L85: 287 | M85: 2689 | N85: 9.369337979 | O85: subbituminous | P85: subbituminous | Q85: 0.08004545455 | R85: 0.7499729173 | Y85: 0.08004545455 | Z85: 0.7499729173 | AA85: NOx control | AB85: Selective Catalytic Reduction | AC85: 2004-01-01 | AD85: PM control | AE85: Fabric Filter, pulse | AF85: 2006-11-01 | AG85: SO2 control | AH85: Wet FGD - Spray Type | AI85: 1995-01-01
A86: 2727_Unit 1 | B86: 85 | D86: coal | E86: 2727 | F86: Marshall | G86: NC | H86: U12007 | I86: Unit 1 | J86: Conventional Boiler | K86: Tangential firing | L86: 400 | M86: 3658.2 | N86: 9.1455 | O86: bituminous | P86: bituminous | S86: 0.08292352522 | T86: 0.7583770999 | Y86: 0.08292352522 | Z86: 0.7583770999 | AA86: NOx control | AB86: Selective Noncatalytic Reduction | AC86: 2006-04-01 | AD86: PM control | AE86: Electrostatic precipitator, cold side, w/ flue gas conditioning | AF86: 1998-12-01 | AG86: SO2 control | AH86: Wet FGD - Spray Type | AI86: 2007-05-01
A87: 2727_Unit 2 | B87: 86 | D87: coal | E87: 2727 | F87: Marshall | G87: NC | H87: U22007 | I87: Unit 2 | J87: Conventional Boiler | K87: Tangential firing | L87: 400 | M87: 3663.2 | N87: 9.158 | O87: bituminous | P87: bituminous | S87: 0.08292352522 | T87: 0.759413644 | Y87: 0.08292352522 | Z87: 0.759413644 | AA87: NOx control | AB87: Selective Noncatalytic Reduction | AC87: 2007-05-01 | AD87: PM control | AE87: Electrostatic precipitator, cold side, w/ flue gas conditioning | AF87: 2002-01-01 | AG87: SO2 control | AH87: Wet FGD - Spray Type | AI87: 2007-05-01
A88: 2718_ES-3 | B88: 87 | D88: coal | E88: 2718 | F88: G G Allen | G88: NC | H88: 3-2009 | I88: ES-3 | J88: Conventional Boiler | K88: Tangential firing | L88: 281.5 | M88: 2228 | N88: 7.914742451 | O88: bituminous | P88: bituminous | S88: 0.09706152941 | T88: 0.7682170072 | Y88: 0.09706152941 | Z88: 0.7682170072 | AA88: NOx control | AB88: Selective Noncatalytic Reduction | AC88: 2005-05-01 | AD88: PM control | AE88: Electrostatic precipitator, cold side, w/ flue gas conditioning | AF88: 2002-06-01 | AG88: SO2 control | AH88: Wet FGD - Spray Type | AI88: 2009-05-01
A89: 2718_ES-4 | B89: 88 | D89: coal | E89: 2718 | F89: G G Allen | G89: NC | H89: 4-2009 | I89: ES-4 | J89: Conventional Boiler | K89: Tangential firing | L89: 297.3 | M89: 2380 | N89: 8.005381769 | O89: bituminous | P89: bituminous | S89: 0.09706152941 | T89: 0.777014598 | Y89: 0.09706152941 | Z89: 0.777014598 | AA89: NOx control | AB89: Selective Noncatalytic Reduction | AC89: 2006-06-01 | AD89: PM control | AE89: Electrostatic precipitator, cold side, w/ flue gas conditioning | AF89: 1999-02-01 | AG89: SO2 control | AH89: Wet FGD - Spray Type | AI89: 2009-04-01
A90: 10043_B01 | B90: 89 | D90: coal | E90: 10043 | F90: Logan Generating Plant | G90: NJ | H90: Unit1 | I90: B01 | J90: Conventional Boiler | K90: Wall firing - opposed firing | L90: 241.7 | M90: 2116 | N90: 8.75465453 | O90: bituminous | P90: bituminous | S90: 0.09099590867 | T90: 0.7966377441 | W90: 0.10625 | X90: 0.9301820439 | Y90: 0.09099590867 | Z90: 0.7966377441 | AA90: NOx control | AB90: Selective Catalytic Reduction | AC90: 1994-09-01 | AD90: SO2 control | AE90: Dry FGD - Spray Dryer | AF90: 1994-09-01 | AG90: PM control | AH90: Fabric Filter, reverse air | AI90: 1994-09-01
A91: 2727_Unit 4 | B91: 90 | D91: coal | E91: 2727 | F91: Marshall | G91: NC | H91: U4 | I91: Unit 4 | J91: Conventional Boiler | K91: Tangential firing | L91: 700 | M91: 6029.8 | N91: 8.614 | O91: bituminous | P91: bituminous | S91: 0.0944912309 | T91: 0.813947463 | Y91: 0.0944912309 | Z91: 0.813947463 | AA91: NOx control | AB91: Selective Noncatalytic Reduction | AC91: 2006-12-01 | AD91: PM control | AE91: Electrostatic precipitator, cold side, w/ flue gas conditioning | AF91: 2006-05-01 | AG91: SO2 control | AH91: Wet FGD - Spray Type | AI91: 2006-10-01
A92: 645_1 | B92: 91 | D92: coal | E92: 645 | F92: Big Bend | G92: FL | H92: BB01_pre-SCR | I92: 1 | J92: Conventional Boiler | K92: Wall firing - opposed firing | L92: 410 | M92: 4037 | N92: 9.846341463 | O92: bituminous | P92: bituminous | W92: 0.08290114343 | X92: 0.8162729659 | Y92: 0.08290114343 | Z92: 0.8162729659 | AA92: PM control | AB92: Electrostatic precipitator, hot side, w/o flue gas conditioning | AC92: 1970-10-01 | AD92: SO2 control | AE92: Wet FGD - Packed Type | AF92: 1999-12-01
A93: 1012_2 | B93: 92 | D93: coal | E93: 1012 | F93: F. B. Culley | G93: IN | H93: Config2 | I93: 2 | J93: Conventional Boiler | K93: Wall firing - opposed firing | L93: 100 | M93: 1031 | N93: 10.31 | O93: subbituminous | P93: subbituminous | Q93: 0.08004545455 | R93: 0.8252686364 | Y93: 0.08004545455 | Z93: 0.8252686364 | AA93: PM control | AB93: Fabric Filter, pulse | AC93: 2006-11-01 | AD93: SO2 control | AE93: Wet FGD - Spray Type | AF93: 1995-01-01
A94: 2451_Unit 2 | B94: 93 | D94: coal | E94: 2451 | F94: San Juan | G94: NM | H94: Unit 2 | I94: Unit 2 | J94: Conventional Boiler | K94: Wall firing - front firing | L94: 370 | M94: 3688 | N94: 9.967567568 | O94: subbituminous | P94: subbituminous | Q94: 0.08328571429 | R94: 0.8301559846 | Y94: 0.08328571429 | Z94: 0.8301559846 | AA94: Other control | AB94: Activated carbon injection | AC94: 2009-06-01 | AD94: PM control | AE94: Fabric Filter, pulse | AF94: 2009-04-01 | AG94: SO2 control | AH94: Wet FGD - Spray Type | AI94: 1998-05-01
A95: 2324_2 | B95: 94 | D95: coal | E95: 2324 | F95: Reid Gardner | G95: NV | H95: 2 | I95: 2 | J95: Conventional Boiler | K95: Wall firing - front firing | L95: 111 | M95: 1215 | N95: 10.94594595 | P95: bituminous | W95: 0.083 | X95: 0.9085135135 | Y95: 0.083 | Z95: 0.9085135135 | AA95: PM control | AB95: Fabric Filter, pulse | AC95: 2009-04-01 | AD95: SO2 control | AE95: Wet FGD - Venturi Type | AF95: 1976-07-01
A96: 6041_4 | B96: 95 | D96: coal | E96: 6041 | F96: H L Spurlock Station | G96: KY | H96: Unit 04 | I96: 4 | J96: Fluidized bed firing | K96: Fluidized bed firing | L96: 300 | M96: 2800 | N96: 9.333333333 | O96: bituminous | P96: bituminous | Q96: 0.09776666667 | R96: 0.9124888889 | W96: 0.09933333333 | X96: 0.9271111111 | Y96: 0.09776666667 | Z96: 0.9124888889 | AA96: NOx control | AB96: Selective Noncatalytic Reduction | AC96: 2009-04-01 | AD96: SO2 control | AE96: Dry FGD - Unspecified | AF96: 2009-04-01 | AG96: PM control | AH96: Fabric Filter, pulse | AI96: 2009-04-01
A97: 994_2 | B97: 96 | D97: coal | E97: 994 | F97: AES Petersburg | G97: IN | H97: 2ss | I97: 2 | J97: Conventional Boiler | K97: Tangential firing | L97: 445 | M97: 4144 | N97: 9.312359551 | O97: bituminous | P97: bituminous | Q97: 0.09823333333 | R97: 0.9147841199 | Y97: 0.09823333333 | Z97: 0.9147841199 | AA97: NOx control | AB97: Selective Catalytic Reduction | AC97: 2004-12-01 | AD97: PM control | AE97: Electrostatic precipitator, cold side, w/ flue gas conditioning | AF97: 1969-12-01 | AG97: SO2 control | AH97: Wet FGD - Spray Type | AI97: 1996-12-01
A98: 6639_G2 | B98: 97 | D98: coal | E98: 6639 | F98: R D Green | G98: KY | H98: 2 | I98: G2 | J98: Conventional Boiler | K98: Wall firing - opposed firing | L98: 239 | M98: 2726.6 | N98: 11.4083682 | O98: bituminous, Petroleum coke | P98: bituminous, Petroleum coke | Q98: 0.08026666667 | R98: 0.9157116876 | Y98: 0.08026666667 | Z98: 0.9157116876 | AA98: PM control | AB98: Electrostatic precipitator, cold side, w/o flue gas conditioning | AC98: 1981-01-01 | AD98: SO2 control | AE98: Wet FGD - Spray Type | AF98: 1981-01-01
A99: 7213_2 | B99: 98 | D99: coal | E99: 7213 | F99: Clover | G99: VA | H99: Unit 2 | I99: 2 | J99: Conventional Boiler | K99: Tangential firing | L99: 434 | M99: 5041 | N99: 11.61520737 | O99: bituminous | P99: bituminous | S99: 0.07917451829 | T99: 0.9196284486 | Y99: 0.07917451829 | Z99: 0.9196284486 | AA99: NOx control | AB99: Selective Noncatalytic Reduction | AC99: 2003-03-01 | AD99: PM control | AE99: Fabric Filter, reverse air | AF99: 2003-05-01 | AG99: SO2 control | AH99: Wet FGD - Spray Type | AI99: 2003-05-01
A100: 6096_NC2 | B100: 99 | D100: coal | E100: 6096 | F100: Nebraska City | G100: NE | H100: NC2 | I100: NC2 | J100: Conventional Boiler | K100: Wall firing - front firing | L100: 682 | M100: 6920.254 | N100: 10.147 | O100: bituminous | P100: bituminous | Q100: 0.09236666667 | R100: 0.9372445667 | Y100: 0.09236666667 | Z100: 0.9372445667 | AA100: NOx control | AB100: Selective Catalytic Reduction | AC100: 2009-05-01 | AD100: Other control | AE100: Activated carbon injection | AF100: 2009-05-01 | AG100: SO2 control | AH100: Dry FGD - Spray Dryer | AI100: 2009-05-01 | AJ100: PM control | AK100: Fabric Filter, pulse | AL100: 2009-05-01
A101: 728_Y1BR | B101: 100 | D101: coal | E101: 728 | F101: Yates | G101: GA | H101: Y1BR | I101: Y1BR | J101: Conventional Boiler | K101: Tangential firing | L101: 107 | M101: 1094.742 | N101: 10.23123364 | O101: bituminous | P101: bituminous | Q101: 0.0937 | R101: 0.9586665925 | Y101: 0.0937 | Z101: 0.9586665925 | AA101: PM control | AB101: Electrostatic precipitator, cold side, w/o flue gas conditioning | AC101: 1971-05-01 | AD101: SO2 control | AE101: Wet FGD - Spray Type | AF101: 1992-10-01
A102: 160_2 | B102: 101 | D102: coal | E102: 160 | F102: Apache Station | G102: AZ | H102: ST2 | I102: 2 | J102: Conventional Boiler | K102: Turbo | L102: 204 | M102: 1932.521 | N102: 9.473142157 | O102: coal - subbituminous | P102: subbituminous | W102: 0.1025658542 | X102: 0.971620917 | Y102: 0.1025658542 | Z102: 0.971620917 | AA102: PM control | AB102: Electrostatic precipitator, hot side, w/o flue gas conditioning | AC102: 1978-06-01 | AD102: SO2 control | AE102: Wet FGD - Spray Type | AF102: 1978-06-01
A103: 963_34 | B103: 102 | D103: coal | E103: 963 | F103: Dallman | G103: IL | H103: 34 | I103: 34 | J103: Conventional Boiler | K103: Wall firing - opposed firing | L103: 229.4 | M103: 1924.9 | N103: 8.391020052 | O103: bituminous | P103: bituminous | Q103: 0.118 | R103: 0.9901403662 | Y103: 0.118 | Z103: 0.9901403662 | AA103: NOx control | AB103: Selective Catalytic Reduction | AC103: 2009-05-01 | AD103: PM control | AE103: Fabric Filter, pulse | AF103: 2009-05-01 | AG103: SO2 control | AH103: Wet FGD - Packed Type | AI103: 2009-05-01 | AJ103: Other control | AK103: Wet electrostatic precipitator | AL103: 2009-05-01
A104: 52007_BLR1 | B104: 103 | D104: coal | E104: 52007 | F104: Mecklenburg Power Station | G104: VA | H104: Unit 1 & 2 | I104: BLR1 | J104: Conventional Boiler | K104: Wall firing - front firing | L104: 76 | M104: 916 | N104: 12.05263158 | O104: bituminous | P104: bituminous | S104: 0.08312822464 | T104: 1.003007658 | Y104: 0.08312822464 | Z104: 1.003007658 | AA104: SO2 control | AB104: Dry FGD - Spray Dryer | AC104: 1992-11-01 | AD104: SO2 control | AE104: Dry FGD - Spray Dryer | AF104: 1992-11-01 | AG104: PM control | AH104: Fabric Filter, pulse | AI104: 1992-11-01 | AJ104: PM control | AK104: Fabric Filter, pulse | AL104: 1992-11-01
A105: 52007_BLR2 | B105: 104 | D105: coal | E105: 52007 | F105: Mecklenburg Power Station | G105: VA | H105: Unit 1 & 2 | I105: BLR2 | J105: Conventional Boiler | K105: Wall firing - front firing | L105: 76 | M105: 918 | N105: 12.07894737 | O105: bituminous | P105: bituminous | S105: 0.08312822464 | T105: 1.003007658 | Y105: 0.08312822464 | Z105: 1.003007658 | AA105: SO2 control | AB105: Dry FGD - Spray Dryer | AC105: 1992-11-01 | AD105: SO2 control | AE105: Dry FGD - Spray Dryer | AF105: 1992-11-01 | AG105: PM control | AH105: Fabric Filter, pulse | AI105: 1992-11-01 | AJ105: PM control | AK105: Fabric Filter, pulse | AL105: 1992-11-01
A106: 113_4 | B106: 105 | D106: coal | E106: 113 | F106: Cholla | G106: AZ | H106: 004 | I106: 4 | J106: Conventional Boiler | K106: Tangential firing | L106: 425 | M106: 4268 | N106: 10.04235294 | O106: bituminous | P106: bituminous | U106: 0.1505752607 | V106: 1.512129912 | W106: 0.1 | X106: 1.004235294 | Y106: 0.1 | Z106: 1.004235294 | AA106: PM control | AB106: Fabric Filter, unspecified | AC106: 2008-01-01 | AD106: SO2 control | AE106: Wet FGD - Packed Type | AF106: 2008-01-01
A107: 2718_ES-2 | B107: 106 | D107: coal | E107: 2718 | F107: G G Allen | G107: NC | H107: 2-2009 | I107: ES-2 | J107: Conventional Boiler | K107: Tangential firing | L107: 177 | M107: 1509 | N107: 8.525423729 | O107: bituminous | P107: bituminous | S107: 0.1192451495 | T107: 1.016615427 | Y107: 0.1192451495 | Z107: 1.016615427 | AA107: NOx control | AB107: Selective Noncatalytic Reduction | AC107: 2007-04-01 | AD107: PM control | AE107: Electrostatic precipitator, cold side, w/o flue gas conditioning | AF107: 1988-10-01 | AG107: SO2 control | AH107: Wet FGD - Spray Type | AI107: 2009-02-01
A108: 1356_1 | B108: 107 | D108: coal | E108: 1356 | F108: Ghent | G108: KY | H108: GH1 | I108: 1 | J108: Conventional Boiler | K108: Tangential firing | L108: 520 | M108: 6286 | N108: 12.08846154 | O108: bituminous | P108: bituminous | Q108: 0.08443333333 | R108: 1.020669103 | Y108: 0.08443333333 | Z108: 1.020669103 | AA108: NOx control | AB108: Selective Catalytic Reduction | AC108: 2004-05-01 | AD108: Other control | AE108: Other (specify): Sorbent injection for SO3 reduction | AF108: 2008-06-01 | AG108: PM control | AH108: Electrostatic precipitator, cold side, w/o flue gas conditioning | AI108: 1973-12-01 | AJ108: Other control | AK108: Other (specify): Sorbent injection for SO3 reduction | AL108: 2008-06-01 | AM108: SO2 control | AN108: Wet FGD - Spray Type | AO108: 1994-11-01
A109: 3954_3 | B109: 108 | D109: coal | E109: 3954 | F109: Mt. Storm | G109: WV | H109: Unit 3 | I109: 3 | J109: Conventional Boiler | K109: Tangential firing | L109: 559.8 | M109: 5923 | N109: 10.58056449 | O109: bituminous | P109: bituminous | Q109: 0.09826666667 | R109: 1.039716804 | Y109: 0.09826666667 | Z109: 1.039716804 | AA109: NOx control | AB109: Selective Catalytic Reduction | AC109: 2004-05-01 | AD109: PM control | AE109: Electrostatic precipitator, cold side, w/o flue gas conditioning | AF109: 1973-12-01 | AG109: SO2 control | AH109: Wet FGD - Spray Type | AI109: 1995-01-01
A110: 55749_PC1 | B110: 109 | D110: coal | E110: 55749 | F110: Hardin Generator Project | G110: MT | H110: PC1 | I110: PC1 | J110: Conventional Boiler | K110: Wall firing - unspecified | L110: 119 | M110: 1304 | N110: 10.95798319 | O110: bituminous | P110: bituminous | Q110: 0.09533333333 | R110: 1.044661064 | W110: 0.104 | X110: 1.139630252 | Y110: 0.09533333333 | Z110: 1.044661064 | AA110: NOx control | AB110: Selective Catalytic Reduction | AC110: 2006-04-01 | AD110: Other control | AE110: Activated carbon injection | AG110: SO2 control | AH110: Dry FGD - Spray Dryer | AI110: 2006-04-01 | AJ110: PM control | AK110: Fabric Filter, pulse | AL110: 2006-04-01
A111: 477_5 | B111: 110 | D111: coal | E111: 477 | F111: Valmont | G111: CO | H111: Unit 5 | I111: 5 | J111: Conventional Boiler | K111: Tangential firing | L111: 196 | M111: 1845 | N111: 9.413265306 | O111: bituminous | P111: bituminous | Q111: 0.1141153846 | R111: 1.074198391 | U111: 0.1111608531 | V111: 1.046386602 | Y111: 0.1111608531 | Z111: 1.046386602 | AA111: SO2 control | AB111: Dry FGD - Spray Dryer | AC111: 2002-04-01 | AD111: PM control | AE111: Fabric Filter, reverse air | AF111: 1984-04-01
A112: 469_4 | B112: 111 | D112: coal | E112: 469 | F112: Cherokee | G112: CO | H112: Unit 4 | I112: 4 | J112: Conventional Boiler | K112: Tangential firing | L112: 383 | M112: 3520 | N112: 9.190600522 | O112: bituminous | P112: bituminous | Q112: 0.1253666667 | R112: 1.152194952 | U112: 0.1138715401 | V112: 1.046547836 | Y112: 0.1138715401 | Z112: 1.046547836 | AA112: SO2 control | AB112: Dry FGD - Spray Dryer | AC112: 2002-10-01 | AD112: PM control | AE112: Fabric Filter, reverse air | AF112: 1989-04-01
A113: 995_7 | B113: 112 | D113: coal | E113: 995 | F113: Bailly | G113: IN | H113: 7 | I113: 7 | J113: Conventional Boiler | K113: Cyclone firing | L113: 176 | M113: 1638 | N113: 9.306818182 | O113: bituminous | P113: bituminous | S113: 0.1143250466 | T113: 1.064002422 | Y113: 0.1143250466 | Z113: 1.064002422 | AA113: NOx control | AB113: Selective Catalytic Reduction | AC113: 2008-03-01 | AD113: PM control | AE113: Electrostatic precipitator, cold side, w/o flue gas conditioning | AF113: 1980-06-01 | AG113: SO2 control | AH113: Wet FGD - Packed Type | AI113: 1992-06-01
A114: 113_3 | B114: 113 | D114: coal | E114: 113 | F114: Cholla | G114: AZ | H114: 003 | I114: 3 | J114: Conventional Boiler | K114: Tangential firing | L114: 305 | M114: 2929 | N114: 9.603278689 | O114: bituminous | P114: bituminous | U114: 0.1379427481 | V114: 1.324702653 | W114: 0.113 | X114: 1.085170492 | Y114: 0.113 | Z114: 1.085170492 | AA114: PM control | AB114: Fabric Filter, unspecified | AC114: 2009-01-01 | AD114: SO2 control | AE114: Wet FGD - Unspecified | AF114: 2009-01-01
A115: 995_8 | B115: 114 | D115: coal | E115: 995 | F115: Bailly | G115: IN | H115: 8 | I115: 8 | J115: Conventional Boiler | K115: Cyclone firing | L115: 352 | M115: 3374 | N115: 9.585227273 | O115: bituminous | P115: bituminous | S115: 0.1143250466 | T115: 1.095831554 | Y115: 0.1143250466 | Z115: 1.095831554 | AA115: NOx control | AB115: Selective Catalytic Reduction | AC115: 2006-06-01 | AD115: PM control | AE115: Electrostatic precipitator, cold side, w/o flue gas conditioning | AF115: 1981-02-01 | AG115: SO2 control | AH115: Wet FGD - Packed Type | AI115: 1992-06-01
A116: 1356_4 | B116: 115 | D116: coal | E116: 1356 | F116: Ghent | G116: KY | H116: GH4 | I116: 4 | J116: Conventional Boiler | K116: Wall firing - opposed firing | L116: 525 | M116: 5967 | N116: 11.36571429 | O116: bituminous | P116: bituminous | Q116: 0.0991 | R116: 1.126342286 | Y116: 0.0991 | Z116: 1.126342286 | AA116: Other control | AB116: Other (specify): Sorbent injection for SO3 reduction | AC116: 2008-06-01 | AD116: PM control | AE116: Electrostatic precipitator, hot side, w/o flue gas conditioning | AF116: 1984-06-01 | AG116: NOx control | AH116: Selective Catalytic Reduction | AI116: 2004-05-01 | AJ116: Other control | AK116: Other (specify): Sorbent injection for SO3 reduction | AL116: 2008-06-01 | AM116: SO2 control | AN116: Wet FGD - Spray Type | AO116: 2008-06-01
A117: 2718_ES-5 | B117: 116 | D117: coal | E117: 2718 | F117: G G Allen | G117: NC | H117: 5-2009 | I117: ES-5 | J117: Conventional Boiler | K117: Tangential firing | L117: 285.3 | M117: 2705 | N117: 9.481247809 | O117: bituminous | P117: bituminous | S117: 0.1192451495 | T117: 1.130592812 | Y117: 0.1192451495 | Z117: 1.130592812 | AA117: NOx control | AB117: Selective Noncatalytic Reduction | AC117: 2008-05-01 | AD117: PM control | AE117: Electrostatic precipitator, cold side, w/ flue gas conditioning | AF117: 2000-06-01 | AG117: SO2 control | AH117: Wet FGD - Spray Type | AI117: 2009-03-01
A118: 2727_Unit 3 | B118: 117 | D118: coal | E118: 2727 | F118: Marshall | G118: NC | H118: U3 | I118: Unit 3 | J118: Conventional Boiler | K118: Tangential firing | L118: 700 | M118: 6103.1 | N118: 8.718714286 | O118: bituminous | P118: bituminous | S118: 0.1303742153 | T118: 1.136695534 | Y118: 0.1303742153 | Z118: 1.136695534 | AA118: NOx control | AB118: Selective Catalytic Reduction | AC118: 2008-12-01 | AD118: PM control | AE118: Electrostatic precipitator, cold side, w/ flue gas conditioning | AF118: 2006-12-01 | AG118: SO2 control | AH118: Wet FGD - Spray Type | AI118: 2007-03-01
A119: 6041_1 | B119: 118 | D119: coal | E119: 6041 | F119: H L Spurlock Station | G119: KY | H119: Unit 01 | I119: 1 | J119: Conventional Boiler | K119: Wall firing - opposed firing | L119: 344 | M119: 3641 | N119: 10.58430233 | O119: bituminous | P119: bituminous | Q119: 0.2490666667 | R119: 2.636196899 | W119: 0.1086666667 | X119: 1.150160853 | Y119: 0.1086666667 | Z119: 1.150160853 | AA119: PM control | AB119: Electrostatic precipitator, cold side, w/o flue gas conditioning | AC119: 2003-05-01 | AD119: NOx control | AE119: Selective Catalytic Reduction | AF119: 2003-05-01 | AG119: SO2 control | AH119: Wet FGD - Unspecified | AI119: 2009-04-01 | AJ119: Other control | AK119: Wet electrostatic precipitator | AL119: 2009-04-01
A120: 7504_2 | B120: 119 | D120: coal | E120: 7504 | F120: Neil Simpson II | G120: WY | H120: NS2Cfg | I120: 2 | J120: Conventional Boiler | K120: Wall firing - front firing | L120: 88 | M120: 1100 | N120: 12.5 | O120: subbituminous | P120: subbituminous | Q120: 0.0921 | R120: 1.15125 | Y120: 0.0921 | Z120: 1.15125 | AA120: SO2 control | AB120: Dry FGD - Circulating Dry Scrubber | AC120: 1995-09-01 | AD120: PM control | AE120: Electrostatic precipitator, cold side, w/o flue gas conditioning | AF120: 1995-09-01
A121: 525_2 | B121: 120 | D121: coal | E121: 525 | F121: Hayden | G121: CO | H121: Unit 2 | I121: 2 | J121: Conventional Boiler | K121: Tangential firing | L121: 285 | M121: 2712 | N121: 9.515789474 | O121: bituminous | P121: bituminous | Q121: 0.136862069 | R121: 1.302350635 | U121: 0.1214094527 | V121: 1.155306792 | Y121: 0.1214094527 | Z121: 1.155306792 | AA121: SO2 control | AB121: Dry FGD - Spray Dryer | AC121: 1999-06-01 | AD121: PM control | AE121: Fabric Filter, reverse air | AF121: 1999-06-01
A122: 525_1 | B122: 121 | D122: coal | E122: 525 | F122: Hayden | G122: CO | H122: Unit 1 | I122: 1 | J122: Conventional Boiler | K122: Wall firing - front firing | L122: 202 | M122: 1963 | N122: 9.717821782 | O122: bituminous | P122: bituminous | Q122: 0.1189666667 | R122: 1.156096865 | U122: 0.1202144032 | V122: 1.168222146 | Y122: 0.1189666667 | Z122: 1.156096865 | AA122: SO2 control | AB122: Dry FGD - Spray Dryer | AC122: 1998-12-01 | AD122: PM control | AE122: Fabric Filter, reverse air | AF122: 1998-12-01
A123: 50888_BLR1 | B123: 122 | D123: coal | E123: 50888 | F123: Northampton Generating Company, L.P. | G123: PA | H123: GEN1 | I123: BLR1 | J123: Fluidized bed firing | K123: Fluidized bed firing | L123: 121 | M123: 1146 | N123: 9.47107438 | O123: coal refuse (culm or gob) | P123: coal refuse (culm or gob) | S123: 0.123535772 | T123: 1.170016485 | Y123: 0.123535772 | Z123: 1.170016485 | AA123: NOx control | AB123: Selective Noncatalytic Reduction | AC123: 1995-08-01 | AD123: PM control | AE123: Fabric Filter, pulse | AF123: 1995-08-01
A124: 2828_2 | B124: 123 | D124: coal | E124: 2828 | F124: Cardinal | G124: OH | H124: CD-U2 | I124: 2 | J124: Conventional Boiler | K124: Wall firing - opposed firing | L124: 615.2 | M124: 5275 | N124: 8.574447334 | O124: bituminous | P124: bituminous | Q124: 0.1369 | R124: 1.17384184 | Y124: 0.1369 | Z124: 1.17384184 | AA124: NOx control | AB124: Selective Catalytic Reduction | AC124: 2003-01-01 | AD124: Other control | AE124: Dry sorbent injection | AF124: 2007-12-01 | AG124: PM control | AH124: Electrostatic precipitator, cold side, w/o flue gas conditioning | AI124: 1980-05-01 | AJ124: SO2 control | AK124: Wet FGD - Jet Bubbling Reactor | AL124: 2007-12-01
A125: 2718_ES-1 | B125: 124 | D125: coal | E125: 2718 | F125: G G Allen | G125: NC | H125: 1-2009 | I125: ES-1 | J125: Conventional Boiler | K125: Tangential firing | L125: 176.2 | M125: 1738 | N125: 9.863791146 | O125: bituminous | P125: bituminous | S125: 0.1192451495 | T125: 1.17620925 | Y125: 0.1192451495 | Z125: 1.17620925 | AA125: NOx control | AB125: Selective Noncatalytic Reduction | AC125: 2004-05-01 | AD125: PM control | AE125: Electrostatic precipitator, cold side, w/o flue gas conditioning | AF125: 1988-10-01 | AG125: SO2 control | AH125: Wet FGD - Spray Type | AI125: 2009-02-01
A126: 160_3 | B126: 125 | D126: coal | E126: 160 | F126: Apache Station | G126: AZ | H126: ST3 | I126: 3 | J126: Conventional Boiler | K126: Turbo | L126: 204 | M126: 1932.521 | N126: 9.473142157 | O126: coal - subbituminous | P126: subbituminous | W126: 0.1249065004 | X126: 1.183257034 | Y126: 0.1249065004 | Z126: 1.183257034 | AA126: PM control | AB126: Electrostatic precipitator, hot side, w/o flue gas conditioning | AC126: 1978-06-01 | AD126: SO2 control | AE126: Wet FGD - Spray Type | AF126: 1978-06-01
A127: 55076_AA-002 | B127: 126 | D127: coal | E127: 55076 | F127: Red Hills Generating Facility | G127: MS | H127: 002 | I127: AA-002 | J127: Fluidized bed firing | K127: Fluidized bed firing | L127: 250 | M127: 2382.3 | N127: 9.5292 | O127: lignite | P127: lignite | S127: 0.124964237 | T127: 1.190809208 | Y127: 0.124964237 | Z127: 1.190809208 | AA127: PM control | AB127: Fabric Filter, unspecified | AC127: 2002-05-01
A128: 55076_AA-001 | B128: 127 | D128: coal | E128: 55076 | F128: Red Hills Generating Facility | G128: MS | H128: 001 | I128: AA-001 | J128: Fluidized bed firing | K128: Fluidized bed firing | L128: 250 | M128: 2401 | N128: 9.604 | O128: lignite | P128: lignite | S128: 0.124964237 | T128: 1.200156533 | Y128: 0.124964237 | Z128: 1.200156533 | AA128: PM control | AB128: Fabric Filter, unspecified | AC128: 2002-05-01
A129: 50976_AABO1 | B129: 128 | D129: coal | E129: 50976 | F129: INDIANTOWN COGENERATION L.P. | G129: FL | H129: 001 | I129: AABO1 | J129: Conventional Boiler | K129: Wall firing - opposed firing | L129: 361 | M129: 3422 | N129: 9.479224377 | O129: bituminous | P129: bituminous | S129: 0.1469212887 | T129: 1.392699861 | W129: 0.1266666667 | X129: 1.200701754 | Y129: 0.1266666667 | Z129: 1.200701754 | AA129: NOx control | AB129: Selective Catalytic Reduction | AC129: 1995-12-01 | AD129: SO2 control | AE129: Dry FGD - Spray Dryer | AF129: 1995-12-01 | AG129: PM control | AH129: Fabric Filter, pulse | AI129: 1995-12-01
A130: =E130&"_"&I130 -> 3954_1 | B130: 129 | D130: coal | E130: 3954 | F130: Mt. Storm | G130: WV | H130: Unit 1&2 | I130: 1 | J130: Conventional Boiler | K130: Tangential firing | L130: 552.8 | M130: 6446 | N130: 11.66063676 | O130: bituminous | P130: bituminous | S130: 0.1011359996 | T130: 1.204655912 | Y130: 0.1011359996 | Z130: 1.204655912 | AA130: NOx control | AB130: Selective Catalytic Reduction | AC130: 2003-05-01 | AD130: NOx control | AE130: Selective Catalytic Reduction | AF130: 2003-05-01 | AG130: PM control | AH130: Electrostatic precipitator, cold side, w/o flue gas conditioning | AI130: 1966-07-01 | AJ130: PM control | AK130: Electrostatic precipitator, cold side, w/o flue gas conditioning | AL130: 1965-09-01 | AM130: SO2 control | AN130: Wet FGD - Spray Type | AO130: 2002-03-01 | AP130: SO2 control | AQ130: Wet FGD - Spray Type | AR130: 2002-03-01
A131: 3954_2 | B131: 130 | D131: coal | E131: 3954 | F131: Mt. Storm | G131: WV | H131: Unit 1&2 | I131: 2 | J131: Conventional Boiler | K131: Tangential firing | L131: 555.9 | M131: 6760 | N131: 12.16046051 | O131: bituminous | P131: bituminous | S131: 0.1011359996 | T131: 1.204655912 | Y131: 0.1011359996 | Z131: 1.204655912 | AA131: NOx control | AB131: Selective Catalytic Reduction | AC131: 2003-05-01 | AD131: NOx control | AE131: Selective Catalytic Reduction | AF131: 2003-05-01 | AG131: PM control | AH131: Electrostatic precipitator, cold side, w/o flue gas conditioning | AI131: 1966-07-01 | AJ131: PM control | AK131: Electrostatic precipitator, cold side, w/o flue gas conditioning | AL131: 1965-09-01 | AM131: SO2 control | AN131: Wet FGD - Spray Type | AO131: 2002-03-01 | AP131: SO2 control | AQ131: Wet FGD - Spray Type | AR131: 2002-03-01
A132: 50776_BLR1 | B132: 131 | D132: coal | E132: 50776 | F132: PANTHER CREEK ENERGY FACILITY | G132: PA | H132: BG1 | I132: BLR1 | J132: Fluidized bed firing | K132: Fluidized bed firing | L132: 46.5 | M132: 600 | N132: 12.90322581 | O132: coal refuse (culm or gob) | P132: coal refuse (culm or gob) | S132: 0.09370060532 | T132: 1.209040069 | Y132: 0.09370060532 | Z132: 1.209040069 | AA132: NOx control | AB132: Selective Noncatalytic Reduction | AC132: 1992-10-01 | AD132: PM control | AE132: Fabric Filter, pulse | AF132: 1992-10-01
A133: 50776_BLR2 | B133: 132 | D133: coal | E133: 50776 | F133: PANTHER CREEK ENERGY FACILITY | G133: PA | H133: BG2 | I133: BLR2 | J133: Fluidized bed firing | K133: Fluidized bed firing | L133: 46.5 | M133: 600 | N133: 12.90322581 | O133: coal refuse (culm or gob) | P133: coal refuse (culm or gob) | S133: 0.09370060532 | T133: 1.209040069 | Y133: 0.09370060532 | Z133: 1.209040069 | AA133: NOx control | AB133: Selective Noncatalytic Reduction | AC133: 1992-10-01 | AD133: PM control | AE133: Fabric Filter, pulse | AF133: 1992-10-01
A134: 469_3 | B134: 133 | D134: coal | E134: 469 | F134: Cherokee | G134: CO | H134: Unit 3 | I134: 3 | J134: Conventional Boiler | K134: Wall firing - front firing | L134: 165 | M134: 1877 | N134: 11.37575758 | O134: bituminous | P134: bituminous | Q134: 0.1291 | R134: 1.468610303 | U134: 0.1109695912 | V134: 1.262363167 | Y134: 0.1109695912 | Z134: 1.262363167 | AA134: SO2 control | AB134: Dry FGD - Spray Dryer | AC134: 2002-06-01 | AD134: PM control | AE134: Fabric Filter, reverse air | AF134: 1988-02-01
A135: 10343_SG-101 | B135: 134 | D135: coal | E135: 10343 | F135: Foster Wheeler Mt Carmel Cogen | G135: PA | H135: SG-101 | I135: SG-101 | J135: Fluidized bed firing | K135: Fluidized bed firing | L135: 43 | M135: 505 | N135: 11.74418605 | O135: coal refuse (culm or gob) | P135: coal refuse (culm or gob) | S135: 0.1086438628 | T135: 1.275933738 | Y135: 0.1086438628 | Z135: 1.275933738 | AA135: PM control | AB135: Fabric Filter, reverse air | AC135: 1990-01-01
A136: 3118_2 | B136: 135 | D136: coal | E136: 3118 | F136: Conemaugh | G136: PA | H136: CON-2 | I136: 2 | J136: Conventional Boiler | K136: Tangential firing | L136: 936 | M136: 8985 | N136: 9.599358974 | O136: bituminous | P136: bituminous | S136: 0.1345775387 | T136: 1.291858104 | Y136: 0.1345775387 | Z136: 1.291858104 | AA136: PM control | AB136: Electrostatic precipitator, cold side, w/ flue gas conditioning | AC136: 1971-05-01 | AD136: SO2 control | AE136: Wet FGD - Spray Type | AF136: 1995-11-01
A137: 2832_Unit 8 | B137: 136 | D137: coal | E137: 2832 | F137: Miami Fort | G137: OH | H137: U8 | I137: Unit 8 | J137: Conventional Boiler | K137: Wall firing - opposed firing | L137: 550 | M137: 5003 | N137: 9.096363636 | O137: coal - bituminous | P137: bituminous | W137: 0.1446666667 | X137: 1.315940606 | Y137: 0.1446666667 | Z137: 1.315940606 | AA137: NOx control | AB137: Selective Catalytic Reduction | AC137: 2001-01-01 | AD137: SO2 control | AE137: Wet FGD - Spray Type | AF137: 2007-01-01 | AG137: Other control | AH137: Dry sorbent injection | AI137: 2007-01-01 | AJ137: PM control | AK137: Electrostatic precipitator, cold side, w/o flue gas conditioning | AL137: 1978-02-01
A138: 3118_1 | B138: 137 | D138: coal | E138: 3118 | F138: Conemaugh | G138: PA | H138: CON-1 | I138: 1 | J138: Conventional Boiler | K138: Tangential firing | L138: 936 | M138: 8985 | N138: 9.599358974 | O138: bituminous | P138: bituminous | S138: 0.1391725837 | T138: 1.335967591 | Y138: 0.1391725837 | Z138: 1.335967591 | AA138: PM control | AB138: Electrostatic precipitator, cold side, w/ flue gas conditioning | AC138: 1970-05-01 | AD138: SO2 control | AE138: Wet FGD - Spray Type | AF138: 1995-01-01
A139: 127_1 | B139: 138 | D139: coal | E139: 127 | F139: Oklaunion | G139: TX | H139: OKL-1 | I139: 1 | J139: Conventional Boiler | K139: Wall firing - opposed firing | L139: 670 | M139: 6800 | N139: 10.14925373 | O139: subbituminous | P139: subbituminous | Q139: 0.1845 | R139: 1.872537313 | S139: 0.1356173302 | T139: 1.376414695 | Y139: 0.1356173302 | Z139: 1.376414695 | AA139: PM control | AB139: Electrostatic precipitator, cold side, w/o flue gas conditioning | AC139: 1986-01-01 | AD139: SO2 control | AE139: Wet FGD - Spray Type | AF139: 1986-12-01
A140: 2079_5A | B140: 139 | D140: coal | E140: 2079 | F140: Hawthorn | G140: MO | H140: 5A | I140: 5A | J140: Conventional Boiler | K140: Wall firing - opposed firing | L140: 594 | M140: 6600 | N140: 11.11111111 | O140: subbituminous, bituminous | P140: subbituminous, bituminous | S140: 0.1253539324 | T140: 1.392821471 | Y140: 0.1253539324 | Z140: 1.392821471 | AA140: NOx control | AB140: Selective Catalytic Reduction | AC140: 2001-05-01 | AD140: SO2 control | AE140: Dry FGD - Spray Dryer | AF140: 2001-05-01 | AG140: PM control | AH140: Fabric Filter, pulse | AI140: 2001-05-01
A141: 6041_2 | B141: 140 | D141: coal | E141: 6041 | F141: H L Spurlock Station | G141: KY | H141: Unit 02 | I141: 2 | J141: Conventional Boiler | K141: Tangential firing | L141: 555 | M141: 5600 | N141: 10.09009009 | O141: bituminous | P141: bituminous | Q141: 0.1405333333 | R141: 1.417993994 | Y141: 0.1405333333 | Z141: 1.417993994 | AA141: PM control | AB141: Electrostatic precipitator, hot side, w/o flue gas conditioning | AC141: 1981-02-01 | AD141: NOx control | AE141: Selective Catalytic Reduction | AF141: 2002-05-01 | AG141: SO2 control | AH141: Wet FGD - Unspecified | AI141: 2008-10-01 | AJ141: Other control | AK141: Wet electrostatic precipitator | AL141: 2008-10-01
A142: 2832_Unit 7 | B142: 141 | D142: coal | E142: 2832 | F142: Miami Fort | G142: OH | H142: U7 | I142: Unit 7 | J142: Conventional Boiler | K142: Wall firing - opposed firing | L142: 550 | M142: 4995 | N142: 9.081818182 | O142: coal - bituminous | P142: bituminous | W142: 0.1576666667 | X142: 1.4319 | Y142: 0.1576666667 | Z142: 1.4319 | AA142: NOx control | AB142: Selective Catalytic Reduction | AC142: 2007-01-01 | AD142: SO2 control | AE142: Wet FGD - Spray Type | AF142: 2007-01-01 | AG142: Other control | AH142: Dry sorbent injection | AI142: 2007-01-01 | AJ142: PM control | AK142: Electrostatic precipitator, cold side, w/o flue gas conditioning | AL142: 1975-05-01
A143: 3399_1 | B143: 142 | D143: coal | E143: 3399 | F143: Cumberland | G143: TN | H143: 1 | I143: 1 | J143: Conventional Boiler | K143: Wall firing - opposed firing | L143: 1300 | M143: 14130 | N143: 10.86923077 | O143: bituminous | P143: bituminous | S143: 0.1326785566 | T143: 1.442113849 | Y143: 0.1326785566 | Z143: 1.442113849 | AA143: NOx control | AB143: Selective Catalytic Reduction | AC143: 2003-05-01 | AD143: Other control | AE143: Other (specify): Hydrated Lime for Opacity | AF143: 2006-11-01 | AG143: PM control | AH143: Electrostatic precipitator, cold side, w/o flue gas conditioning | AI143: 1982-06-01 | AJ143: SO2 control | AK143: Wet FGD - Spray Type | AL143: 1995-01-01
A144: 55479_3 | B144: 143 | D144: coal | E144: 55479 | F144: Wygen 1 | G144: WY | H144: WYG1Cfg | I144: 3 | J144: Conventional Boiler | K144: Wall firing - front firing | L144: 91 | M144: 1053 | N144: 11.57142857 | O144: subbituminous | P144: subbituminous | Q144: 0.1276666667 | R144: 1.477285714 | Y144: 0.1276666667 | Z144: 1.477285714 | AA144: NOx control | AB144: Selective Catalytic Reduction | AC144: 2003-04-01 | AD144: SO2 control | AE144: Dry FGD - Spray Dryer | AF144: 2003-04-01 | AG144: PM control | AH144: Fabric Filter, pulse | AI144: 2003-04-01
A145: 2840_4 | B145: 144 | D145: coal | E145: 2840 | F145: Conesville | G145: OH | H145: CV-4 | I145: 4 | J145: Conventional Boiler | K145: Tangential firing | L145: 841.5 | M145: 7960 | N145: 9.459298871 | O145: bituminous | P145: bituminous | Q145: 0.157 | R145: 1.485109923 | Y145: 0.157 | Z145: 1.485109923 | AA145: NOx control | AB145: Selective Catalytic Reduction | AC145: 2009-01-01 | AD145: PM control | AE145: Electrostatic precipitator, cold side, w/o flue gas conditioning | AF145: 1973-06-01 | AG145: Other control | AH145: Dry sorbent injection | AI145: 2009-06-01 | AJ145: SO2 control | AK145: Wet FGD - Jet Bubbling Reactor | AL145: 2009-06-01
A146: 3944_1 | B146: 145 | D146: coal | E146: 3944 | F146: Harrison Power Station | G146: WV | H146: Boiler1 | I146: 1 | J146: Conventional Boiler | K146: Wall firing - unspecified | L146: 693 | M146: 5779 | N146: 8.339105339 | O146: bituminous | P146: bituminous | S146: 0.1782925631 | T146: 1.486800465 | Y146: 0.1782925631 | Z146: 1.486800465 | AA146: NOx control | AB146: Selective Catalytic Reduction | AC146: 2002-05-01 | AD146: PM control | AE146: Electrostatic precipitator, cold side, unspecified | AF146: 1974-12-01 | AG146: SO2 control | AH146: Wet FGD - Spray Type | AI146: 1994-11-01
A147: 130_4 | B147: 146 | D147: coal | E147: 130 | F147: Cross | G147: SC | H147: C4 | I147: 4 | J147: Conventional Boiler | K147: Tangential firing | L147: 625 | M147: 6798 | N147: 10.8768 | O147: bituminous | P147: bituminous | Q147: 0.1386 | R147: 1.50752448 | Y147: 0.1386 | Z147: 1.50752448 | AA147: NOx control | AB147: Selective Catalytic Reduction | AC147: 2008-05-01 | AD147: PM control | AE147: Electrostatic precipitator, cold side, w/o flue gas conditioning | AF147: 2008-05-01 | AG147: SO2 control | AH147: Wet FGD - Spray Type | AI147: 2008-05-01
A148: 10566_Boil 1 | B148: 147 | D148: coal | E148: 10566 | F148: Chambers Cogeneration LP | G148: NJ | H148: Boil 1 | I148: Boil 1 | J148: Conventional Boiler | K148: Wall firing - front firing | L148: 142.5 | M148: 1387 | N148: 9.733333333 | O148: bituminous | P148: bituminous | S148: 0.1591146155 | T148: 1.54871559 | Y148: 0.1591146155 | Z148: 1.54871559 | AA148: NOx control | AB148: Selective Catalytic Reduction | AC148: 1994-03-01 | AD148: SO2 control | AE148: Dry FGD - Spray Dryer | AF148: 1994-03-01 | AG148: PM control | AH148: Fabric Filter, reverse air | AI148: 1994-03-01
A149: 10678_BLR1 | B149: 148 | D149: coal | E149: 10678 | F149: AES Warrior Run Cogeneration Facility | G149: MD | H149: BLR1 | I149: BLR1 | J149: Fluidized bed firing | K149: Fluidized bed firing | L149: 202 | M149: 2047 | N149: 10.13366337 | O149: bituminous | P149: bituminous | Q149: 0.1539333333 | R149: 1.559908581 | Y149: 0.1539333333 | Z149: 1.559908581 | AA149: NOx control | AB149: Selective Noncatalytic Reduction | AC149: 2000-02-01 | AD149: PM control | AE149: Fabric Filter, pulse | AF149: 2000-02-01
A150: 10672_CBC | B150: 149 | D150: coal | E150: 10672 | F150: Cedar Bay Generating Company L.P. | G150: FL | H150: CBC1 | I150: CBC | J150: Fluidized bed firing | K150: Fluidized bed firing | L150: 92 | M150: 1063 | N150: 11.55434783 | O150: bituminous | P150: bituminous | Q150: 0.1355666667 | R150: 1.56638442 | Y150: 0.1355666667 | Z150: 1.56638442 | AA150: SO2 control | AB150: Dry FGD - Circulating Dry Scrubber | AC150: 1994-01-01 | AD150: NOx control | AE150: Selective Noncatalytic Reduction | AF150: 1994-01-01 | AG150: PM control | AH150: Fabric Filter, pulse | AI150: 1994-01-01
A151: 6113_4 | B151: 150 | D151: coal | E151: 6113 | F151: Gibson | G151: IN | H151: 4 | I151: 4 | J151: Conventional Boiler | K151: Wall firing - opposed firing | L151: 661 | M151: 6265 | N151: 9.47806354 | O151: bituminous | P151: bituminous | S151: 0.1669071384 | T151: 1.581956463 | W151: 0.381 | X151: 3.611142209 | Y151: 0.1669071384 | Z151: 1.581956463 | AA151: NOx control | AB151: Selective Catalytic Reduction | AC151: 2003-04-01 | AD151: Other control | AE151: Other (specify): Soda Ash Injection for SO3 mitigation | AF151: 2004-06-01 | AG151: PM control | AH151: Electrostatic precipitator, cold side, w/o flue gas conditioning | AI151: 1978-01-01 | AJ151: SO2 control | AK151: Wet FGD - Tray Type | AL151: 1994-12-01
A152: 10566_Boil 2 | B152: 151 | D152: coal | E152: 10566 | F152: Chambers Cogeneration LP | G152: NJ | H152: Boil 2 | I152: Boil 2 | J152: Conventional Boiler | K152: Wall firing - front firing | L152: 142.5 | M152: 1387 | N152: 9.733333333 | O152: bituminous | P152: bituminous | S152: 0.1681579801 | T152: 1.636737673 | Y152: 0.1681579801 | Z152: 1.636737673 | AA152: NOx control | AB152: Selective Catalytic Reduction | AC152: 1994-03-01 | AD152: SO2 control | AE152: Dry FGD - Spray Dryer | AF152: 1994-03-01 | AG152: PM control | AH152: Fabric Filter, reverse air | AI152: 1994-03-01
A153: 645_3 | B153: 152 | D153: coal | E153: 645 | F153: Big Bend | G153: FL | H153: BB03_SCR_iso | I153: 3 | J153: Conventional Boiler | K153: Wall firing - opposed firing | L153: 400 | M153: 4115 | N153: 10.2875 | O153: coal - bituminous, petroleum coke | P153: subbituminous | W153: 0.1623329283 | X153: 1.67 | Y153: 0.1623329283 | Z153: 1.67 | AA153: NOx control | AB153: Selective Catalytic Reduction | AC153: 2008-07-01 | AD153: PM control | AE153: Electrostatic precipitator, hot side, w/o flue gas conditioning | AF153: 1976-05-01 | AG153: SO2 control | AH153: Wet FGD - Packed Type | AI153: 2008-01-01
A154: 3944_3 | B154: 153 | D154: coal | E154: 3944 | F154: Harrison Power Station | G154: WV | H154: Boiler3 | I154: 3 | J154: Conventional Boiler | K154: Wall firing - unspecified | L154: 692 | M154: 5876 | N154: 8.49132948 | O154: bituminous | P154: bituminous | S154: 0.2052348934 | T154: 1.7427171 | Y154: 0.2052348934 | Z154: 1.7427171 | AA154: NOx control | AB154: Selective Catalytic Reduction | AC154: 2003-05-01 | AD154: PM control | AE154: Electrostatic precipitator, cold side, unspecified | AF154: 1972-12-01 | AG154: SO2 control | AH154: Wet FGD - Spray Type | AI154: 1994-11-01
A155: 2403_U2 | B155: 154 | D155: coal | E155: 2403 | F155: PSEG Hudson Generating Station | G155: NJ | H155: HUDU2E2PT2OS1-Coal | I155: U2 | J155: Conventional Boiler | K155: Wall firing - opposed firing | L155: 659.7 | M155: 6600 | N155: 10.00454752 | O155: natural gas | P155: subbituminous | W155: 0.1829861973 | X155: 1.830694107 | Y155: 0.1829861973 | Z155: 1.830694107 | AA155: NOx control | AB155: Selective Noncatalytic Reduction | AC155: 1999-03-01 | AD155: PM control | AE155: Electrostatic precipitator, cold side, w/ flue gas conditioning | AF155: 1968-12-01
A156: 568_BHB3 | B156: 155 | D156: coal | E156: 568 | F156: Bridgeport Station | G156: CT | H156: BHSEMU3OS2-Coal | I156: BHB3 | J156: Conventional Boiler | K156: Tangential firing | L156: 403 | M156: 4100 | N156: 10.17369727 | O156: subbituminous | P156: subbituminous | S156: 0.180655837 | T156: 1.837937796 | Y156: 0.180655837 | Z156: 1.837937796 | AA156: PM control | AB156: Electrostatic precipitator, cold side, w/o flue gas conditioning | AC156: 1968-08-01 | AD156: Other control | AE156: Activated carbon injection | AF156: 2008-07-01 | AG156: PM control | AH156: Fabric Filter, pulse | AI156: 2008-01-01
A157: 1382_H1 | B157: 156 | D157: coal | E157: 1382 | F157: HMP&L Station Two Henderson | G157: KY | H157: 1 | I157: H1 | J157: Conventional Boiler | K157: Wall firing - rear firing | L157: 166.1 | M157: 1799 | N157: 10.8308248 | O157: bituminous | P157: bituminous | Q157: 0.1753666667 | R157: 1.899365643 | Y157: 0.1753666667 | Z157: 1.899365643 | AA157: NOx control | AB157: Selective Catalytic Reduction | AC157: 2003-10-01 | AD157: PM control | AE157: Electrostatic precipitator, cold side, w/o flue gas conditioning | AF157: 1973-06-01 | AG157: SO2 control | AH157: Wet FGD - Tray Type | AI157: 1995-06-01
A158: 207_PPBoiler2 | B158: 157 | D158: coal | E158: 207 | F158: St Johns River Power Park | G158: FL | H158: PPUnit2Configuration | I158: PPBoiler2 | J158: Conventional Boiler | K158: Wall firing - opposed firing | L158: 660 | M158: 6144 | N158: 9.309090909 | O158: bituminous | P158: bituminous | Q158: 0.207 | R158: 1.926981818 | Y158: 0.207 | Z158: 1.926981818 | AA158: NOx control | AB158: Selective Catalytic Reduction | AC158: 2009-03-01 | AD158: NOx control | AE158: Other (specify): Ammonia Injection for SO3 Mitigation | AF158: 2009-03-01 | AG158: PM control | AH158: Electrostatic precipitator, cold side, w/ flue gas conditioning | AI158: 1986-12-01 | AJ158: SO2 control | AK158: Wet FGD - Spray/Tray Type | AL158: 1988-03-01 | AM158: SO2 control | AN158: Wet FGD - Spray Type | AO158: 1988-03-01
A159: 963_31 | B159: 158 | D159: coal | E159: 963 | F159: Dallman | G159: IL | H159: 31 | I159: 31 | J159: Conventional Boiler | K159: Cyclone firing | L159: 90 | M159: 962.12 | N159: 10.69022222 | O159: bituminous | P159: bituminous | Q159: 0.1821666667 | R159: 1.947402148 | Y159: 0.1821666667 | Z159: 1.947402148 | AA159: NOx control | AB159: Selective Catalytic Reduction | AC159: 2003-05-01 | AD159: PM control | AE159: Electrostatic precipitator, cold side, w/o flue gas conditioning | AF159: 1968-06-01 | AG159: SO2 control | AH159: Wet FGD - Packed Type | AI159: 2001-08-01
A160: 207_PPBoiler1 | B160: 159 | D160: coal | E160: 207 | F160: St Johns River Power Park | G160: FL | H160: PPUnit1Configuration | I160: PPBoiler1 | J160: Conventional Boiler | K160: Wall firing - opposed firing | L160: 660 | M160: 6144 | N160: 9.309090909 | O160: bituminous | P160: bituminous | Q160: 0.21052 | R160: 1.959749818 | Y160: 0.21052 | Z160: 1.959749818 | AA160: NOx control | AB160: Selective Catalytic Reduction | AC160: 2009-07-01 | AD160: NOx control | AE160: Other (specify): Ammonia Injection for SO3 Mitigation | AF160: 2009-06-01 | AG160: PM control | AH160: Electrostatic precipitator, cold side, w/ flue gas conditioning | AI160: 1988-03-01 | AJ160: SO2 control | AK160: Wet FGD - Spray/Tray Type | AL160: 1986-12-01 | AM160: SO2 control | AN160: Wet FGD - Spray Type | AO160: 1986-12-01
A161: 963_32 | B161: 160 | D161: coal | E161: 963 | F161: Dallman | G161: IL | H161: 32 | I161: 32 | J161: Conventional Boiler | K161: Cyclone firing | L161: 84 | M161: 905.94 | N161: 10.785 | O161: bituminous | P161: bituminous | Q161: 0.1821666667 | R161: 1.9646675 | Y161: 0.1821666667 | Z161: 1.9646675 | AA161: NOx control | AB161: Selective Catalytic Reduction | AC161: 2003-05-01 | AD161: PM control | AE161: Electrostatic precipitator, cold side, w/o flue gas conditioning | AF161: 1972-06-01 | AG161: SO2 control | AH161: Wet FGD - Packed Type | AI161: 2001-08-01
A162: 2828_1 | B162: 161 | D162: coal | E162: 2828 | F162: Cardinal | G162: OH | H162: CD-U1 | I162: 1 | J162: Conventional Boiler | K162: Wall firing - opposed firing | L162: 615.2 | M162: 5275 | N162: 8.574447334 | O162: bituminous | P162: bituminous | Q162: 0.23495 | R162: 2.014566401 | Y162: 0.23495 | Z162: 2.014566401 | AA162: NOx control | AB162: Selective Catalytic Reduction | AC162: 2003-01-01 | AD162: Other control | AE162: Dry sorbent injection | AF162: 2008-03-01 | AG162: PM control | AH162: Electrostatic precipitator, cold side, w/o flue gas conditioning | AI162: 1980-05-01 | AJ162: SO2 control | AK162: Wet FGD - Jet Bubbling Reactor | AL162: 2008-03-01
A163: 3122_3 | B163: 162 | D163: coal | E163: 3122 | F163: Homer City Station | G163: PA | H163: HC3CONFIG | I163: 3 | J163: Conventional Boiler | K163: Wall firing - opposed firing | L163: 680 | M163: 6175 | N163: 9.080882353 | O163: bituminous | P163: bituminous | Q163: 0.2258333333 | R163: 2.050765931 | Y163: 0.2258333333 | Z163: 2.050765931 | AA163: NOx control | AB163: Selective Catalytic Reduction | AC163: 2001-06-01 | AD163: PM control | AE163: Electrostatic precipitator, cold side, w/ flue gas conditioning | AF163: 1977-12-01 | AG163: SO2 control | AH163: Wet FGD - Spray Type | AI163: 2001-09-01
A164: 10673_BLR B | B164: 163 | D164: coal | E164: 10673 | F164: AES Hawaii | G164: HI | H164: 002 | I164: BLR B | J164: Fluidized bed firing | K164: Fluidized bed firing | L164: 101.5 | M164: 944.2 | N164: 9.302463054 | O164: bituminous | P164: bituminous | Q164: 0.2250333333 | R164: 2.093364269 | Y164: 0.2250333333 | Z164: 2.093364269 | AA164: NOx control | AB164: Selective Noncatalytic Reduction | AD164: PM control | AE164: Fabric Filter, unspecified
A165: 50951_1 | B165: 164 | D165: coal | E165: 50951 | F165: Sunnyside Cogen Associates | G165: UT | H165: Config 1 | I165: 1 | J165: Fluidized bed firing | K165: Fluidized bed firing | L165: 60 | M165: 700 | N165: 11.66666667 | O165: bituminous | P165: bituminous | S165: 0.1814850272 | T165: 2.117325318 | W165: 0.1838571429 | X165: 2.145 | Y165: 0.1814850272 | Z165: 2.117325318 | AA165: NOx control | AB165: Other (specify): Anhydrous ammonia injection | AC165: 1993-01-01 | AD165: SO2 control | AE165: Dry FGD - Sorbent Injection | AF165: 1993-01-01 | AG165: PM control | AH165: Fabric Filter, pulse | AI165: 1993-01-01
A166: 10673_BLR A | B166: 165 | D166: coal | E166: 10673 | F166: AES Hawaii | G166: HI | H166: 001 | I166: BLR A | J166: Fluidized bed firing | K166: Fluidized bed firing | L166: 101.5 | M166: 1021.4 | N166: 10.06305419 | O166: bituminous | P166: bituminous | Q166: 0.2233333333 | R166: 2.247415435 | Y166: 0.2233333333 | Z166: 2.247415435 | AA166: NOx control | AB166: Selective Noncatalytic Reduction | AD166: PM control | AE166: Fabric Filter, unspecified
A167: 3399_2 | B167: 166 | D167: coal | E167: 3399 | F167: Cumberland | G167: TN | H167: 2 | I167: 2 | J167: Conventional Boiler | K167: Wall firing - opposed firing | L167: 1300 | M167: 14130 | N167: 10.86923077 | O167: bituminous | P167: bituminous | S167: 0.2086599878 | T167: 2.26797356 | Y167: 0.2086599878 | Z167: 2.26797356 | AA167: NOx control | AB167: Selective Catalytic Reduction | AC167: 2004-05-01 | AD167: Other control | AE167: Other (specify): Hydrated Lime for opacity | AF167: 2006-11-01 | AG167: PM control | AH167: Electrostatic precipitator, cold side, w/o flue gas conditioning | AI167: 1982-06-01 | AJ167: SO2 control | AK167: Wet FGD - Spray Type | AL167: 1995-01-01
A168: 1382_H2 | B168: 167 | D168: coal | E168: 1382 | F168: HMP&L Station Two Henderson | G168: KY | H168: 2 | I168: H2 | J168: Conventional Boiler | K168: Wall firing - rear firing | L168: 173.1 | M168: 1866.2 | N168: 10.78105142 | O168: bituminous | P168: bituminous | Q168: 0.2149 | R168: 2.316847949 | Y168: 0.2149 | Z168: 2.316847949 | AA168: NOx control | AB168: Selective Catalytic Reduction | AC168: 2004-04-01 | AD168: PM control | AE168: Electrostatic precipitator, cold side, w/o flue gas conditioning | AF168: 1974-04-01 | AG168: SO2 control | AH168: Wet FGD - Tray Type | AI168: 1995-06-01
A169: 6041_3 | B169: 168 | D169: coal | E169: 6041 | F169: H L Spurlock Station | G169: KY | H169: Unit 03 | I169: 3 | J169: Fluidized bed firing | K169: Fluidized bed firing | L169: 300 | M169: 2500 | N169: 8.333333333 | O169: bituminous | P169: bituminous | Q169: 0.2807 | R169: 2.339166667 | Y169: 0.2807 | Z169: 2.339166667 | AA169: NOx control | AB169: Selective Noncatalytic Reduction | AC169: 2005-03-01 | AD169: SO2 control | AE169: Dry FGD - Unspecified | AF169: 2005-03-01 | AG169: PM control | AH169: Fabric Filter, pulse | AI169: 2005-03-01
A170: 3788_4 | B170: 169 | D170: coal | E170: 3788 | F170: Potomac River | G170: VA | H170: 4 | I170: 4 | J170: Conventional Boiler | K170: Tangential firing | L170: 108 | M170: 961 | N170: 8.898148148 | O170: coal - bituminous | P170: bituminous | W170: 0.27 | X170: 2.4025 | Y170: 0.27 | Z170: 2.4025 | AA170: SO2 control | AB170: Dry FGD - Sorbent Injection | AC170: 2006-05-01 | AD170: PM control | AE170: Electrostatic precipitator, hot side, w/o flue gas conditioning | AF170: 1978-10-01 | AG170: PM control | AH170: Electrostatic precipitator, cold side, w/o flue gas conditioning | AI170: 1956-02-01
A171: 8102_2 | B171: 170 | D171: coal | E171: 8102 | F171: General James M. Gavin | G171: OH | H171: GA-2 | I171: 2 | J171: Conventional Boiler | K171: Wall firing - opposed firing | L171: 1320 | M171: 11936 | N171: 9.042424242 | O171: bituminous | P171: bituminous | Q171: 0.2686923077 | R171: 2.429629837 | Y171: 0.2686923077 | Z171: 2.429629837 | AA171: NOx control | AB171: Selective Catalytic Reduction | AC171: 2000-01-01 | AD171: Other control | AE171: Dry sorbent injection | AF171: 2001-01-01 | AG171: PM control | AH171: Electrostatic precipitator, cold side, w/o flue gas conditioning | AI171: 1975-03-01 | AJ171: SO2 control | AK171: Wet FGD - Spray Type | AL171: 1995-03-01
A172: 1356_3 | B172: 171 | D172: coal | E172: 1356 | F172: Ghent | G172: KY | H172: GH3 | I172: 3 | J172: Conventional Boiler | K172: Wall firing - opposed firing | L172: 525 | M172: 5868 | N172: 11.17714286 | O172: bituminous | P172: bituminous | Q172: 0.2178333333 | R172: 2.434754286 | Y172: 0.2178333333 | Z172: 2.434754286 | AA172: Other control | AB172: Other (specify): Sorbent injection for SO3 reduction | AC172: 2008-06-01 | AD172: PM control | AE172: Electrostatic precipitator, hot side, w/o flue gas conditioning | AF172: 1981-05-01 | AG172: NOx control | AH172: Selective Catalytic Reduction | AI172: 2004-05-01 | AJ172: Other control | AK172: Other (specify): Sorbent injection for SO3 reduction | AL172: 2008-06-01 | AM172: SO2 control | AN172: Wet FGD - Spray Type | AO172: 2007-05-01
A173: 10675_B | B173: 172 | D173: coal | E173: 10675 | F173: AES Thames | G173: CT | H173: B | I173: B | J173: Fluidized bed firing | K173: Fluidized bed firing | L173: 104 | M173: 1002 | N173: 9.634615385 | O173: bituminous | P173: bituminous | Q173: 0.2528666667 | R173: 2.436273077 | W173: 0.29 | X173: 2.794038462 | Y173: 0.2528666667 | Z173: 2.436273077 | AA173: SO2 control | AB173: Dry FGD - Circulating Dry Scrubber | AC173: 1990-03-01 | AD173: PM control | AE173: Fabric Filter, pulse | AF173: 1990-03-01
A174: 10675_A | B174: 173 | D174: coal | E174: 10675 | F174: AES Thames | G174: CT | H174: A | I174: A | J174: Fluidized bed firing | K174: Fluidized bed firing | L174: 104 | M174: 1002 | N174: 9.634615385 | O174: bituminous | P174: bituminous | Q174: 0.2576 | R174: 2.481876923 | W174: 0.29 | X174: 2.794038462 | Y174: 0.2576 | Z174: 2.481876923 | AA174: SO2 control | AB174: Dry FGD - Circulating Dry Scrubber | AC174: 1990-03-01 | AD174: PM control | AE174: Fabric Filter, pulse | AF174: 1990-03-01
A175: 3149_2 | B175: 174 | D175: coal | E175: 3149 | F175: PPL Montour | G175: PA | H175: U2 | I175: 2 | J175: Conventional Boiler | K175: Tangential firing | L175: 792 | M175: 7239 | N175: 9.140151515 | O175: bituminous | P175: bituminous | S175: 0.2772170638 | T175: 2.533805965 | Y175: 0.2772170638 | Z175: 2.533805965 | AA175: PM control | AB175: Electrostatic precipitator, cold side, w/o flue gas conditioning | AC175: 2000-05-01 | AD175: NOx control | AE175: Selective Catalytic Reduction | AF175: 2000-05-01 | AG175: SO2 control | AH175: Wet FGD - Tray Type | AI175: 2008-03-01
A176: 8102_1 | B176: 175 | D176: coal | E176: 8102 | F176: General James M. Gavin | G176: OH | H176: GA-1 | I176: 1 | J176: Conventional Boiler | K176: Wall firing - opposed firing | L176: 1320 | M176: 11936 | N176: 9.042424242 | O176: bituminous | P176: bituminous | Q176: 0.2907333333 | R176: 2.628934141 | Y176: 0.2907333333 | Z176: 2.628934141 | AA176: NOx control | AB176: Selective Catalytic Reduction | AC176: 2000-01-01 | AD176: Other control | AE176: Dry sorbent injection | AF176: 2001-01-01 | AG176: PM control | AH176: Electrostatic precipitator, cold side, w/o flue gas conditioning | AI176: 1974-04-01 | AJ176: SO2 control | AK176: Wet FGD - Spray Type | AL176: 1994-12-01
A177: 10849_BLR1 | B177: 176 | D177: coal | E177: 10849 | F177: Silver Bay Power | G177: MN | H177: GEN1 | I177: BLR1 | J177: Conventional Boiler | K177: Wall firing - front firing | L177: 45 | M177: 371.9118719 | N177: 8.264708264 | O177: subbituminous | P177: subbituminous | Q177: 0.4413333333 | R177: 3.647491247 | W177: 0.3366666667 | X177: 2.782451782 | Y177: 0.3366666667 | Z177: 2.782451782 | AA177: PM control | AB177: Fabric Filter, reverse air | AC177: 1980-01-01
A178: 645_4 | B178: 177 | D178: coal | E178: 645 | F178: Big Bend | G178: FL | H178: BB04_SCR_iso | I178: 4 | J178: Conventional Boiler | K178: Tangential firing | L178: 465 | M178: 4330 | N178: 9.311827957 | O178: coal - bituminous, petroleum coke, coal refuse | P178: subbituminous | W178: 0.3039485647 | X178: 2.830316742 | Y178: 0.3039485647 | Z178: 2.830316742 | AA178: NOx control | AB178: Selective Catalytic Reduction | AC178: 2007-06-01 | AD178: PM control | AE178: Electrostatic precipitator, hot side, w/o flue gas conditioning | AF178: 1985-02-01 | AG178: SO2 control | AH178: Wet FGD - Packed Type | AI178: 2008-01-01
A179: 3788_5 | B179: 178 | D179: coal | E179: 3788 | F179: Potomac River | G179: VA | H179: 5 | I179: 5 | J179: Conventional Boiler | K179: Tangential firing | L179: 108 | M179: 961 | N179: 8.898148148 | O179: coal - bituminous | P179: bituminous | W179: 0.32 | X179: 2.847407407 | Y179: 0.32 | Z179: 2.847407407 | AA179: SO2 control | AB179: Dry FGD - Sorbent Injection | AC179: 2006-05-01 | AD179: PM control | AE179: Electrostatic precipitator, hot side, w/o flue gas conditioning | AF179: 1978-10-01 | AG179: PM control | AH179: Electrostatic precipitator, cold side, w/o flue gas conditioning | AI179: 1957-05-01
A180: 6664_101 | B180: 179 | D180: coal | E180: 6664 | F180: Louisa | G180: IA | H180: 101 | I180: 101 | J180: Conventional Boiler | K180: Wall firing - unspecified | L180: 805 | M180: 8624 | N180: 10.71304348 | O180: subbituminous | P180: subbituminous | Q180: 0.2683 | R180: 2.874309565 | Y180: 0.2683 | Z180: 2.874309565 | AA180: SO2 control | AB180: Dry FGD - Circulating Dry Scrubber | AC180: 2007-12-01 | AD180: PM control | AE180: Fabric Filter, pulse | AF180: 2007-12-01
A181: 50611_031 | B181: 180 | D181: coal | E181: 50611 | F181: WPS Westwood Generation, LLC | G181: PA | H181: 001 | I181: 031 | J181: Fluidized bed firing | K181: Fluidized bed firing | L181: 36 | M181: 615 | N181: 17.08333333 | O181: coal refuse (culm or gob) | P181: coal refuse (culm or gob) | Q181: 0.1683333333 | R181: 2.875694444 | Y181: 0.1683333333 | Z181: 2.875694444 | AA181: PM control | AB181: Fabric Filter, pulse | AC181: 1987-12-01
A182: 6177_U2B | B182: 181 | D182: coal | E182: 6177 | F182: Coronado Generating Station | G182: AZ | H182: U2B | I182: U2B | J182: Conventional Boiler | K182: Wall firing - unspecified | L182: 456.6 | M182: 4719 | N182: 10.33508541 | P182: Bituminous, Subbituminous | W182: 0.28 | X182: 2.893823916 | Y182: 0.28 | Z182: 2.893823916 | AA182: PM control | AB182: Electrostatic precipitator, hot side, unspecified | AC182: 1980-10-01
A183: 2378_2 | B183: 182 | D183: coal | E183: 2378 | F183: BL England | G183: NJ | H183: 2 Coal w or w/o TDF | I183: 2 | J183: Conventional Boiler | K183: Cyclone firing | L183: 167.3 | M183: 1600 | N183: 9.563658099 | O183: bituminous | P183: bituminous | W183: 0.3099322446 | X183: 2.964086022 | Y183: 0.3099322446 | Z183: 2.964086022 | AA183: NOx control | AB183: Selective Noncatalytic Reduction | AC183: 1998-06-01 | AD183: Other control | AE183: Activated carbon injection | AF183: 2007-12-01 | AG183: PM control | AH183: Electrostatic precipitator, cold side, w/o flue gas conditioning | AI183: 1979-01-01 | AJ183: SO2 control | AK183: Wet FGD - Spray Type | AL183: 1994-11-01
A184: 6177_U1B | B184: 183 | D184: coal | E184: 6177 | F184: Coronado Generating Station | G184: AZ | H184: U1B | I184: U1B | J184: Conventional Boiler | K184: Wall firing - unspecified | L184: 456.6 | M184: 4719 | N184: 10.33508541 | P184: Bituminous, Subbituminous | W184: 0.29 | X184: 2.99717477 | Y184: 0.29 | Z184: 2.99717477 | AA184: PM control | AB184: Electrostatic precipitator, hot side, unspecified | AC184: 1979-12-01
A185: 3161_2 | B185: 184 | D185: coal | E185: 3161 | F185: Eddystone Generating Station | G185: PA | H185: Unit 2 | I185: 2 | J185: Conventional Boiler | K185: Tangential firing | L185: 339 | M185: 2808 | N185: 8.283185841 | O185: bituminous | P185: bituminous | Q185: 0.3802 | R185: 3.149267257 | Y185: 0.3802 | Z185: 3.149267257 | AA185: NOx control | AB185: Selective Noncatalytic Reduction | AC185: 2003-06-01 | AD185: PM control | AE185: Multiple cyclone | AF185: 1960-11-01 | AG185: PM control | AH185: Electrostatic precipitator, hot side, w/o flue gas conditioning | AI185: 1960-11-01 | AJ185: PM control | AK185: PM scrubber - Venturi | AL185: 1982-12-01 | AM185: SO2 control | AN185: Wet FGD - Spray Type | AO185: 1982-12-01
A186: 6085_18 | B186: 185 | D186: coal | E186: 6085 | F186: R.M. Schahfer | G186: IN | H186: R.M.0018 | I186: 18 | J186: Conventional Boiler | K186: Tangential firing | L186: 393 | M186: 3967 | N186: 10.09414758 | O186: bituminous | P186: bituminous | S186: 0.3163635685 | T186: 3.193420551 | Y186: 0.3163635685 | Z186: 3.193420551 | AA186: PM control | AB186: Electrostatic precipitator, cold side, w/o flue gas conditioning | AC186: 1986-01-01 | AD186: SO2 control | AE186: Wet FGD - Spray Type | AF186: 1986-02-01
A187: 3130_1 | B187: 186 | D187: coal | E187: 3130 | F187: Seward | G187: PA | H187: SEW-1 | I187: 1 | J187: Fluidized bed firing | K187: Fluidized bed firing | L187: 292.5 | M187: 3100 | N187: 10.5982906 | O187: coal refuse (culm or gob) | P187: coal refuse (culm or gob) | S187: 0.3353725347 | T187: 3.554375582 | Y187: 0.3353725347 | Z187: 3.554375582 | AA187: NOx control | AB187: Selective Noncatalytic Reduction | AC187: 2004-03-01 | AD187: PM control | AE187: Fabric Filter, pulse | AF187: 2004-03-01
A188: 3130_2 | B188: 187 | D188: coal | E188: 3130 | F188: Seward | G188: PA | H188: SEW-1 | I188: 2 | J188: Fluidized bed firing | K188: Fluidized bed firing | L188: 292.5 | M188: 3100 | N188: 10.5982906 | O188: coal refuse (culm or gob) | P188: coal refuse (culm or gob) | S188: 0.3353725347 | T188: 3.554375582 | Y188: 0.3353725347 | Z188: 3.554375582 | AA188: NOx control | AB188: Selective Noncatalytic Reduction | AC188: 2004-03-01 | AD188: PM control | AE188: Fabric Filter, pulse | AF188: 2004-03-01
A189: 8219_1 | B189: 188 | D189: coal | E189: 8219 | F189: Ray D Nixon | G189: CO | H189: Unit 1 | I189: 1 | J189: Conventional Boiler | K189: Wall firing - front firing | L189: 225 | M189: 2095 | N189: 9.311111111 | O189: subbituminous | P189: subbituminous | W189: 0.3906666667 | X189: 3.637540741 | Y189: 0.3906666667 | Z189: 3.637540741 | AA189: PM control | AB189: Fabric Filter, reverse air | AC189: 1980-04-01
A190: 6019_1 | B190: 189 | D190: coal | E190: 6019 | F190: W H Zimmer | G190: OH | H190: 1 | I190: 1 | J190: Conventional Boiler | K190: Wall firing - opposed firing | L190: 1408 | M190: 12656 | N190: 8.988636364 | O190: bituminous, bituminous, bituminous | P190: bituminous, bituminous, bituminous | S190: 0.4049006739 | T190: 3.639504921 | Y190: 0.4049006739 | Z190: 3.639504921 | AA190: Other control | AB190: Other (specify): Magnesium Hydroxide Injection | AD190: NOx control | AE190: Selective Catalytic Reduction | AF190: 2004-01-01 | AG190: Other control | AH190: Dry sorbent injection | AI190: 2004-05-01 | AJ190: PM control | AK190: Electrostatic precipitator, cold side, w/o flue gas conditioning | AL190: 1991-03-01 | AM190: SO2 control | AN190: Wet FGD - Spray Type | AO190: 2004-06-01
A191: 3136_2 | B191: 190 | D191: coal | E191: 3136 | F191: Keystone | G191: PA | H191: KEY-2-4 | I191: 2 | J191: Conventional Boiler | K191: Tangential firing | L191: 936 | M191: 8695 | N191: 9.289529915 | O191: coal - bituminous | P191: bituminous | W191: 0.3933333333 | X191: 3.653881766 | Y191: 0.3933333333 | Z191: 3.653881766 | AA191: NOx control | AB191: Selective Catalytic Reduction | AC191: 2003-05-01 | AD191: PM control | AE191: Electrostatic precipitator, cold side, w/ flue gas conditioning | AF191: 1974-04-01 | AG191: SO2 control | AH191: Wet FGD - Spray Type | AI191: 2009-11-01
A192: 50039_001 | B192: 191 | D192: coal | E192: 50039 | F192: Kline Township Cogen Facility | G192: PA | H192: 001 | I192: 001 | J192: Fluidized bed firing | K192: Fluidized bed firing | L192: 58 | M192: 825 | N192: 14.22413793 | O192: coal refuse (culm or gob) | P192: coal refuse (culm or gob) | S192: 0.2591259478 | T192: 3.685843224 | Y192: 0.2591259478 | Z192: 3.685843224 | AA192: PM control | AB192: Fabric Filter, unspecified
A193: 2554_4 | B193: 192 | D193: coal | E193: 2554 | F193: Dunkirk Generating Plant | G193: NY | H193: 4 | I193: 4 | J193: Conventional Boiler | K193: Tangential firing | L193: 195 | M193: 1836 | N193: 9.415384615 | O193: subbituminous | P193: subbituminous | S193: 0.4071358662 | T193: 3.833340771 | Y193: 0.4071358662 | Z193: 3.833340771 | AA193: NOx control | AB193: Selective Noncatalytic Reduction | AD193: Other control | AE193: Dry sorbent injection | AG193: PM control | AH193: Fabric Filter, unspecified | AI193: 2009-05-01
A194: =E194&"_"&I194 -> 3140_2 | B194: 193 | D194: coal | E194: 3140 | F194: PPL Brunner Island | G194: PA | H194: U2 | I194: 2 | J194: Conventional Boiler | K194: Tangential firing | L194: 393 | M194: 3790 | N194: 9.643765903 | O194: bituminous | P194: bituminous | S194: 0.4027711528 | T194: 3.88423071 | Y194: 0.4027711528 | Z194: 3.88423071 | AA194: PM control | AB194: Electrostatic precipitator, cold side, w/o flue gas conditioning | AC194: 2009-10-01 | AD194: SO2 control | AE194: Wet FGD - Tray Type | AF194: 2009-11-01
A195: 3136_1 | B195: 194 | D195: coal | E195: 3136 | F195: Keystone | G195: PA | H195: KEY-1-4 | I195: 1 | J195: Conventional Boiler | K195: Tangential firing | L195: 936 | M195: 8695 | N195: 9.289529915 | O195: coal - bituminous | P195: bituminous | W195: 0.4201666667 | X195: 3.903150819 | Y195: 0.4201666667 | Z195: 3.903150819 | AA195: NOx control | AB195: Selective Catalytic Reduction | AC195: 2003-05-01 | AD195: PM control | AE195: Electrostatic precipitator, cold side, w/ flue gas conditioning | AF195: 1974-04-01 | AG195: SO2 control | AH195: Wet FGD - Spray Type | AI195: 2009-09-01
A196: 3140_1 | B196: 195 | D196: coal | E196: 3140 | F196: PPL Brunner Island | G196: PA | H196: U1 | I196: 1 | J196: Conventional Boiler | K196: Tangential firing | L196: 330 | M196: 3345 | N196: 10.13636364 | O196: bituminous | P196: bituminous | S196: 0.4027711528 | T196: 4.082634867 | Y196: 0.4027711528 | Z196: 4.082634867 | AA196: PM control | AB196: Fabric Filter, pulse | AC196: 1965-01-01 | AD196: SO2 control | AE196: Wet FGD - Tray Type | AF196: 2009-11-01
A197: 2535_1 | B197: 196 | D197: coal | E197: 2535 | F197: AES Cayuga, LLC | G197: NY | H197: Unit_1 | I197: 1 | J197: Conventional Boiler | K197: Tangential firing | L197: 164 | M197: 1462 | N197: 8.914634146 | O197: bituminous | P197: bituminous | Q197: 0.4585666667 | R197: 4.087954065 | Y197: 0.4585666667 | Z197: 4.087954065 | AA197: NOx control | AB197: Selective Catalytic Reduction | AD197: PM control | AE197: Electrostatic precipitator, cold side, w/o flue gas conditioning | AG197: SO2 control | AH197: Wet FGD - Spray Type | AI197: 1995-06-01
A198: 10113_CFB1 | B198: 197 | D198: coal | E198: 10113 | F198: John B Rich Memorial Power Station | G198: PA | H198: CFB1 | I198: CFB1 | J198: Fluidized bed firing | K198: Fluidized bed firing | L198: 44 | M198: 520 | N198: 11.81818182 | O198: coal refuse (culm or gob) | P198: coal refuse (culm or gob) | S198: 0.3464313377 | T198: 4.094188536 | Y198: 0.3464313377 | Z198: 4.094188536 | AA198: PM control | AB198: Fabric Filter, pulse
A199: 10113_CFB2 | B199: 198 | D199: coal | E199: 10113 | F199: John B Rich Memorial Power Station | G199: PA | H199: CFB2 | I199: CFB2 | J199: Fluidized bed firing | K199: Fluidized bed firing | L199: 44 | M199: 520 | N199: 11.81818182 | O199: coal refuse (culm or gob) | P199: coal refuse (culm or gob) | S199: 0.3464313377 | T199: 4.094188536 | Y199: 0.3464313377 | Z199: 4.094188536 | AA199: PM control | AB199: Fabric Filter, pulse
A200: 3149_1 | B200: 199 | D200: coal | E200: 3149 | F200: PPL Montour | G200: PA | H200: U1 | I200: 1 | J200: Conventional Boiler | K200: Tangential firing | L200: 797 | M200: 7239 | N200: 9.08281054 | O200: bituminous | P200: bituminous | S200: 0.4580445383 | T200: 4.16033176 | Y200: 0.4580445383 | Z200: 4.16033176 | AA200: PM control | AB200: Electrostatic precipitator, cold side, w/o flue gas conditioning | AC200: 2001-05-01 | AD200: NOx control | AE200: Selective Catalytic Reduction | AF200: 2001-05-01 | AG200: SO2 control | AH200: Wet FGD - Tray Type | AI200: 2008-05-01
... 93 more rows

Sheet Variability
A1: Key f_b | B1: Rank | C1: Reason_for_Removal as top ranked unit for new source floor | D1: Plant Name | E1: facility_id | F1: boiler_id | G1: configuration_id | H1: compound | I1: Final_EF | J1: Final_EF_Units | K1: Final_Output_EF | L1: Final_Output_EF_Units | M1: From | N1: Report_id
A2: =E2&"_"&F2 -> 1008_2 | B2: =VLOOKUP(A2,Min_Tests!A:AB,2,FALSE) -> 1 | C2: No run level data submitted. | D2: =VLOOKUP(A2,Min_Tests!A:AB,5,FALSE) -> 1008 | E2: 1008 | F2: 2 | G2: 2-2007 | H2: Sulfur Dioxide | I2: 0.003235993032 | J2: lb/MMBtu | K2: 0.03149699885 | L2: lb/MW | M2: Part II | N2: U2091409-BASE | O2: No run level data submitted.
A3: 1008_2 | B3: =VLOOKUP(A3,Min_Tests!A:AB,2,FALSE) -> 1 | C3: No run level data submitted. | D3: =VLOOKUP(A3,Min_Tests!A:AB,5,FALSE) -> 1008 | E3: 1008 | F3: 2 | G3: 2-2007 | H3: Sulfur Dioxide | I3: 0.00345075347 | J3: lb/MMBtu | K3: 0.03358733378 | L3: lb/MW | M3: Part II | N3: U2091409-BAGOUT
A4: 861_1 | B4: =VLOOKUP(A4,Min_Tests!A:AB,2,FALSE) -> 2 | C4: No run level data submitted. | D4: =VLOOKUP(A4,Min_Tests!A:AB,5,FALSE) -> 861 | E4: 861 | F4: 1 | G4: 001 | H4: Sulfur Dioxide | I4: 0.008466666667 | J4: lb/MMBtu | K4: 0.07718777778 | L4: lb/MW | M4: CEMS | O4: 30 Days of CEMS Data
A5: 2824_10 | B5: =VLOOKUP(A5,Min_Tests!A:AB,2,FALSE) -> 3 | C5: No run level data submitted. | D5: =VLOOKUP(A5,Min_Tests!A:AB,5,FALSE) -> 2824 | E5: 2824 | F5: 10 | G5: u10 | H5: Sulfur Dioxide | I5: 0.007660119511 | J5: lb/MMBtu | K5: 0.08196327876 | L5: lb/MW | M5: Part II | N5: 2006 RATA B | O5: No run level data submitted.
A6: 2824_10 | B6: =VLOOKUP(A6,Min_Tests!A:AB,2,FALSE) -> 3 | C6: No run level data submitted. | D6: =VLOOKUP(A6,Min_Tests!A:AB,5,FALSE) -> 2824 | E6: 2824 | F6: 10 | G6: u10 | H6: Sulfur Dioxide | I6: 0.03946122172 | J6: lb/MMBtu | K6: 0.4222350724 | L6: lb/MW | M6: Part II | N6: RATA 2007
A7: 2824_10 | B7: =VLOOKUP(A7,Min_Tests!A:AB,2,FALSE) -> 3 | C7: No run level data submitted. | D7: =VLOOKUP(A7,Min_Tests!A:AB,5,FALSE) -> 2824 | E7: 2824 | F7: 10 | G7: u10 | H7: Sulfur Dioxide | I7: 0.04642496673 | J7: lb/MMBtu | K7: 0.496747144 | L7: lb/MW | M7: Part II | N7: RATA 2008
A8: 2824_10 | B8: =VLOOKUP(A8,Min_Tests!A:AB,2,FALSE) -> 3 | C8: No run level data submitted. | D8: =VLOOKUP(A8,Min_Tests!A:AB,5,FALSE) -> 2824 | E8: 2824 | F8: 10 | G8: u10 | H8: Sulfur Dioxide | I8: 0.04877960289 | J8: lb/MMBtu | K8: 0.5219417509 | L8: lb/MW | M8: Part II | N8: 2006 RATA A
A9: 2824_10 | B9: =VLOOKUP(A9,Min_Tests!A:AB,2,FALSE) -> 3 | C9: No run level data submitted. | D9: =VLOOKUP(A9,Min_Tests!A:AB,5,FALSE) -> 2824 | E9: 2824 | F9: 10 | G9: u10 | H9: Sulfur Dioxide | I9: 0.06732814936 | J9: lb/MMBtu | K9: 0.7204111982 | L9: lb/MW | M9: Part II | N9: RATA 2009
A10: 2824_10 | B10: =VLOOKUP(A10,Min_Tests!A:AB,2,FALSE) -> 3 | C10: No run level data submitted. | D10: =VLOOKUP(A10,Min_Tests!A:AB,5,FALSE) -> 2824 | E10: 2824 | F10: 10 | G10: u10 | H10: Sulfur Dioxide | I10: 0.1751645546 | J10: lb/MMBtu | K10: 1.874260734 | L10: lb/MW | M10: Part II | N10: RATA 2005
A11: 68029_BLR2 | B11: =VLOOKUP(A11,Min_Tests!A:AB,2,FALSE) -> 4 | C11: No run level data submitted. | D11: =VLOOKUP(A11,Min_Tests!A:AB,5,FALSE) -> 68029 | E11: 68029 | F11: BLR2 | G11: Unit_2 | H11: Sulfur Dioxide | I11: 0.00871 | J11: lb/MMBtu | K11: 0.08407370196 | L11: lb/MW | M11: CEMS
A12: 56068_1 | B12: =VLOOKUP(A12,Min_Tests!A:AB,2,FALSE) -> 5 | C12: Unit began operations February 2010; only 1 test available. Insufficient data to determine rate that is achievable in practice with long-term continuous unit operations. | D12: =VLOOKUP(A12,Min_Tests!A:AB,5,FALSE) -> 56068 | E12: 56068 | F12: 1 | G12: ERGS-B1 | H12: Sulfur Dioxide | I12: 0.009 | J12: lb/MMBtu | K12: 0.08661004431 | L12: lb/MW | M12: ETTS
A13: 68029_BLR1 | B13: =VLOOKUP(A13,Min_Tests!A:AB,2,FALSE) -> 6 | C13: No run level data submitted. | D13: =VLOOKUP(A13,Min_Tests!A:AB,5,FALSE) -> 68029 | E13: 68029 | F13: BLR1 | G13: Unit_1 | H13: Sulfur Dioxide | I13: 0.009 | J13: lb/MMBtu | K13: 0.08687294118 | L13: lb/MW | M13: CEMS
A14: 52071_5A | B14: =VLOOKUP(A14,Min_Tests!A:AB,2,FALSE) -> 7 | D14: =VLOOKUP(A14,Min_Tests!A:AB,5,FALSE) -> 52071 | E14: 52071 | F14: 5A | G14: 5A | H14: Sulfur Dioxide | I14: 0.01115532563 | J14: lb/MMBtu | K14: 0.1169462152 | L14: lb/MW | M14: ERT
A15: 52071_5A | B15: =VLOOKUP(A15,Min_Tests!A:AB,2,FALSE) -> 7 | D15: =VLOOKUP(A15,Min_Tests!A:AB,5,FALSE) -> 52071 | E15: 52071 | F15: 5A | G15: 5A | H15: Sulfur Dioxide | I15: 0.02566666667 | J15: lb/MMBtu | K15: 0.2690750251 | L15: lb/MW | M15: Part II | N15: 2-Source Emissions Survey, Stacks
A16: 1893_3 | B16: =VLOOKUP(A16,Min_Tests!A:AB,2,FALSE) -> 8 | D16: =VLOOKUP(A16,Min_Tests!A:AB,5,FALSE) -> 1893 | E16: 1893 | F16: 3 | G16: BEC3 | H16: Sulfur Dioxide | I16: 0.01166666667 | J16: lb/MMBtu | K16: 0.1292979621 | L16: lb/MW | M16: CEMS
A17: 6016_1 | B17: =VLOOKUP(A17,Min_Tests!A:AB,2,FALSE) -> 9 | D17: =VLOOKUP(A17,Min_Tests!A:AB,5,FALSE) -> 6016 | E17: 6016 | F17: 1 | G17: 001 | H17: Sulfur Dioxide | I17: 0.0133 | J17: lb/MMBtu | K17: 0.149625 | L17: lb/MW | M17: Part II | N17: 3
A18: 6016_1 | B18: =VLOOKUP(A18,Min_Tests!A:AB,2,FALSE) -> 9 | D18: =VLOOKUP(A18,Min_Tests!A:AB,5,FALSE) -> 6016 | E18: 6016 | F18: 1 | G18: 001 | H18: Sulfur Dioxide | I18: 0.0382 | J18: lb/MMBtu | K18: 0.42975 | L18: lb/MW | M18: Part II | N18: 2
A19: 641_5 | B19: =VLOOKUP(A19,Min_Tests!A:AB,2,FALSE) -> 10 | D19: =VLOOKUP(A19,Min_Tests!A:AB,5,FALSE) -> 641 | E19: 641 | F19: 5 | G19: Unit 5 | H19: Sulfur Dioxide | I19: 0.025 | J19: lb/MMBtu | K19: 0.2493384146 | L19: lb/MW | M19: CEMS
A20: 641_6 | B20: =VLOOKUP(A20,Min_Tests!A:AB,2,FALSE) -> 11 | D20: =VLOOKUP(A20,Min_Tests!A:AB,5,FALSE) -> 641 | E20: 641 | F20: 6 | G20: Unit 6 | H20: Sulfur Dioxide | I20: 0.025 | J20: lb/MMBtu | K20: 0.2494803125 | L20: lb/MW | M20: CEMS
A21: 641_7 | B21: =VLOOKUP(A21,Min_Tests!A:AB,2,FALSE) -> 12 | D21: =VLOOKUP(A21,Min_Tests!A:AB,5,FALSE) -> 641 | E21: 641 | F21: 7 | G21: Unit 7 | H21: Sulfur Dioxide | I21: 0.025 | J21: lb/MMBtu | K21: 0.2639896 | L21: lb/MW | M21: CEMS
A22: 641_4 | B22: =VLOOKUP(A22,Min_Tests!A:AB,2,FALSE) -> 13 | D22: =VLOOKUP(A22,Min_Tests!A:AB,5,FALSE) -> 641 | E22: 641 | F22: 4 | G22: Unit 4 | H22: Sulfur Dioxide | I22: 0.025 | J22: lb/MMBtu | K22: 0.2648908537 | L22: lb/MW | M22: CEMS
A23: 10768_S-1715-3-13 | B23: =VLOOKUP(A23,Min_Tests!A:AB,2,FALSE) -> 14 | D23: =VLOOKUP(A23,Min_Tests!A:AB,5,FALSE) -> 10768 | E23: 10768 | F23: S-1715-3-13 | G23: Config 1 | H23: Sulfur Dioxide | I23: 0.0232 | J23: lb/MMBtu | K23: 0.2656142222 | L23: lb/MW | M23: Part II | N23: 2008 RATA Tests R016878
A24: 10768_S-1715-3-13 | B24: =VLOOKUP(A24,Min_Tests!A:AB,2,FALSE) -> 14 | D24: =VLOOKUP(A24,Min_Tests!A:AB,5,FALSE) -> 10768 | E24: 10768 | F24: S-1715-3-13 | G24: Config 1 | H24: Sulfur Dioxide | I24: 0.0238 | J24: lb/MMBtu | K24: 0.2724835556 | L24: lb/MW | M24: Part II | N24: 2009 Compliance Tests R017667
A25: 10768_S-1715-3-13 | B25: =VLOOKUP(A25,Min_Tests!A:AB,2,FALSE) -> 14 | D25: =VLOOKUP(A25,Min_Tests!A:AB,5,FALSE) -> 10768 | E25: 10768 | F25: S-1715-3-13 | G25: Config 1 | H25: Sulfur Dioxide | I25: 0.02386666667 | J25: lb/MMBtu | K25: 0.2732468148 | L25: lb/MW | M25: CEMS
A26: 10768_S-1715-3-13 | B26: =VLOOKUP(A26,Min_Tests!A:AB,2,FALSE) -> 14 | D26: =VLOOKUP(A26,Min_Tests!A:AB,5,FALSE) -> 10768 | E26: 10768 | F26: S-1715-3-13 | G26: Config 1 | H26: Sulfur Dioxide | I26: 0.0264 | J26: lb/MMBtu | K26: 0.3022506667 | L26: lb/MW | M26: Part II | N26: 2007 RATA Tests R16080
A27: 10768_S-1715-3-13 | B27: =VLOOKUP(A27,Min_Tests!A:AB,2,FALSE) -> 14 | D27: =VLOOKUP(A27,Min_Tests!A:AB,5,FALSE) -> 10768 | E27: 10768 | F27: S-1715-3-13 | G27: Config 1 | H27: Sulfur Dioxide | I27: 0.0266 | J27: lb/MMBtu | K27: 0.3045404444 | L27: lb/MW | M27: Part II | N27: 2006 RATA Compliance R015280
A28: 10768_S-1715-3-13 | B28: =VLOOKUP(A28,Min_Tests!A:AB,2,FALSE) -> 14 | D28: =VLOOKUP(A28,Min_Tests!A:AB,5,FALSE) -> 10768 | E28: 10768 | F28: S-1715-3-13 | G28: Config 1 | H28: Sulfur Dioxide | I28: 0.0277 | J28: lb/MMBtu | K28: 0.3171342222 | L28: lb/MW | M28: Part II | N28: 2005 RATA compliance R014534
A29: 3845_BD21 | B29: =VLOOKUP(A29,Min_Tests!A:AB,2,FALSE) -> 15 | D29: =VLOOKUP(A29,Min_Tests!A:AB,5,FALSE) -> 3845 | E29: 3845 | F29: BD21 | G29: BW21CONFIG | H29: Sulfur Dioxide | I29: 0.0213 | J29: lb/MMBtu | K29: 0.2735089552 | L29: lb/MW | M29: Part II | N29: 2007 Compliance Unit 1
A30: 3845_BD21 | B30: =VLOOKUP(A30,Min_Tests!A:AB,2,FALSE) -> 15 | D30: =VLOOKUP(A30,Min_Tests!A:AB,5,FALSE) -> 3845 | E30: 3845 | F30: BD21 | G30: BW21CONFIG | H30: Sulfur Dioxide | I30: 0.02433333333 | J30: lb/MMBtu | K30: 0.3124593698 | L30: lb/MW | M30: Part II | N30: 2005 Compliance Unit 1
A31: 3845_BD21 | B31: =VLOOKUP(A31,Min_Tests!A:AB,2,FALSE) -> 15 | D31: =VLOOKUP(A31,Min_Tests!A:AB,5,FALSE) -> 3845 | E31: 3845 | F31: BD21 | G31: BW21CONFIG | H31: Sulfur Dioxide | I31: 0.039 | J31: lb/MMBtu | K31: 0.5007910448 | L31: lb/MW | M31: Part II | N31: 2008 Compliance Unit 1
A32: 3845_BD21 | B32: =VLOOKUP(A32,Min_Tests!A:AB,2,FALSE) -> 15 | D32: =VLOOKUP(A32,Min_Tests!A:AB,5,FALSE) -> 3845 | E32: 3845 | F32: BD21 | G32: BW21CONFIG | H32: Sulfur Dioxide | I32: 0.04066666667 | J32: lb/MMBtu | K32: 0.5221923715 | L32: lb/MW | M32: Part II | N32: 2009 Compliance Unit 1
A33: 3845_BD21 | B33: =VLOOKUP(A33,Min_Tests!A:AB,2,FALSE) -> 15 | D33: =VLOOKUP(A33,Min_Tests!A:AB,5,FALSE) -> 3845 | E33: 3845 | F33: BD21 | G33: BW21CONFIG | H33: Sulfur Dioxide | I33: 0.04226666667 | J33: lb/MMBtu | K33: 0.5427376451 | L33: lb/MW | M33: Part II | N33: 2006 Compliance Unit 1
A34: 3845_BD21 | B34: =VLOOKUP(A34,Min_Tests!A:AB,2,FALSE) -> 15 | D34: =VLOOKUP(A34,Min_Tests!A:AB,5,FALSE) -> 3845 | E34: 3845 | F34: BD21 | G34: BW21CONFIG | H34: Sulfur Dioxide | I34: 0.05706666667 | J34: lb/MMBtu | K34: 0.7327814262 | L34: lb/MW | M34: CEMS
A35: 10769_C-E CONTRACT 24687 | B35: =VLOOKUP(A35,Min_Tests!A:AB,2,FALSE) -> 16 | D35: =VLOOKUP(A35,Min_Tests!A:AB,5,FALSE) -> 10769 | E35: 10769 | F35: C-E CONTRACT 24687 | G35: Config 1 | H35: Sulfur Dioxide | I35: 0.0245 | J35: lb/MMBtu | K35: 0.2776190278 | L35: lb/MW | M35: Part II | N35: 2008 R016879
A36: 10769_C-E CONTRACT 24687 | B36: =VLOOKUP(A36,Min_Tests!A:AB,2,FALSE) -> 16 | D36: =VLOOKUP(A36,Min_Tests!A:AB,5,FALSE) -> 10769 | E36: 10769 | F36: C-E CONTRACT 24687 | G36: Config 1 | H36: Sulfur Dioxide | I36: 0.0246 | J36: lb/MMBtu | K36: 0.2787521667 | L36: lb/MW | M36: Part II | N36: 2009 R017668
A37: 10769_C-E CONTRACT 24687 | B37: =VLOOKUP(A37,Min_Tests!A:AB,2,FALSE) -> 16 | D37: =VLOOKUP(A37,Min_Tests!A:AB,5,FALSE) -> 10769 | E37: 10769 | F37: C-E CONTRACT 24687 | G37: Config 1 | H37: Sulfur Dioxide | I37: 0.025 | J37: lb/MMBtu | K37: 0.2832847222 | L37: lb/MW | M37: Part II | N37: 2007 R016081
A38: 10769_C-E CONTRACT 24687 | B38: =VLOOKUP(A38,Min_Tests!A:AB,2,FALSE) -> 16 | D38: =VLOOKUP(A38,Min_Tests!A:AB,5,FALSE) -> 10769 | E38: 10769 | F38: C-E CONTRACT 24687 | G38: Config 1 | H38: Sulfur Dioxide | I38: 0.02503333333 | J38: lb/MMBtu | K38: 0.2836624352 | L38: lb/MW | M38: CEMS
A39: 10769_C-E CONTRACT 24687 | B39: =VLOOKUP(A39,Min_Tests!A:AB,2,FALSE) -> 16 | D39: =VLOOKUP(A39,Min_Tests!A:AB,5,FALSE) -> 10769 | E39: 10769 | F39: C-E CONTRACT 24687 | G39: Config 1 | H39: Sulfur Dioxide | I39: 0.0269 | J39: lb/MMBtu | K39: 0.3048143611 | L39: lb/MW | M39: Part II | N39: 2006 R015281
A40: 10769_C-E CONTRACT 24687 | B40: =VLOOKUP(A40,Min_Tests!A:AB,2,FALSE) -> 16 | D40: =VLOOKUP(A40,Min_Tests!A:AB,5,FALSE) -> 10769 | E40: 10769 | F40: C-E CONTRACT 24687 | G40: Config 1 | H40: Sulfur Dioxide | I40: 0.0271 | J40: lb/MMBtu | K40: 0.3070806389 | L40: lb/MW | M40: Part II | N40: 2005 R014535
A41: 6264_1 | B41: =VLOOKUP(A41,Min_Tests!A:AB,2,FALSE) -> 17 | D41: =VLOOKUP(A41,Min_Tests!A:AB,5,FALSE) -> 6264 | E41: 6264 | F41: 1 | G41: Mt-1 | H41: Sulfur Dioxide | I41: 0.0314 | J41: lb/MMBtu | K41: 0.2845030303 | L41: lb/MW | M41: CEMS
A42: 708_2 | B42: =VLOOKUP(A42,Min_Tests!A:AB,2,FALSE) -> 18 | D42: =VLOOKUP(A42,Min_Tests!A:AB,5,FALSE) -> 708 | E42: 708 | F42: 2 | G42: Unit 2 | H42: Sulfur Dioxide | I42: 0.02936666667 | J42: lb/MMBtu | K42: 0.2906104904 | L42: lb/MW | M42: CEMS
A43: 10771_10771-01 | B43: =VLOOKUP(A43,Min_Tests!A:AB,2,FALSE) -> 19 | D43: =VLOOKUP(A43,Min_Tests!A:AB,5,FALSE) -> 10771 | E43: 10771 | F43: 10771-01 | G43: 1 & 2 | H43: Sulfur Dioxide | I43: 0.02315747737 | J43: lb/MMBtu | K43: 0.2911712229 | L43: lb/MW | M43: ERT
A44: 10771_10771-02 | B44: =VLOOKUP(A44,Min_Tests!A:AB,2,FALSE) -> 20 | D44: =VLOOKUP(A44,Min_Tests!A:AB,5,FALSE) -> 10771 | E44: 10771 | F44: 10771-02 | G44: 1 & 2 | H44: Sulfur Dioxide | I44: 0.02315747737 | J44: lb/MMBtu | K44: 0.2911712229 | L44: lb/MW | M44: ERT
A45: 708_3 | B45: =VLOOKUP(A45,Min_Tests!A:AB,2,FALSE) -> 21 | D45: =VLOOKUP(A45,Min_Tests!A:AB,5,FALSE) -> 708 | E45: 708 | F45: 3 | G45: Unit 3 | H45: Sulfur Dioxide | I45: 0.02936666667 | J45: lb/MMBtu | K45: 0.2914685078 | L45: lb/MW | M45: CEMS
A46: 708_1 | B46: =VLOOKUP(A46,Min_Tests!A:AB,2,FALSE) -> 22 | D46: =VLOOKUP(A46,Min_Tests!A:AB,5,FALSE) -> 708 | E46: 708 | F46: 1 | G46: Unit 1 | H46: Sulfur Dioxide | I46: 0.02936666667 | J46: lb/MMBtu | K46: 0.2959015977 | L46: lb/MW | M46: CEMS
A47: 54081_3A | B47: =VLOOKUP(A47,Min_Tests!A:AB,2,FALSE) -> 23 | D47: =VLOOKUP(A47,Min_Tests!A:AB,5,FALSE) -> 54081 | E47: 54081 | F47: 3A | G47: GEN3 | H47: Sulfur Dioxide | I47: 0.0227 | J47: lb/MMBtu | K47: 0.2966027875 | L47: lb/MW | M47: CEMS
A48: 54081_3A | B48: =VLOOKUP(A48,Min_Tests!A:AB,2,FALSE) -> 23 | D48: =VLOOKUP(A48,Min_Tests!A:AB,5,FALSE) -> 54081 | E48: 54081 | F48: 3A | G48: GEN3 | H48: Sulfur Dioxide | I48: 0.02524694218 | J48: lb/MMBtu | K48: 0.3298816486 | L48: lb/MW | M48: Part II | N48: 2006 Emissions Testing at Boiler Id 3A and 3B
A49: 54081_3A | B49: =VLOOKUP(A49,Min_Tests!A:AB,2,FALSE) -> 23 | D49: =VLOOKUP(A49,Min_Tests!A:AB,5,FALSE) -> 54081 | E49: 54081 | F49: 3A | G49: GEN3 | H49: Sulfur Dioxide | I49: 0.06527106518 | J49: lb/MMBtu | K49: 0.8528449283 | L49: lb/MW | M49: ERT
A50: 54081_3B | B50: =VLOOKUP(A50,Min_Tests!A:AB,2,FALSE) -> 24 | D50: =VLOOKUP(A50,Min_Tests!A:AB,5,FALSE) -> 54081 | E50: 54081 | F50: 3B | G50: GEN3 | H50: Sulfur Dioxide | I50: 0.0227 | J50: lb/MMBtu | K50: 0.2966027875 | L50: lb/MW | M50: CEMS
A51: 54081_3B | B51: =VLOOKUP(A51,Min_Tests!A:AB,2,FALSE) -> 24 | D51: =VLOOKUP(A51,Min_Tests!A:AB,5,FALSE) -> 54081 | E51: 54081 | F51: 3B | G51: GEN3 | H51: Sulfur Dioxide | I51: 0.02524694218 | J51: lb/MMBtu | K51: 0.3298816486 | L51: lb/MW | M51: Part II | N51: 2006 Emissions Testing at Boiler Id 3A and 3B
A52: 54081_3B | B52: =VLOOKUP(A52,Min_Tests!A:AB,2,FALSE) -> 24 | D52: =VLOOKUP(A52,Min_Tests!A:AB,5,FALSE) -> 54081 | E52: 54081 | F52: 3B | G52: GEN3 | H52: Sulfur Dioxide | I52: 0.06527106518 | J52: lb/MMBtu | K52: 0.8528449283 | L52: lb/MW | M52: ERT
A53: 3179_1 | B53: =VLOOKUP(A53,Min_Tests!A:AB,2,FALSE) -> 25 | D53: =VLOOKUP(A53,Min_Tests!A:AB,5,FALSE) -> 3179 | E53: 3179 | F53: 1 | G53: 001 | H53: Sulfur Dioxide | I53: 0.03152490806 | J53: lb/MMBtu | K53: 0.3045626711 | L53: lb/MW | M53: ERT
A54: 708_4 | B54: =VLOOKUP(A54,Min_Tests!A:AB,2,FALSE) -> 26 | D54: =VLOOKUP(A54,Min_Tests!A:AB,5,FALSE) -> 708 | E54: 708 | F54: 4 | G54: Unit 4 | H54: Sulfur Dioxide | I54: 0.02936666667 | J54: lb/MMBtu | K54: 0.3082669827 | L54: lb/MW | M54: CEMS
A55: 54081_2A | B55: =VLOOKUP(A55,Min_Tests!A:AB,2,FALSE) -> 27 | D55: =VLOOKUP(A55,Min_Tests!A:AB,5,FALSE) -> 54081 | E55: 54081 | F55: 2A | G55: GEN2 | H55: Sulfur Dioxide | I55: 0.0241 | J55: lb/MMBtu | K55: 0.3148954704 | L55: lb/MW | M55: CEMS
A56: 54081_2A | B56: =VLOOKUP(A56,Min_Tests!A:AB,2,FALSE) -> 27 | D56: =VLOOKUP(A56,Min_Tests!A:AB,5,FALSE) -> 54081 | E56: 54081 | F56: 2A | G56: GEN2 | H56: Sulfur Dioxide | I56: 0.06567566955 | J56: lb/MMBtu | K56: 0.8581315707 | L56: lb/MW | M56: ERT
A57: 54081_2B | B57: =VLOOKUP(A57,Min_Tests!A:AB,2,FALSE) -> 28 | D57: =VLOOKUP(A57,Min_Tests!A:AB,5,FALSE) -> 54081 | E57: 54081 | F57: 2B | G57: GEN2 | H57: Sulfur Dioxide | I57: 0.0241 | J57: lb/MMBtu | K57: 0.3148954704 | L57: lb/MW | M57: CEMS
A58: 54081_2B | B58: =VLOOKUP(A58,Min_Tests!A:AB,2,FALSE) -> 28 | D58: =VLOOKUP(A58,Min_Tests!A:AB,5,FALSE) -> 54081 | E58: 54081 | F58: 2B | G58: GEN2 | H58: Sulfur Dioxide | I58: 0.06567566955 | J58: lb/MMBtu | K58: 0.8581315707 | L58: lb/MW | M58: ERT
A59: 3845_BD22 | B59: =VLOOKUP(A59,Min_Tests!A:AB,2,FALSE) -> 29 | D59: =VLOOKUP(A59,Min_Tests!A:AB,5,FALSE) -> 3845 | E59: 3845 | F59: BD22 | G59: BW22CONFIG | H59: Sulfur Dioxide | I59: 0.02333333333 | J59: lb/MMBtu | K59: 0.3186419753 | L59: lb/MW | M59: Part II | N59: 2006 Compliance Unit 2
A60: 3845_BD22 | B60: =VLOOKUP(A60,Min_Tests!A:AB,2,FALSE) -> 29 | D60: =VLOOKUP(A60,Min_Tests!A:AB,5,FALSE) -> 3845 | E60: 3845 | F60: BD22 | G60: BW22CONFIG | H60: Sulfur Dioxide | I60: 0.02666666667 | J60: lb/MMBtu | K60: 0.3641622575 | L60: lb/MW | M60: Part II | N60: 2008 Compliance Unit 2
A61: 3845_BD22 | B61: =VLOOKUP(A61,Min_Tests!A:AB,2,FALSE) -> 29 | D61: =VLOOKUP(A61,Min_Tests!A:AB,5,FALSE) -> 3845 | E61: 3845 | F61: BD22 | G61: BW22CONFIG | H61: Sulfur Dioxide | I61: 0.0316 | J61: lb/MMBtu | K61: 0.4315322751 | L61: lb/MW | M61: Part II | N61: 2007 Compliance Unit 2
A62: 3845_BD22 | B62: =VLOOKUP(A62,Min_Tests!A:AB,2,FALSE) -> 29 | D62: =VLOOKUP(A62,Min_Tests!A:AB,5,FALSE) -> 3845 | E62: 3845 | F62: BD22 | G62: BW22CONFIG | H62: Sulfur Dioxide | I62: 0.036 | J62: lb/MMBtu | K62: 0.4916190476 | L62: lb/MW | M62: Part II | N62: 2009 Compliance Unit 2
A63: 3845_BD22 | B63: =VLOOKUP(A63,Min_Tests!A:AB,2,FALSE) -> 29 | D63: =VLOOKUP(A63,Min_Tests!A:AB,5,FALSE) -> 3845 | E63: 3845 | F63: BD22 | G63: BW22CONFIG | H63: Sulfur Dioxide | I63: 0.0525 | J63: lb/MMBtu | K63: 0.7169444444 | L63: lb/MW | M63: CEMS
A64: 3845_BD22 | B64: =VLOOKUP(A64,Min_Tests!A:AB,2,FALSE) -> 29 | D64: =VLOOKUP(A64,Min_Tests!A:AB,5,FALSE) -> 3845 | E64: 3845 | F64: BD22 | G64: BW22CONFIG | H64: Sulfur Dioxide | I64: 0.08166666667 | J64: lb/MMBtu | K64: 1.115246914 | L64: lb/MW | M64: Part II | N64: 2005 Compliance Unit 2
A65: 2324_3 | B65: =VLOOKUP(A65,Min_Tests!A:AB,2,FALSE) -> 30 | D65: =VLOOKUP(A65,Min_Tests!A:AB,5,FALSE) -> 2324 | E65: 2324 | F65: 3 | G65: 3 | H65: Sulfur Dioxide | I65: 0.02926666667 | J65: lb/MMBtu | K65: 0.326151952 | L65: lb/MW | M65: Part II | N65: U3_2009_BIOMASS
A66: =E66&"_"&F66 -> 2324_3 | B66: =VLOOKUP(A66,Min_Tests!A:AB,2,FALSE) -> 30 | D66: =VLOOKUP(A66,Min_Tests!A:AB,5,FALSE) -> 2324 | E66: 2324 | F66: 3 | G66: 3 | H66: Sulfur Dioxide | I66: 0.05013333333 | J66: lb/MMBtu | K66: 0.5586930931 | L66: lb/MW | M66: Part II | N66: U3_2009_COMPLIANCE
A67: 52071_5B | B67: =VLOOKUP(A67,Min_Tests!A:AB,2,FALSE) -> 31 | D67: =VLOOKUP(A67,Min_Tests!A:AB,5,FALSE) -> 52071 | E67: 52071 | F67: 5B | G67: 5B | H67: Sulfur Dioxide | I67: 0.032 | J67: lb/MMBtu | K67: 0.3354701611 | L67: lb/MW | M67: Part II | N67: 2-Source Emissions Survey, Stacks
A68: 52071_5B | B68: =VLOOKUP(A68,Min_Tests!A:AB,2,FALSE) -> 31 | D68: =VLOOKUP(A68,Min_Tests!A:AB,5,FALSE) -> 52071 | E68: 52071 | F68: 5B | G68: 5B | H68: Sulfur Dioxide | I68: 0.0479832197 | J68: lb/MMBtu | K68: 0.5030293264 | L68: lb/MW | M68: ERT
A69: 10384_1A | B69: =VLOOKUP(A69,Min_Tests!A:AB,2,FALSE) -> 32 | D69: =VLOOKUP(A69,Min_Tests!A:AB,5,FALSE) -> 10384 | E69: 10384 | F69: 1A | G69: Gen 1 | H69: Sulfur Dioxide | I69: 0.0278 | J69: lb/MMBtu | K69: 0.3418032787 | L69: lb/MW | M69: CEMS
A70: 10384_1B | B70: =VLOOKUP(A70,Min_Tests!A:AB,2,FALSE) -> 33 | D70: =VLOOKUP(A70,Min_Tests!A:AB,5,FALSE) -> 10384 | E70: 10384 | F70: 1B | G70: Gen 1 | H70: Sulfur Dioxide | I70: 0.0278 | J70: lb/MMBtu | K70: 0.3418032787 | L70: lb/MW | M70: CEMS
A71: 2706_1 | B71: =VLOOKUP(A71,Min_Tests!A:AB,2,FALSE) -> 34 | D71: =VLOOKUP(A71,Min_Tests!A:AB,5,FALSE) -> 2706 | E71: 2706 | F71: 1 | G71: Ash_Cfg_1d | H71: Sulfur Dioxide | I71: 0.038 | J71: lb/MMBtu | K71: 0.3513623188 | L71: lb/MW | M71: Part II | N71: Ash_Blr_1_Test_8ab
A72: 2706_1 | B72: =VLOOKUP(A72,Min_Tests!A:AB,2,FALSE) -> 34 | D72: =VLOOKUP(A72,Min_Tests!A:AB,5,FALSE) -> 2706 | E72: 2706 | F72: 1 | G72: Ash_Cfg_1d | H72: Sulfur Dioxide | I72: 0.05166085529 | J72: lb/MMBtu | K72: 0.4776757344 | L72: lb/MW | M72: ERT
A73: 56224_BLR100 | B73: =VLOOKUP(A73,Min_Tests!A:AB,2,FALSE) -> 35 | D73: =VLOOKUP(A73,Min_Tests!A:AB,5,FALSE) -> 56224 | E73: 56224 | F73: BLR100 | G73: TSPower | H73: Sulfur Dioxide | I73: 0.04166666667 | J73: lb/MMBtu | K73: 0.3636363636 | L73: lb/MW | M73: Part II | N73: Optimal 07/2009
A74: 56224_BLR100 | B74: =VLOOKUP(A74,Min_Tests!A:AB,2,FALSE) -> 35 | D74: =VLOOKUP(A74,Min_Tests!A:AB,5,FALSE) -> 56224 | E74: 56224 | F74: BLR100 | G74: TSPower | H74: Sulfur Dioxide | I74: 0.0427 | J74: lb/MMBtu | K74: 0.3726545455 | L74: lb/MW | M74: CEMS
A75: 56224_BLR100 | B75: =VLOOKUP(A75,Min_Tests!A:AB,2,FALSE) -> 35 | D75: =VLOOKUP(A75,Min_Tests!A:AB,5,FALSE) -> 56224 | E75: 56224 | F75: BLR100 | G75: TSPower | H75: Sulfur Dioxide | I75: 0.2441111111 | J75: lb/MMBtu | K75: 2.130424242 | L75: lb/MW | M75: Part II | N75: TRC 04/2008
A76: 1082_4 | B76: =VLOOKUP(A76,Min_Tests!A:AB,2,FALSE) -> 36 | D76: =VLOOKUP(A76,Min_Tests!A:AB,5,FALSE) -> 1082 | E76: 1082 | F76: 4 | G76: 4 | H76: Sulfur Dioxide | I76: 0.041 | J76: lb/MMBtu | K76: 0.3702058824 | L76: lb/MW | M76: Part II | N76: 8/2007 SO2
A77: 1082_4 | B77: =VLOOKUP(A77,Min_Tests!A:AB,2,FALSE) -> 36 | D77: =VLOOKUP(A77,Min_Tests!A:AB,5,FALSE) -> 1082 | E77: 1082 | F77: 4 | G77: 4 | H77: Sulfur Dioxide | I77: 0.061 | J77: lb/MMBtu | K77: 0.5507941176 | L77: lb/MW | M77: Part II | N77: 5/2007 SO2
A78: 1082_4 | B78: =VLOOKUP(A78,Min_Tests!A:AB,2,FALSE) -> 36 | D78: =VLOOKUP(A78,Min_Tests!A:AB,5,FALSE) -> 1082 | E78: 1082 | F78: 4 | G78: 4 | H78: Sulfur Dioxide | I78: 0.072 | J78: lb/MMBtu | K78: 0.6501176471 | L78: lb/MW | M78: Part II | N78: 1/2008 SO2-3
A79: 1082_4 | B79: =VLOOKUP(A79,Min_Tests!A:AB,2,FALSE) -> 36 | D79: =VLOOKUP(A79,Min_Tests!A:AB,5,FALSE) -> 1082 | E79: 1082 | F79: 4 | G79: 4 | H79: Sulfur Dioxide | I79: 0.072 | J79: lb/MMBtu | K79: 0.6501176471 | L79: lb/MW | M79: Part II | N79: 1/2008 SO2-7
A80: 1082_4 | B80: =VLOOKUP(A80,Min_Tests!A:AB,2,FALSE) -> 36 | D80: =VLOOKUP(A80,Min_Tests!A:AB,5,FALSE) -> 1082 | E80: 1082 | F80: 4 | G80: 4 | H80: Sulfur Dioxide | I80: 0.078 | J80: lb/MMBtu | K80: 0.7042941176 | L80: lb/MW | M80: CEMS
A81: 1082_4 | B81: =VLOOKUP(A81,Min_Tests!A:AB,2,FALSE) -> 36 | D81: =VLOOKUP(A81,Min_Tests!A:AB,5,FALSE) -> 1082 | E81: 1082 | F81: 4 | G81: 4 | H81: Sulfur Dioxide | I81: 0.082 | J81: lb/MMBtu | K81: 0.7404117647 | L81: lb/MW | M81: Part II | N81: 1/2008 SO2-5
A82: 1082_4 | B82: =VLOOKUP(A82,Min_Tests!A:AB,2,FALSE) -> 36 | D82: =VLOOKUP(A82,Min_Tests!A:AB,5,FALSE) -> 1082 | E82: 1082 | F82: 4 | G82: 4 | H82: Sulfur Dioxide | I82: 0.083 | J82: lb/MMBtu | K82: 0.7494411765 | L82: lb/MW | M82: Part II | N82: 1/2008 SO2-2
A83: 1082_4 | B83: =VLOOKUP(A83,Min_Tests!A:AB,2,FALSE) -> 36 | D83: =VLOOKUP(A83,Min_Tests!A:AB,5,FALSE) -> 1082 | E83: 1082 | F83: 4 | G83: 4 | H83: Sulfur Dioxide | I83: 0.088 | J83: lb/MMBtu | K83: 0.7945882353 | L83: lb/MW | M83: Part II | N83: 1/2008 SO2-1
A84: 1082_4 | B84: =VLOOKUP(A84,Min_Tests!A:AB,2,FALSE) -> 36 | D84: =VLOOKUP(A84,Min_Tests!A:AB,5,FALSE) -> 1082 | E84: 1082 | F84: 4 | G84: 4 | H84: Sulfur Dioxide | I84: 0.089 | J84: lb/MMBtu | K84: 0.8036176471 | L84: lb/MW | M84: Part II | N84: 1/2008 SO2-8
A85: 1082_4 | B85: =VLOOKUP(A85,Min_Tests!A:AB,2,FALSE) -> 36 | D85: =VLOOKUP(A85,Min_Tests!A:AB,5,FALSE) -> 1082 | E85: 1082 | F85: 4 | G85: 4 | H85: Sulfur Dioxide | I85: 0.091 | J85: lb/MMBtu | K85: 0.8216764706 | L85: lb/MW | M85: Part II | N85: 1/2008 SO2-4
A86: 1082_4 | B86: =VLOOKUP(A86,Min_Tests!A:AB,2,FALSE) -> 36 | D86: =VLOOKUP(A86,Min_Tests!A:AB,5,FALSE) -> 1082 | E86: 1082 | F86: 4 | G86: 4 | H86: Sulfur Dioxide | I86: 0.092 | J86: lb/MMBtu | K86: 0.8307058824 | L86: lb/MW | M86: Part II | N86: 1/2008 SO2-6
A87: 10774_1 | B87: =VLOOKUP(A87,Min_Tests!A:AB,2,FALSE) -> 37 | D87: =VLOOKUP(A87,Min_Tests!A:AB,5,FALSE) -> 10774 | E87: 10774 | F87: 1 | G87: Unit 1 & 2 | H87: Sulfur Dioxide | I87: 0.02869488296 | J87: lb/MMBtu | K87: 0.3751433964 | L87: lb/MW | M87: ERT
A88: 10774_2 | B88: =VLOOKUP(A88,Min_Tests!A:AB,2,FALSE) -> 38 | D88: =VLOOKUP(A88,Min_Tests!A:AB,5,FALSE) -> 10774 | E88: 10774 | F88: 2 | G88: Unit 1 & 2 | H88: Sulfur Dioxide | I88: 0.02869488296 | J88: lb/MMBtu | K88: 0.3751433964 | L88: lb/MW | M88: ERT
A89: 2451_Unit 3 | B89: =VLOOKUP(A89,Min_Tests!A:AB,2,FALSE) -> 39 | D89: =VLOOKUP(A89,Min_Tests!A:AB,5,FALSE) -> 2451 | E89: 2451 | F89: Unit 3 | G89: Unit 3 | H89: Sulfur Dioxide | I89: 0.0355483871 | J89: lb/MMBtu | K89: 0.3762639943 | L89: lb/MW | M89: CEMS
A90: 3935_2 | B90: =VLOOKUP(A90,Min_Tests!A:AB,2,FALSE) -> 40 | D90: =VLOOKUP(A90,Min_Tests!A:AB,5,FALSE) -> 3935 | E90: 3935 | F90: 2 | G90: AM-2 | H90: Sulfur Dioxide | I90: 0.04506666667 | J90: lb/MMBtu | K90: 0.3875633958 | L90: lb/MW | M90: CEMS
A91: 994_1 | B91: =VLOOKUP(A91,Min_Tests!A:AB,2,FALSE) -> 41 | D91: =VLOOKUP(A91,Min_Tests!A:AB,5,FALSE) -> 994 | E91: 994 | F91: 1 | G91: 1s | H91: Sulfur Dioxide | I91: 0.04747058824 | J91: lb/MMBtu | K91: 0.409550173 | L91: lb/MW | M91: CEMS
A92: 2712_2 | B92: =VLOOKUP(A92,Min_Tests!A:AB,2,FALSE) -> 42 | D92: =VLOOKUP(A92,Min_Tests!A:AB,5,FALSE) -> 2712 | E92: 2712 | F92: 2 | G92: Rox_Cfg_2c | H92: Sulfur Dioxide | I92: 0.042 | J92: lb/MMBtu | K92: 0.4118150782 | L92: lb/MW | M92: Part II | N92: Rox_Blr_2_Test_6g
A93: 2706_2 | B93: =VLOOKUP(A93,Min_Tests!A:AB,2,FALSE) -> 43 | D93: =VLOOKUP(A93,Min_Tests!A:AB,5,FALSE) -> 2706 | E93: 2706 | F93: 2 | G93: Ash_Cfg_2 | H93: Sulfur Dioxide | I93: 0.04441385631 | J93: lb/MMBtu | K93: 0.4140938956 | L93: lb/MW | M93: Part II | N93: Ash_Blr_2_Test_7w
A94: 2706_2 | B94: =VLOOKUP(A94,Min_Tests!A:AB,2,FALSE) -> 43 | D94: =VLOOKUP(A94,Min_Tests!A:AB,5,FALSE) -> 2706 | E94: 2706 | F94: 2 | G94: Ash_Cfg_2 | H94: Sulfur Dioxide | I94: 0.04638758921 | J94: lb/MMBtu | K94: 0.4324960524 | L94: lb/MW | M94: ERT
A95: 6076_3 | B95: =VLOOKUP(A95,Min_Tests!A:AB,2,FALSE) -> 44 | D95: =VLOOKUP(A95,Min_Tests!A:AB,5,FALSE) -> 6076 | E95: 6076 | F95: 3 | G95: Unit3 | H95: Sulfur Dioxide | I95: 0.04522379137 | J95: lb/MMBtu | K95: 0.4254407106 | L95: lb/MW | M95: ERT
A96: 8042_Unit 1 | B96: =VLOOKUP(A96,Min_Tests!A:AB,2,FALSE) -> 45 | D96: =VLOOKUP(A96,Min_Tests!A:AB,5,FALSE) -> 8042 | E96: 8042 | F96: Unit 1 | G96: 1-2008 | H96: Sulfur Dioxide | I96: 0.04835983047 | J96: lb/MMBtu | K96: 0.4404504715 | L96: lb/MW | M96: ERT
A97: 4078_4 | B97: =VLOOKUP(A97,Min_Tests!A:AB,2,FALSE) -> 46 | D97: =VLOOKUP(A97,Min_Tests!A:AB,5,FALSE) -> 4078 | E97: 4078 | F97: 4 | G97: W4 | H97: Sulfur Dioxide | I97: 0.05 | J97: lb/MMBtu | K97: 0.4502236728 | L97: lb/MW | M97: Part II | N97: W4 CO 2008
A98: 4078_4 | B98: =VLOOKUP(A98,Min_Tests!A:AB,2,FALSE) -> 46 | D98: =VLOOKUP(A98,Min_Tests!A:AB,5,FALSE) -> 4078 | E98: 4078 | F98: 4 | G98: W4 | H98: Sulfur Dioxide | I98: 0.06123333333 | J98: lb/MMBtu | K98: 0.5513739246 | L98: lb/MW | M98: CEMS
A99: 10784_BLR1 | B99: =VLOOKUP(A99,Min_Tests!A:AB,2,FALSE) -> 47 | D99: =VLOOKUP(A99,Min_Tests!A:AB,5,FALSE) -> 10784 | E99: 10784 | F99: BLR1 | G99: Config1 | H99: Sulfur Dioxide | I99: 0.03156666667 | J99: lb/MMBtu | K99: 0.4555643939 | L99: lb/MW | M99: ETTS
A100: 10002_1 | B100: =VLOOKUP(A100,Min_Tests!A:AB,2,FALSE) -> 48 | D100: =VLOOKUP(A100,Min_Tests!A:AB,5,FALSE) -> 10002 | E100: 10002 | F100: 1 | G100: Config 1 | H100: Sulfur Dioxide | I100: 0.052 | J100: lb/MMBtu | K100: 0.4675555556 | L100: lb/MW | M100: Part II | N100: R016634
A101: 10002_1 | B101: =VLOOKUP(A101,Min_Tests!A:AB,2,FALSE) -> 48 | D101: =VLOOKUP(A101,Min_Tests!A:AB,5,FALSE) -> 10002 | E101: 10002 | F101: 1 | G101: Config 1 | H101: Sulfur Dioxide | I101: 0.05456666667 | J101: lb/MMBtu | K101: 0.4906336182 | L101: lb/MW | M101: CEMS
A102: 10002_1 | B102: =VLOOKUP(A102,Min_Tests!A:AB,2,FALSE) -> 48 | D102: =VLOOKUP(A102,Min_Tests!A:AB,5,FALSE) -> 10002 | E102: 10002 | F102: 1 | G102: Config 1 | H102: Sulfur Dioxide | I102: 0.05601788029 | J102: lb/MMBtu | K102: 0.5036821374 | L102: lb/MW | M102: Part II | N102: 06212005
A103: 10002_1 | B103: =VLOOKUP(A103,Min_Tests!A:AB,2,FALSE) -> 48 | D103: =VLOOKUP(A103,Min_Tests!A:AB,5,FALSE) -> 10002 | E103: 10002 | F103: 1 | G103: Config 1 | H103: Sulfur Dioxide | I103: 0.057 | J103: lb/MMBtu | K103: 0.5125128205 | L103: lb/MW | M103: Part II | N103: R017304
A104: 10002_1 | B104: =VLOOKUP(A104,Min_Tests!A:AB,2,FALSE) -> 48 | D104: =VLOOKUP(A104,Min_Tests!A:AB,5,FALSE) -> 10002 | E104: 10002 | F104: 1 | G104: Config 1 | H104: Sulfur Dioxide | I104: 0.07069031193 | J104: lb/MMBtu | K104: 0.6356086167 | L104: lb/MW | M104: Part II | N104: 2074.1011.rpt1
A105: 10002_1 | B105: =VLOOKUP(A105,Min_Tests!A:AB,2,FALSE) -> 48 | D105: =VLOOKUP(A105,Min_Tests!A:AB,5,FALSE) -> 10002 | E105: 10002 | F105: 1 | G105: Config 1 | H105: Sulfur Dioxide | I105: 0.07566225275 | J105: lb/MMBtu | K105: 0.6803135889 | L105: lb/MW | M105: Part II | N105: 2074.1012.rpt1
A106: 3935_3 | B106: =VLOOKUP(A106,Min_Tests!A:AB,2,FALSE) -> 49 | D106: =VLOOKUP(A106,Min_Tests!A:AB,5,FALSE) -> 3935 | E106: 3935 | F106: 3 | G106: AM-3 | H106: Sulfur Dioxide | I106: 0.05214285714 | J106: lb/MMBtu | K106: 0.4787516484 | L106: lb/MW | M106: CEMS
A107: 113_1 | B107: =VLOOKUP(A107,Min_Tests!A:AB,2,FALSE) -> 50 | D107: =VLOOKUP(A107,Min_Tests!A:AB,5,FALSE) -> 113 | E107: 113 | F107: 1 | G107: 001 | H107: Sulfur Dioxide | I107: 0.05 | J107: lb/MMBtu | K107: 0.4847328244 | L107: lb/MW | M107: Part II | N107: 17
A108: 113_1 | B108: =VLOOKUP(A108,Min_Tests!A:AB,2,FALSE) -> 50 | D108: =VLOOKUP(A108,Min_Tests!A:AB,5,FALSE) -> 113 | E108: 113 | F108: 1 | G108: 001 | H108: Sulfur Dioxide | I108: 0.065 | J108: lb/MMBtu | K108: 0.6301526718 | L108: lb/MW | M108: Part II | N108: 23
A109: 113_1 | B109: =VLOOKUP(A109,Min_Tests!A:AB,2,FALSE) -> 50 | D109: =VLOOKUP(A109,Min_Tests!A:AB,5,FALSE) -> 113 | E109: 113 | F109: 1 | G109: 001 | H109: Sulfur Dioxide | I109: 0.083 | J109: lb/MMBtu | K109: 0.8046564885 | L109: lb/MW | M109: Part II | N109: 30
A110: 113_1 | B110: =VLOOKUP(A110,Min_Tests!A:AB,2,FALSE) -> 50 | D110: =VLOOKUP(A110,Min_Tests!A:AB,5,FALSE) -> 113 | E110: 113 | F110: 1 | G110: 001 | H110: Sulfur Dioxide | I110: 0.14 | J110: lb/MMBtu | K110: 1.357251908 | L110: lb/MW | M110: Part II | N110: 9
A111: 8223_2 | B111: =VLOOKUP(A111,Min_Tests!A:AB,2,FALSE) -> 51 | D111: =VLOOKUP(A111,Min_Tests!A:AB,5,FALSE) -> 8223 | E111: 8223 | F111: 2 | G111: 2 | H111: Sulfur Dioxide | I111: 0.056 | J111: lb/MMBtu | K111: 0.4987906977 | L111: lb/MW | M111: Part II | N111: U2 PERF 06JUN05
A112: 8223_2 | B112: =VLOOKUP(A112,Min_Tests!A:AB,2,FALSE) -> 51 | D112: =VLOOKUP(A112,Min_Tests!A:AB,5,FALSE) -> 8223 | E112: 8223 | F112: 2 | G112: 2 | H112: Sulfur Dioxide | I112: 0.142 | J112: lb/MMBtu | K112: 1.264790698 | L112: lb/MW | M112: Part II | N112: U2 PERF 09MAY19
A113: 8223_2 | B113: =VLOOKUP(A113,Min_Tests!A:AB,2,FALSE) -> 51 | D113: =VLOOKUP(A113,Min_Tests!A:AB,5,FALSE) -> 8223 | E113: 8223 | F113: 2 | G113: 2 | H113: Sulfur Dioxide | I113: 0.16 | J113: lb/MMBtu | K113: 1.425116279 | L113: lb/MW | M113: Part II | N113: U2 PERF 07JUN5-8
A114: 8223_2 | B114: =VLOOKUP(A114,Min_Tests!A:AB,2,FALSE) -> 51 | D114: =VLOOKUP(A114,Min_Tests!A:AB,5,FALSE) -> 8223 | E114: 8223 | F114: 2 | G114: 2 | H114: Sulfur Dioxide | I114: 0.304 | J114: lb/MMBtu | K114: 2.70772093 | L114: lb/MW | M114: Part II | N114: U2 PERF 08MAY13
A115: 8223_2 | B115: =VLOOKUP(A115,Min_Tests!A:AB,2,FALSE) -> 51 | D115: =VLOOKUP(A115,Min_Tests!A:AB,5,FALSE) -> 8223 | E115: 8223 | F115: 2 | G115: 2 | H115: Sulfur Dioxide | I115: 0.477 | J115: lb/MMBtu | K115: 4.248627907 | L115: lb/MW | M115: Part II | N115: U2 PERF 05JUN05
A116: 7213_1 | B116: =VLOOKUP(A116,Min_Tests!A:AB,2,FALSE) -> 52 | D116: =VLOOKUP(A116,Min_Tests!A:AB,5,FALSE) -> 7213 | E116: 7213 | F116: 1 | G116: Unit 1 | H116: Sulfur Dioxide | I116: 0.04384165778 | J116: lb/MMBtu | K116: 0.5007714182 | L116: lb/MW | M116: ERT
A117: 7790_1-1 | B117: =VLOOKUP(A117,Min_Tests!A:AB,2,FALSE) -> 53 | D117: =VLOOKUP(A117,Min_Tests!A:AB,5,FALSE) -> 7790 | E117: 7790 | F117: 1-1 | G117: 1-1 | H117: Sulfur Dioxide | I117: 0.04942979298 | J117: lb/MMBtu | K117: 0.5013593288 | L117: lb/MW | M117: Part II | N117: Stack SO2-Nox RATA 2006
A118: 7790_1-1 | B118: =VLOOKUP(A118,Min_Tests!A:AB,2,FALSE) -> 53 | D118: =VLOOKUP(A118,Min_Tests!A:AB,5,FALSE) -> 7790 | E118: 7790 | F118: 1-1 | G118: 1-1 | H118: Sulfur Dioxide | I118: 0.06678793212 | J118: lb/MMBtu | K118: 0.6774204544 | L118: lb/MW | M118: Part II | N118: Stack SO2-NOX 2005
A119: 703_4 | B119: =VLOOKUP(A119,Min_Tests!A:AB,2,FALSE) -> 54 | D119: =VLOOKUP(A119,Min_Tests!A:AB,5,FALSE) -> 703 | E119: 703 | F119: 4 | G119: Unit 4 | H119: Sulfur Dioxide | I119: 0.05393333333 | J119: lb/MMBtu | K119: 0.5137680662 | L119: lb/MW | M119: CEMS
A120: 3948_1 | B120: =VLOOKUP(A120,Min_Tests!A:AB,2,FALSE) -> 55 | D120: =VLOOKUP(A120,Min_Tests!A:AB,5,FALSE) -> 3948 | E120: 3948 | F120: 1 | G120: MI-1 | H120: Sulfur Dioxide | I120: 0.0613 | J120: lb/MMBtu | K120: 0.5271664829 | L120: lb/MW | M120: CEMS
A121: 54081_4A | B121: =VLOOKUP(A121,Min_Tests!A:AB,2,FALSE) -> 56 | D121: =VLOOKUP(A121,Min_Tests!A:AB,5,FALSE) -> 54081 | E121: 54081 | F121: 4A | G121: GEN4 | H121: Sulfur Dioxide | I121: 0.0423 | J121: lb/MMBtu | K121: 0.5527003484 | L121: lb/MW | M121: CEMS
A122: 54081_4A | B122: =VLOOKUP(A122,Min_Tests!A:AB,2,FALSE) -> 56 | D122: =VLOOKUP(A122,Min_Tests!A:AB,5,FALSE) -> 54081 | E122: 54081 | F122: 4A | G122: GEN4 | H122: Sulfur Dioxide | I122: 0.08995347618 | J122: lb/MMBtu | K122: 1.175350299 | L122: lb/MW | M122: Part II | N122: 2006 Emissions Testing at Boilers 4A and 4B
A123: 54081_4A | B123: =VLOOKUP(A123,Min_Tests!A:AB,2,FALSE) -> 56 | D123: =VLOOKUP(A123,Min_Tests!A:AB,5,FALSE) -> 54081 | E123: 54081 | F123: 4A | G123: GEN4 | H123: Sulfur Dioxide | I123: 0.0941058516 | J123: lb/MMBtu | K123: 1.229606075 | L123: lb/MW | M123: ERT
A124: 54081_4B | B124: =VLOOKUP(A124,Min_Tests!A:AB,2,FALSE) -> 57 | D124: =VLOOKUP(A124,Min_Tests!A:AB,5,FALSE) -> 54081 | E124: 54081 | F124: 4B | G124: GEN4 | H124: Sulfur Dioxide | I124: 0.0423 | J124: lb/MMBtu | K124: 0.5527003484 | L124: lb/MW | M124: CEMS
A125: 54081_4B | B125: =VLOOKUP(A125,Min_Tests!A:AB,2,FALSE) -> 57 | D125: =VLOOKUP(A125,Min_Tests!A:AB,5,FALSE) -> 54081 | E125: 54081 | F125: 4B | G125: GEN4 | H125: Sulfur Dioxide | I125: 0.08995347618 | J125: lb/MMBtu | K125: 1.175350299 | L125: lb/MW | M125: Part II | N125: 2006 Emissions Testing at Boilers 4A and 4B
A126: 54081_4B | B126: =VLOOKUP(A126,Min_Tests!A:AB,2,FALSE) -> 57 | D126: =VLOOKUP(A126,Min_Tests!A:AB,5,FALSE) -> 54081 | E126: 54081 | F126: 4B | G126: GEN4 | H126: Sulfur Dioxide | I126: 0.0941058516 | J126: lb/MMBtu | K126: 1.229606075 | L126: lb/MW | M126: ERT
A127: 113_2 | B127: =VLOOKUP(A127,Min_Tests!A:AB,2,FALSE) -> 58 | D127: =VLOOKUP(A127,Min_Tests!A:AB,5,FALSE) -> 113 | E127: 113 | F127: 2 | G127: 002 | H127: Sulfur Dioxide | I127: 0.061 | J127: lb/MMBtu | K127: 0.5876 | L127: lb/MW | M127: Part II | N127: 6
A128: 113_2 | B128: =VLOOKUP(A128,Min_Tests!A:AB,2,FALSE) -> 58 | D128: =VLOOKUP(A128,Min_Tests!A:AB,5,FALSE) -> 113 | E128: 113 | F128: 2 | G128: 002 | H128: Sulfur Dioxide | I128: 0.087 | J128: lb/MMBtu | K128: 0.838052459 | L128: lb/MW | M128: Part II | N128: 3
A129: 113_2 | B129: =VLOOKUP(A129,Min_Tests!A:AB,2,FALSE) -> 58 | D129: =VLOOKUP(A129,Min_Tests!A:AB,5,FALSE) -> 113 | E129: 113 | F129: 2 | G129: 002 | H129: Sulfur Dioxide | I129: 0.109 | J129: lb/MMBtu | K129: 1.04997377 | L129: lb/MW | M129: Part II | N129: 18
A130: =E130&"_"&F130 -> 113_2 | B130: =VLOOKUP(A130,Min_Tests!A:AB,2,FALSE) -> 58 | D130: =VLOOKUP(A130,Min_Tests!A:AB,5,FALSE) -> 113 | E130: 113 | F130: 2 | G130: 002 | H130: Sulfur Dioxide | I130: 0.114 | J130: lb/MMBtu | K130: 1.098137705 | L130: lb/MW | M130: Part II | N130: 10
A131: 113_2 | B131: =VLOOKUP(A131,Min_Tests!A:AB,2,FALSE) -> 58 | D131: =VLOOKUP(A131,Min_Tests!A:AB,5,FALSE) -> 113 | E131: 113 | F131: 2 | G131: 002 | H131: Sulfur Dioxide | I131: 0.199 | J131: lb/MMBtu | K131: 1.91692459 | L131: lb/MW | M131: Part II | N131: 24
A132: 6018_2 | B132: =VLOOKUP(A132,Min_Tests!A:AB,2,FALSE) -> 59 | D132: =VLOOKUP(A132,Min_Tests!A:AB,5,FALSE) -> 6018 | E132: 6018 | F132: 2 | G132: 2 | H132: Sulfur Dioxide | I132: 0.06085586976 | J132: lb/MMBtu | K132: 0.5903927461 | L132: lb/MW | M132: ERT
A133: 8_10 | B133: =VLOOKUP(A133,Min_Tests!A:AB,2,FALSE) -> 60 | D133: =VLOOKUP(A133,Min_Tests!A:AB,5,FALSE) -> 8 | E133: 8 | F133: 10 | G133: Unit 10 | H133: Sulfur Dioxide | I133: 0.06517622487 | J133: lb/MMBtu | K133: 0.5905503677 | L133: lb/MW | M133: Part II | N133: UNITS 8-10 FGD PERFORMANCE TESTING Part 3
A134: 6180_1 | B134: =VLOOKUP(A134,Min_Tests!A:AB,2,FALSE) -> 61 | D134: =VLOOKUP(A134,Min_Tests!A:AB,5,FALSE) -> 6180 | E134: 6180 | F134: 1 | G134: OG1 | H134: Sulfur Dioxide | I134: 0.054 | J134: lb/MMBtu | K134: 0.592876377 | L134: lb/MW | M134: Part II | N134: 1-Compliance Test Report
A135: 6180_1 | B135: =VLOOKUP(A135,Min_Tests!A:AB,2,FALSE) -> 61 | D135: =VLOOKUP(A135,Min_Tests!A:AB,5,FALSE) -> 6180 | E135: 6180 | F135: 1 | G135: OG1 | H135: Sulfur Dioxide | I135: 0.05633464923 | J135: lb/MMBtu | K135: 0.6185089395 | L135: lb/MW | M135: ERT
A136: 8_8 | B136: =VLOOKUP(A136,Min_Tests!A:AB,2,FALSE) -> 62 | D136: =VLOOKUP(A136,Min_Tests!A:AB,5,FALSE) -> 8 | E136: 8 | F136: 8 | G136: Unit 8 | H136: Sulfur Dioxide | I136: 0.06517622487 | J136: lb/MMBtu | K136: 0.5962310809 | L136: lb/MW | M136: Part II | N136: UNITS 8-10 FGD PERFORMANCE TESTING Part 3
A137: 2324_1 | B137: =VLOOKUP(A137,Min_Tests!A:AB,2,FALSE) -> 63 | D137: =VLOOKUP(A137,Min_Tests!A:AB,5,FALSE) -> 2324 | E137: 2324 | F137: 1 | G137: 1 | H137: Sulfur Dioxide | I137: 0.055 | J137: lb/MMBtu | K137: 0.602027027 | L137: lb/MW | M137: Part II | N137: U1_2009_COMPLIANCE
A138: 2324_1 | B138: =VLOOKUP(A138,Min_Tests!A:AB,2,FALSE) -> 63 | D138: =VLOOKUP(A138,Min_Tests!A:AB,5,FALSE) -> 2324 | E138: 2324 | F138: 1 | G138: 1 | H138: Sulfur Dioxide | I138: 0.06214711852 | J138: lb/MMBtu | K138: 0.680259 | L138: lb/MW | M138: ERT
A139: 2451_Unit 4 | B139: =VLOOKUP(A139,Min_Tests!A:AB,2,FALSE) -> 64 | D139: =VLOOKUP(A139,Min_Tests!A:AB,5,FALSE) -> 2451 | E139: 2451 | F139: Unit 4 | G139: Unit 4 | H139: Sulfur Dioxide | I139: 0.05887096774 | J139: lb/MMBtu | K139: 0.6113273838 | L139: lb/MW | M139: CEMS
A140: 3944_2 | B140: =VLOOKUP(A140,Min_Tests!A:AB,2,FALSE) -> 65 | D140: =VLOOKUP(A140,Min_Tests!A:AB,5,FALSE) -> 3944 | E140: 3944 | F140: 2 | G140: Boiler2 | H140: Sulfur Dioxide | I140: 0.07007815732 | J140: lb/MMBtu | K140: 0.6118673793 | L140: lb/MW | M140: ERT
A141: 8_9 | B141: =VLOOKUP(A141,Min_Tests!A:AB,2,FALSE) -> 66 | D141: =VLOOKUP(A141,Min_Tests!A:AB,5,FALSE) -> 8 | E141: 8 | F141: 9 | G141: Unit 9 | H141: Sulfur Dioxide | I141: 0.06517622487 | J141: lb/MMBtu | K141: 0.6125243117 | L141: lb/MW | M141: Part II | N141: UNITS 8-10 FGD PERFORMANCE TESTING Part 3
A142: 2324_4 | B142: =VLOOKUP(A142,Min_Tests!A:AB,2,FALSE) -> 67 | D142: =VLOOKUP(A142,Min_Tests!A:AB,5,FALSE) -> 2324 | E142: 2324 | F142: 4 | G142: 4 | H142: Sulfur Dioxide | I142: 0.0591 | J142: lb/MMBtu | K142: 0.6217067616 | L142: lb/MW | M142: Part II | N142: U4_2009_COMPLIANCE
A143: 2324_4 | B143: =VLOOKUP(A143,Min_Tests!A:AB,2,FALSE) -> 67 | D143: =VLOOKUP(A143,Min_Tests!A:AB,5,FALSE) -> 2324 | E143: 2324 | F143: 4 | G143: 4 | H143: Sulfur Dioxide | I143: 0.061 | J143: lb/MMBtu | K143: 0.6416939502 | L143: lb/MW | M143: Part II | N143: U4_2008_COMPLIANCE
A144: 2324_4 | B144: =VLOOKUP(A144,Min_Tests!A:AB,2,FALSE) -> 67 | D144: =VLOOKUP(A144,Min_Tests!A:AB,5,FALSE) -> 2324 | E144: 2324 | F144: 4 | G144: 4 | H144: Sulfur Dioxide | I144: 0.071 | J144: lb/MMBtu | K144: 0.7468896797 | L144: lb/MW | M144: Part II | N144: U4_2007_COMPLIANCE
A145: 2324_4 | B145: =VLOOKUP(A145,Min_Tests!A:AB,2,FALSE) -> 67 | D145: =VLOOKUP(A145,Min_Tests!A:AB,5,FALSE) -> 2324 | E145: 2324 | F145: 4 | G145: 4 | H145: Sulfur Dioxide | I145: 0.0718 | J145: lb/MMBtu | K145: 0.7553053381 | L145: lb/MW | M145: Part II | N145: U4_2005_COMPLIANCE ALT
A146: 2324_4 | B146: =VLOOKUP(A146,Min_Tests!A:AB,2,FALSE) -> 67 | D146: =VLOOKUP(A146,Min_Tests!A:AB,5,FALSE) -> 2324 | E146: 2324 | F146: 4 | G146: 4 | H146: Sulfur Dioxide | I146: 0.0884 | J146: lb/MMBtu | K146: 0.9299302491 | L146: lb/MW | M146: Part II | N146: U4_2005_COMPLIANCE
A147: 2324_4 | B147: =VLOOKUP(A147,Min_Tests!A:AB,2,FALSE) -> 67 | D147: =VLOOKUP(A147,Min_Tests!A:AB,5,FALSE) -> 2324 | E147: 2324 | F147: 4 | G147: 4 | H147: Sulfur Dioxide | I147: 0.098 | J147: lb/MMBtu | K147: 1.030918149 | L147: lb/MW | M147: Part II | N147: U4_2006_COMPLIANCE
A148: 8224_2 | B148: =VLOOKUP(A148,Min_Tests!A:AB,2,FALSE) -> 68 | D148: =VLOOKUP(A148,Min_Tests!A:AB,5,FALSE) -> 8224 | E148: 8224 | F148: 2 | G148: 2 | H148: Sulfur Dioxide | I148: 0.05866666667 | J148: lb/MMBtu | K148: 0.6255317049 | L148: lb/MW | M148: Part II | N148: U2_2009_COMPLIANCE
A149: 8224_2 | B149: =VLOOKUP(A149,Min_Tests!A:AB,2,FALSE) -> 68 | D149: =VLOOKUP(A149,Min_Tests!A:AB,5,FALSE) -> 8224 | E149: 8224 | F149: 2 | G149: 2 | H149: Sulfur Dioxide | I149: 0.11 | J149: lb/MMBtu | K149: 1.172871947 | L149: lb/MW | M149: Part II | N149: U2_2008_COMPLIANCE
A150: 8224_2 | B150: =VLOOKUP(A150,Min_Tests!A:AB,2,FALSE) -> 68 | D150: =VLOOKUP(A150,Min_Tests!A:AB,5,FALSE) -> 8224 | E150: 8224 | F150: 2 | G150: 2 | H150: Sulfur Dioxide | I150: 0.15 | J150: lb/MMBtu | K150: 1.599370836 | L150: lb/MW | M150: Part II | N150: U2_2007_COMPLIANCE
A151: 8224_2 | B151: =VLOOKUP(A151,Min_Tests!A:AB,2,FALSE) -> 68 | D151: =VLOOKUP(A151,Min_Tests!A:AB,5,FALSE) -> 8224 | E151: 8224 | F151: 2 | G151: 2 | H151: Sulfur Dioxide | I151: 0.1522 | J151: lb/MMBtu | K151: 1.622828275 | L151: lb/MW | M151: Part II | N151: U2_2006_COMPLIANCE
A152: 1606_1 | B152: =VLOOKUP(A152,Min_Tests!A:AB,2,FALSE) -> 69 | D152: =VLOOKUP(A152,Min_Tests!A:AB,5,FALSE) -> 1606 | E152: 1606 | F152: 1 | G152: 1 current | H152: Sulfur Dioxide | I152: 0.066 | J152: lb/MMBtu | K152: 0.6301935484 | L152: lb/MW | M152: Part II | N152: Turbosorp - initial compliance test
A153: 703_3 | B153: =VLOOKUP(A153,Min_Tests!A:AB,2,FALSE) -> 70 | D153: =VLOOKUP(A153,Min_Tests!A:AB,5,FALSE) -> 703 | E153: 703 | F153: 3 | G153: Unit 3 | H153: Sulfur Dioxide | I153: 0.07193333333 | J153: lb/MMBtu | K153: 0.6310355907 | L153: lb/MW | M153: CEMS
A154: 628_5 | B154: =VLOOKUP(A154,Min_Tests!A:AB,2,FALSE) -> 71 | D154: =VLOOKUP(A154,Min_Tests!A:AB,5,FALSE) -> 628 | E154: 628 | F154: 5 | G154: CryR_Cfg_5c | H154: Sulfur Dioxide | I154: 0.06522419233 | J154: lb/MMBtu | K154: 0.6312375224 | L154: lb/MW | M154: ERT
A155: 8223_1 | B155: =VLOOKUP(A155,Min_Tests!A:AB,2,FALSE) -> 72 | D155: =VLOOKUP(A155,Min_Tests!A:AB,5,FALSE) -> 8223 | E155: 8223 | F155: 1 | G155: 1 | H155: Sulfur Dioxide | I155: 0.071 | J155: lb/MMBtu | K155: 0.6368384075 | L155: lb/MW | M155: Part II | N155: U1 PERF 06MAY22
A156: 8223_1 | B156: =VLOOKUP(A156,Min_Tests!A:AB,2,FALSE) -> 72 | D156: =VLOOKUP(A156,Min_Tests!A:AB,5,FALSE) -> 8223 | E156: 8223 | F156: 1 | G156: 1 | H156: Sulfur Dioxide | I156: 0.142 | J156: lb/MMBtu | K156: 1.273676815 | L156: lb/MW | M156: Part II | N156: U1 PERF 07JUN06
A157: 8223_1 | B157: =VLOOKUP(A157,Min_Tests!A:AB,2,FALSE) -> 72 | D157: =VLOOKUP(A157,Min_Tests!A:AB,5,FALSE) -> 8223 | E157: 8223 | F157: 1 | G157: 1 | H157: Sulfur Dioxide | I157: 0.172 | J157: lb/MMBtu | K157: 1.542763466 | L157: lb/MW | M157: Part II | N157: U1 PERF 08JUN09
A158: 8223_1 | B158: =VLOOKUP(A158,Min_Tests!A:AB,2,FALSE) -> 72 | D158: =VLOOKUP(A158,Min_Tests!A:AB,5,FALSE) -> 8223 | E158: 8223 | F158: 1 | G158: 1 | H158: Sulfur Dioxide | I158: 0.209 | J158: lb/MMBtu | K158: 1.874637002 | L158: lb/MW | M158: Part II | N158: U1 PERF 09MAY20
A159: 8223_1 | B159: =VLOOKUP(A159,Min_Tests!A:AB,2,FALSE) -> 72 | D159: =VLOOKUP(A159,Min_Tests!A:AB,5,FALSE) -> 8223 | E159: 8223 | F159: 1 | G159: 1 | H159: Sulfur Dioxide | I159: 0.361 | J159: lb/MMBtu | K159: 3.238009368 | L159: lb/MW | M159: Part II | N159: U1 PERF 05MAY01
A160: 3948_2 | B160: =VLOOKUP(A160,Min_Tests!A:AB,2,FALSE) -> 73 | D160: =VLOOKUP(A160,Min_Tests!A:AB,5,FALSE) -> 3948 | E160: 3948 | F160: 2 | G160: MI-2 | H160: Sulfur Dioxide | I160: 0.07506666667 | J160: lb/MMBtu | K160: 0.6455567806 | L160: lb/MW | M160: CEMS
A161: 8223_4 | B161: =VLOOKUP(A161,Min_Tests!A:AB,2,FALSE) -> 74 | D161: =VLOOKUP(A161,Min_Tests!A:AB,5,FALSE) -> 8223 | E161: 8223 | F161: 4 | G161: 4 | H161: Sulfur Dioxide | I161: 0.06923333333 | J161: lb/MMBtu | K161: 0.6461777778 | L161: lb/MW | M161: CEMS
A162: 56319_0001 | B162: =VLOOKUP(A162,Min_Tests!A:AB,2,FALSE) -> 75 | D162: =VLOOKUP(A162,Min_Tests!A:AB,5,FALSE) -> 56319 | E162: 56319 | F162: 0001 | G162: WYG2Cfg | H162: Sulfur Dioxide | I162: 0.048 | J162: lb/MMBtu | K162: 0.65 | L162: lb/MW | M162: CEMS
A163: 2451_Unit 1 | B163: =VLOOKUP(A163,Min_Tests!A:AB,2,FALSE) -> 76 | D163: =VLOOKUP(A163,Min_Tests!A:AB,5,FALSE) -> 2451 | E163: 2451 | F163: Unit 1 | G163: Unit 1 | H163: Sulfur Dioxide | I163: 0.06547368421 | J163: lb/MMBtu | K163: 0.6559755334 | L163: lb/MW | M163: CEMS
A164: 54081_1A | B164: =VLOOKUP(A164,Min_Tests!A:AB,2,FALSE) -> 77 | D164: =VLOOKUP(A164,Min_Tests!A:AB,5,FALSE) -> 54081 | E164: 54081 | F164: 1A | G164: GEN1 | H164: Sulfur Dioxide | I164: 0.05156335829 | J164: lb/MMBtu | K164: 0.6737372599 | L164: lb/MW | M164: ERT
A165: 54081_1B | B165: =VLOOKUP(A165,Min_Tests!A:AB,2,FALSE) -> 78 | D165: =VLOOKUP(A165,Min_Tests!A:AB,5,FALSE) -> 54081 | E165: 54081 | F165: 1B | G165: GEN1 | H165: Sulfur Dioxide | I165: 0.05156335829 | J165: lb/MMBtu | K165: 0.6737372599 | L165: lb/MW | M165: ERT
A166: 8223_3 | B166: =VLOOKUP(A166,Min_Tests!A:AB,2,FALSE) -> 79 | D166: =VLOOKUP(A166,Min_Tests!A:AB,5,FALSE) -> 8223 | E166: 8223 | F166: 3 | G166: 3 | H166: Sulfur Dioxide | I166: 0.07436666667 | J166: lb/MMBtu | K166: 0.6940888889 | L166: lb/MW | M166: CEMS
A167: 8223_3 | B167: =VLOOKUP(A167,Min_Tests!A:AB,2,FALSE) -> 79 | D167: =VLOOKUP(A167,Min_Tests!A:AB,5,FALSE) -> 8223 | E167: 8223 | F167: 3 | G167: 3 | H167: Sulfur Dioxide | I167: 0.099 | J167: lb/MMBtu | K167: 0.924 | L167: lb/MW | M167: Part II | N167: U3 INITIAL PERF TESTS (VOC, SO2, NOX, CO)
A168: 10384_2A | B168: =VLOOKUP(A168,Min_Tests!A:AB,2,FALSE) -> 80 | D168: =VLOOKUP(A168,Min_Tests!A:AB,5,FALSE) -> 10384 | E168: 10384 | F168: 2A | G168: Gen 2 | H168: Sulfur Dioxide | I168: 0.0568 | J168: lb/MMBtu | K168: 0.6983606557 | L168: lb/MW | M168: CEMS
A169: 10384_2B | B169: =VLOOKUP(A169,Min_Tests!A:AB,2,FALSE) -> 81 | D169: =VLOOKUP(A169,Min_Tests!A:AB,5,FALSE) -> 10384 | E169: 10384 | F169: 2B | G169: Gen 2 | H169: Sulfur Dioxide | I169: 0.0568 | J169: lb/MMBtu | K169: 0.6983606557 | L169: lb/MW | M169: CEMS
A170: 130_3 | B170: =VLOOKUP(A170,Min_Tests!A:AB,2,FALSE) -> 82 | D170: =VLOOKUP(A170,Min_Tests!A:AB,5,FALSE) -> 130 | E170: 130 | F170: 3 | G170: C3 | H170: Sulfur Dioxide | I170: 0.0743 | J170: lb/MMBtu | K170: 0.72017504 | L170: lb/MW | M170: CEMS
A171: 6761_101 | B171: =VLOOKUP(A171,Min_Tests!A:AB,2,FALSE) -> 83 | D171: =VLOOKUP(A171,Min_Tests!A:AB,5,FALSE) -> 6761 | E171: 6761 | F171: 101 | G171: Rawhide101 | H171: Sulfur Dioxide | I171: 0.07853333333 | J171: lb/MMBtu | K171: 0.7209617486 | L171: lb/MW | M171: CEMS
A172: 1012_3 | B172: =VLOOKUP(A172,Min_Tests!A:AB,2,FALSE) -> 84 | D172: =VLOOKUP(A172,Min_Tests!A:AB,5,FALSE) -> 1012 | E172: 1012 | F172: 3 | G172: Config3 | H172: Sulfur Dioxide | I172: 0.08004545455 | J172: lb/MMBtu | K172: 0.7499729173 | L172: lb/MW | M172: CEMS
A173: 2727_Unit 1 | B173: =VLOOKUP(A173,Min_Tests!A:AB,2,FALSE) -> 85 | D173: =VLOOKUP(A173,Min_Tests!A:AB,5,FALSE) -> 2727 | E173: 2727 | F173: Unit 1 | G173: U12007 | H173: Sulfur Dioxide | I173: 0.08292352522 | J173: lb/MMBtu | K173: 0.7583770999 | L173: lb/MW | M173: ERT
A174: 2727_Unit 2 | B174: =VLOOKUP(A174,Min_Tests!A:AB,2,FALSE) -> 86 | D174: =VLOOKUP(A174,Min_Tests!A:AB,5,FALSE) -> 2727 | E174: 2727 | F174: Unit 2 | G174: U22007 | H174: Sulfur Dioxide | I174: 0.08292352522 | J174: lb/MMBtu | K174: 0.759413644 | L174: lb/MW | M174: ERT
A175: 2718_ES-3 | B175: =VLOOKUP(A175,Min_Tests!A:AB,2,FALSE) -> 87 | D175: =VLOOKUP(A175,Min_Tests!A:AB,5,FALSE) -> 2718 | E175: 2718 | F175: ES-3 | G175: 3-2009 | H175: Sulfur Dioxide | I175: 0.09706152941 | J175: lb/MMBtu | K175: 0.7682170072 | L175: lb/MW | M175: ERT
A176: 2718_ES-4 | B176: =VLOOKUP(A176,Min_Tests!A:AB,2,FALSE) -> 88 | D176: =VLOOKUP(A176,Min_Tests!A:AB,5,FALSE) -> 2718 | E176: 2718 | F176: ES-4 | G176: 4-2009 | H176: Sulfur Dioxide | I176: 0.09706152941 | J176: lb/MMBtu | K176: 0.777014598 | L176: lb/MW | M176: ERT
A177: 10043_B01 | B177: =VLOOKUP(A177,Min_Tests!A:AB,2,FALSE) -> 89 | D177: =VLOOKUP(A177,Min_Tests!A:AB,5,FALSE) -> 10043 | E177: 10043 | F177: B01 | G177: Unit1 | H177: Sulfur Dioxide | I177: 0.09099590867 | J177: lb/MMBtu | K177: 0.7966377441 | L177: lb/MW | M177: ERT
A178: 10043_B01 | B178: =VLOOKUP(A178,Min_Tests!A:AB,2,FALSE) -> 89 | D178: =VLOOKUP(A178,Min_Tests!A:AB,5,FALSE) -> 10043 | E178: 10043 | F178: B01 | G178: Unit1 | H178: Sulfur Dioxide | I178: 0.10625 | J178: lb/MMBtu | K178: 0.9301820439 | L178: lb/MW | M178: Part II | N178: 2005 Annual Stack Test-3
A179: 2727_Unit 4 | B179: =VLOOKUP(A179,Min_Tests!A:AB,2,FALSE) -> 90 | D179: =VLOOKUP(A179,Min_Tests!A:AB,5,FALSE) -> 2727 | E179: 2727 | F179: Unit 4 | G179: U4 | H179: Sulfur Dioxide | I179: 0.0944912309 | J179: lb/MMBtu | K179: 0.813947463 | L179: lb/MW | M179: ERT
A180: 645_1 | B180: =VLOOKUP(A180,Min_Tests!A:AB,2,FALSE) -> 91 | D180: =VLOOKUP(A180,Min_Tests!A:AB,5,FALSE) -> 645 | E180: 645 | F180: 1 | G180: BB01_pre-SCR | H180: Sulfur Dioxide | I180: 0.08290114343 | J180: lb/MMBtu | K180: 0.8162729659 | L180: lb/MW | M180: Part II | N180: BB#1_FY2008
A181: 645_1 | B181: =VLOOKUP(A181,Min_Tests!A:AB,2,FALSE) -> 91 | D181: =VLOOKUP(A181,Min_Tests!A:AB,5,FALSE) -> 645 | E181: 645 | F181: 1 | G181: BB01_pre-SCR | H181: Sulfur Dioxide | I181: 0.1242713443 | J181: lb/MMBtu | K181: 1.22361809 | L181: lb/MW | M181: Part II | N181: BB#1_FY2009
A182: 645_1 | B182: =VLOOKUP(A182,Min_Tests!A:AB,2,FALSE) -> 91 | D182: =VLOOKUP(A182,Min_Tests!A:AB,5,FALSE) -> 645 | E182: 645 | F182: 1 | G182: BB01_pre-SCR | H182: Sulfur Dioxide | I182: 0.1832850817 | J182: lb/MMBtu | K182: 1.8046875 | L182: lb/MW | M182: Part II | N182: BB#1_FY2007
A183: 1012_2 | B183: =VLOOKUP(A183,Min_Tests!A:AB,2,FALSE) -> 92 | D183: =VLOOKUP(A183,Min_Tests!A:AB,5,FALSE) -> 1012 | E183: 1012 | F183: 2 | G183: Config2 | H183: Sulfur Dioxide | I183: 0.08004545455 | J183: lb/MMBtu | K183: 0.8252686364 | L183: lb/MW | M183: CEMS
A184: 2451_Unit 2 | B184: =VLOOKUP(A184,Min_Tests!A:AB,2,FALSE) -> 93 | D184: =VLOOKUP(A184,Min_Tests!A:AB,5,FALSE) -> 2451 | E184: 2451 | F184: Unit 2 | G184: Unit 2 | H184: Sulfur Dioxide | I184: 0.08328571429 | J184: lb/MMBtu | K184: 0.8301559846 | L184: lb/MW | M184: CEMS
A185: 2324_2 | B185: =VLOOKUP(A185,Min_Tests!A:AB,2,FALSE) -> 94 | D185: =VLOOKUP(A185,Min_Tests!A:AB,5,FALSE) -> 2324 | E185: 2324 | F185: 2 | G185: 2 | H185: Sulfur Dioxide | I185: 0.083 | J185: lb/MMBtu | K185: 0.9085135135 | L185: lb/MW | M185: Part II | N185: U2_2009_COMPLIANCE
A186: 6041_4 | B186: =VLOOKUP(A186,Min_Tests!A:AB,2,FALSE) -> 95 | D186: =VLOOKUP(A186,Min_Tests!A:AB,5,FALSE) -> 6041 | E186: 6041 | F186: 4 | G186: Unit 04 | H186: Sulfur Dioxide | I186: 0.09776666667 | J186: lb/MMBtu | K186: 0.9124888889 | L186: lb/MW | M186: CEMS
A187: 6041_4 | B187: =VLOOKUP(A187,Min_Tests!A:AB,2,FALSE) -> 95 | D187: =VLOOKUP(A187,Min_Tests!A:AB,5,FALSE) -> 6041 | E187: 6041 | F187: 4 | G187: Unit 04 | H187: Sulfur Dioxide | I187: 0.09933333333 | J187: lb/MMBtu | K187: 0.9271111111 | L187: lb/MW | M187: Part II | N187: Gaseous Compliance_04/09/09
A188: 6041_4 | B188: =VLOOKUP(A188,Min_Tests!A:AB,2,FALSE) -> 95 | D188: =VLOOKUP(A188,Min_Tests!A:AB,5,FALSE) -> 6041 | E188: 6041 | F188: 4 | G188: Unit 04 | H188: Sulfur Dioxide | I188: 0.1114333333 | J188: lb/MMBtu | K188: 1.040044444 | L188: lb/MW | M188: Part II | N188: Compliance_H2SO4_05/28/09
A189: 994_2 | B189: =VLOOKUP(A189,Min_Tests!A:AB,2,FALSE) -> 96 | D189: =VLOOKUP(A189,Min_Tests!A:AB,5,FALSE) -> 994 | E189: 994 | F189: 2 | G189: 2ss | H189: Sulfur Dioxide | I189: 0.09823333333 | J189: lb/MMBtu | K189: 0.9147841199 | L189: lb/MW | M189: CEMS
A190: 6639_G2 | B190: =VLOOKUP(A190,Min_Tests!A:AB,2,FALSE) -> 97 | D190: =VLOOKUP(A190,Min_Tests!A:AB,5,FALSE) -> 6639 | E190: 6639 | F190: G2 | G190: 2 | H190: Sulfur Dioxide | I190: 0.08026666667 | J190: lb/MMBtu | K190: 0.9157116876 | L190: lb/MW | M190: CEMS
A191: 7213_2 | B191: =VLOOKUP(A191,Min_Tests!A:AB,2,FALSE) -> 98 | D191: =VLOOKUP(A191,Min_Tests!A:AB,5,FALSE) -> 7213 | E191: 7213 | F191: 2 | G191: Unit 2 | H191: Sulfur Dioxide | I191: 0.07917451829 | J191: lb/MMBtu | K191: 0.9196284486 | L191: lb/MW | M191: ERT
A192: 6096_NC2 | B192: =VLOOKUP(A192,Min_Tests!A:AB,2,FALSE) -> 99 | D192: =VLOOKUP(A192,Min_Tests!A:AB,5,FALSE) -> 6096 | E192: 6096 | F192: NC2 | G192: NC2 | H192: Sulfur Dioxide | I192: 0.09236666667 | J192: lb/MMBtu | K192: 0.9372445667 | L192: lb/MW | M192: CEMS
A193: 728_Y1BR | B193: =VLOOKUP(A193,Min_Tests!A:AB,2,FALSE) -> 100 | D193: =VLOOKUP(A193,Min_Tests!A:AB,5,FALSE) -> 728 | E193: 728 | F193: Y1BR | G193: Y1BR | H193: Sulfur Dioxide | I193: 0.0937 | J193: lb/MMBtu | K193: 0.9586665925 | L193: lb/MW | M193: CEMS
A194: =E194&"_"&F194 -> 160_2 | B194: =VLOOKUP(A194,Min_Tests!A:AB,2,FALSE) -> 101 | D194: =VLOOKUP(A194,Min_Tests!A:AB,5,FALSE) -> 160 | E194: 160 | F194: 2 | G194: ST2 | H194: Sulfur Dioxide | I194: 0.1025658542 | J194: lb/MMBtu | K194: 0.971620917 | L194: lb/MW | M194: Part II | N194: Test 7
A195: 160_2 | B195: =VLOOKUP(A195,Min_Tests!A:AB,2,FALSE) -> 101 | D195: =VLOOKUP(A195,Min_Tests!A:AB,5,FALSE) -> 160 | E195: 160 | F195: 2 | G195: ST2 | H195: Sulfur Dioxide | I195: 0.1412558247 | J195: lb/MMBtu | K195: 1.338136508 | L195: lb/MW | M195: Part II | N195: Test 1
A196: 160_2 | B196: =VLOOKUP(A196,Min_Tests!A:AB,2,FALSE) -> 101 | D196: =VLOOKUP(A196,Min_Tests!A:AB,5,FALSE) -> 160 | E196: 160 | F196: 2 | G196: ST2 | H196: Sulfur Dioxide | I196: 0.3302107193 | J196: lb/MMBtu | K196: 3.128133086 | L196: lb/MW | M196: Part II | N196: Test 3
A197: 160_2 | B197: =VLOOKUP(A197,Min_Tests!A:AB,2,FALSE) -> 101 | D197: =VLOOKUP(A197,Min_Tests!A:AB,5,FALSE) -> 160 | E197: 160 | F197: 2 | G197: ST2 | H197: Sulfur Dioxide | I197: 0.3629770193 | J197: lb/MMBtu | K197: 3.438532903 | L197: lb/MW | M197: Part II | N197: Test 5
A198: 160_2 | B198: =VLOOKUP(A198,Min_Tests!A:AB,2,FALSE) -> 101 | D198: =VLOOKUP(A198,Min_Tests!A:AB,5,FALSE) -> 160 | E198: 160 | F198: 2 | G198: ST2 | H198: Sulfur Dioxide | I198: 0.4315318911 | J198: lb/MMBtu | K198: 4.087962949 | L198: lb/MW | M198: Part II | N198: Test 9
A199: 963_34 | B199: =VLOOKUP(A199,Min_Tests!A:AB,2,FALSE) -> 102 | D199: =VLOOKUP(A199,Min_Tests!A:AB,5,FALSE) -> 963 | E199: 963 | F199: 34 | G199: 34 | H199: Sulfur Dioxide | I199: 0.118 | J199: lb/MMBtu | K199: 0.9901403662 | L199: lb/MW | M199: CEMS
A200: 52007_BLR1 | B200: =VLOOKUP(A200,Min_Tests!A:AB,2,FALSE) -> 103 | D200: =VLOOKUP(A200,Min_Tests!A:AB,5,FALSE) -> 52007 | E200: 52007 | F200: BLR1 | G200: Unit 1 & 2 | H200: Sulfur Dioxide | I200: 0.08312822464 | J200: lb/MMBtu | K200: 1.003007658 | L200: lb/MW | M200: ERT
... 293 more rows

Sheet Lognormal Template
B1: Emissions (lb/MW)
A2: ='UPL Pooled Template '!A1 -> SO2 | B2: 52071 Sandow 5A | M2: Outliers Removed
A3: 1 | B3: 0.2287114243
A4: 2 | B4: 0.09675292478
A5: 3 | B5: 0.02537429657
A6: 4 | B6: 0.06290065522
A7: 5 | B7: 0.09435098282
A8: 6 | B8: 0.6499734372
A9: 7
A10: 8
A11: 9
A12: 10
A13: 11
A14: 12
A15: 13
A16: 14
A17: 15
A18: 16
A19: 17
A20: 18
A21: 19
A22: 20
A23: 21
A24: 22
A25: 23
A26: 24
A27: 25
A28: 26
A29: 27
A30: 28
A31: 29
A32: 30
A33: 31
A34: 32
A35: 33
A36: 34
A37: 35
A38: Use for small sample sets that are Lognormal.
A40: Testing Normality | B40: Raw Data | C40: Log Data
A41: Sample Size | B41: =COUNT(B3:L37) -> 6 | C41: =COUNT(B51:L85) -> 6
A42: Kurtosis | B42: =KURT(B3:L37) -> 4.198150703 | C42: =KURT(B51:L85) -> 0.4475838061
A43: SE Kurtosis | B43: =SQRT((B41^2-1)/((B41-3)*(B41+5))) -> 1.029857301 | C43: =SQRT((C41^2-1)/((C41-3)*(C41+5))) -> 1.029857301
A44: Result Kurtosis | B44: =IF(ABS(B42/B43)>NORMSINV(1-0.05/2),"non normal","normal") -> non normal | C44: =IF(ABS(C42/C43)>NORMSINV(1-0.05/2),"non normal","normal") -> normal
A45: Skewness | B45: =SKEW(B3:L37) -> 2.026228033 | C45: =SKEW(B51:L85) -> 0.4445224066
A46: SE Skewness | B46: =SQRT((6*B41*(B41-1))/((B41-2)*(B41+1)*(B41+3))) -> 0.8451542547 | C46: =SQRT((6*C41*(C41-1))/((C41-2)*(C41+1)*(C41+3))) -> 0.8451542547
A47: Result Skewness | B47: =IF(ABS(B45/B46)>NORMSINV(1-0.05/2),"non normal","normal") -> non normal | C47: =IF(ABS(C45/C46)>NORMSINV(1-0.05/2),"non normal","normal") -> normal
B49: 1. Take LN( ) of Raw Data
A50: Runs
A51: 1 | B51: =IF(B3>0,LN(B3),"") -> -1.475294226 | C51: =IF(C3>0,LN(C3),"") -> 
A52: 2 | B52: =IF(B4>0,LN(B4),"") -> -2.335594717
A53: 3 | B53: =IF(B5>0,LN(B5),"") -> -3.674018563
A54: 4 | B54: =IF(B6>0,LN(B6),"") -> -2.766198699
A55: 5 | B55: =IF(B7>0,LN(B7),"") -> -2.36073359
A56: 6 | B56: =IF(B8>0,LN(B8),"") -> -0.4308237827
A57: 7 | B57: =IF(B9>0,LN(B9),"") -> 
A58: 8 | B58: =IF(B10>0,LN(B10),"") -> 
A59: 9 | B59: =IF(B11>0,LN(B11),"") -> 
A60: 10 | B60: =IF(B12>0,LN(B12),"") -> 
A61: 11 | B61: =IF(B13>0,LN(B13),"") -> 
A62: 12 | B62: =IF(B14>0,LN(B14),"") -> 
A63: 13 | B63: =IF(B15>0,LN(B15),"") -> 
A64: 14 | B64: =IF(B16>0,LN(B16),"") -> 
A65: 15 | B65: =IF(B17>0,LN(B17),"") -> 
A66: 16 | B66: =IF(B18>0,LN(B18),"") -> 
A67: 17 | B67: =IF(B19>0,LN(B19),"") -> 
A68: 18 | B68: =IF(B20>0,LN(B20),"") -> 
A69: 19 | B69: =IF(B21>0,LN(B21),"") -> 
A70: 20 | B70: =IF(B22>0,LN(B22),"") -> 
A71: 21 | B71: =IF(B23>0,LN(B23),"") -> 
A72: 22 | B72: =IF(B24>0,LN(B24),"") -> 
A73: 23 | B73: =IF(B25>0,LN(B25),"") -> 
A74: 24 | B74: =IF(B26>0,LN(B26),"") -> 
A75: 25 | B75: =IF(B27>0,LN(B27),"") -> 
A76: 26 | B76: =IF(B28>0,LN(B28),"") -> 
A77: 27 | B77: =IF(B29>0,LN(B29),"") -> 
A78: 28 | B78: =IF(B30>0,LN(B30),"") -> 
A79: 29 | B79: =IF(B31>0,LN(B31),"") -> 
A80: 30 | B80: =IF(B32>0,LN(B32),"") -> 
A81: 31 | B81: =IF(B33>0,LN(B33),"") -> 
A82: 32 | B82: =IF(B34>0,LN(B34),"") -> 
A83: 33 | B83: =IF(B35>0,LN(B35),"") -> 
A84: 34 | B84: =IF(B36>0,LN(B36),"") -> 
A85: 35 | B85: =IF(B37>0,LN(B37),"") -> 
A87: 2. Calculate sample size, n= | C87: =COUNT(B51:L85) -> 6
A89: Average of Raw Data | C89: =AVERAGE(B3:L37) -> 0.1930106202
A92: 3. Calculate | D92: =AVERAGE(B51:L85) -> -2.173777263
E102: =VAR(B51:L85) -> 1.237718012
A103: 4. Calculate
A108: 5. m | C108: ='UPL Normal'!C78 -> 3
A110: 6. Calculate
A114: a- Numerator first term | F114: =EXP(4*E102)+2*EXP(3*E102)+3*EXP(2*E102)-3 -> 255.9245247
A117: b- denominator first term | F117: =C108*(EXP(E102)-1)^2 -> 17.97424615
C121: =F114/F117+3*(1-1/C108) -> 16.23840102
A124: 7. Calculate
F125: =SQRT(EXP(E102)-1)*(EXP(E102)+2)/SQRT(C108) -> 4.920824159
A128: 8. Go to tab distribution for 99 percentile "lognormal distribution 99%"
A130: 9. substitue the values of | E130: in cell D7 and F7 respectively
A133: 10. In column AE indentify the value that is the smallest value that is larger than 0.99, note what row number this is. | J133: =VLOOKUP("x",'lognormal distribution 99 %'!AF:AL,2,FALSE) -> 93 | K133: is the Row number in Column AE with the first value > 0.99.
A136: 11. In column B, go down to the row number from Step 10. above, and copy the z value. | J136: =INDIRECT("'lognormal distribution 99 %'!B" & J133) -> 3.484 | K136: z value from "lognormal distribution 99%"
A138: 12. calculate the UPL using the formula
A146: a- Calculate | D146: =EXP(D92+E102/2) -> 0.2112066466
A149: b- Calculate | D149: =EXP(2*D92+E102) -> 0.04460824757
A153: c- Calculate | D153: =EXP(E102)-1 -> 2.447736788
A157: d-calculate | E157: =(E102)/C87+(E102^2)/(2*(C87-1)) -> 0.3594809231
A161: e- Calculate | H161: =SQRT(C108*D149*D153+C108^2*D149*E157) -> 0.6869425537
A165: f- Calculate UPL | D165: =D146+(J136/C108)*H161 -> 1.008975932 | E165: lb/MW | F165: =D165*1000 -> 1008.975932 | G165: lb/GW

Sheet QA_Calcs
H1: Anthracite | J1: Anthracite | M1: fPM | N1: 30B | P1: μg/dscm | Q1: No | S1: μg/dscm | T1: =1/453592370 -> 2.204622622e-09 | U1: lbs/μg | V1: 0.02831684659 | Z1: cm/cf | AF1: lb/hr | AI1: lb/MMBtu | AQ1: Round to | AU1: From | AW1: original database export===>
H2: Bituminous | J2: Bituminous | M2: Se | N2: M5 | P2: lb/dscf | Q2: Yes | S2: ppm | T2: =T1/1000 -> 2.204622622e-12 | U2: lb/mg | AQ2: Same | AU2: Min | AW2: original database export===>
H3: Lignite | J3: Lignite | M3: Pb | N3: M5B | P3: ppm | U3: lb/scf | AQ3: Sig Figs | AU3: Test | AW3: original database export===>
H4: Oil | J4: Oil | M4: Hg | N4: M29 | P4: ppm @ 3% O2 | AQ4: as Submitted | AU4: Sheet | AW4: original database export===>
H5: Pet Coke | J5: Pet Coke | M5: HCl | N5: OTM27 | P5: ppm @ 7% O2 | AQ5: prior to | AW5: original database export===>
H6: Subbituminous | J6: Sub Bituminous | M6: SO2 | N6: 26A | AQ6: Calc % Diff. | AW6: original database export===>
N7: M6C | AW7: original database export===>
AW8: original database export===>
A9: RTI | F9: As Submitted | T9: RTI-QA | AB9: As Submitted | AL9: RTI-QA | AT9: Final for UPL | AV9: Final for UPL | AW9: original database export===> | AX9: Key | AY9: RTI Calculated QA lb/MMBtu | AZ9: Run Grade | BA9: Submitted Value | BB9: Submitted Value UOM | BC9: Use ? | BD9: Comment | BE9: facility_id | BF9: report_id | BG9: sampling_port_id | BH9: pollutant_id | BI9: pollutant_name | BJ9: run_id | BK9: start_datetime | BL9: end_datetime | BM9: unit_load | BN9: fuel_flow_rate | BO9: fuel_heating_value | BP9: fg_moisture_content | BQ9: fg_oxygen_content | BR9: fg_CO2_content | BS9: fg_temperature | BT9: test_method | BU9: conc | BV9: conc_units | BW9: conc_ND | BX9: conc_MDL | BY9: conc2 | BZ9: conc2_units | CA9: emission_rate | CB9: emission_rate_units | CC9: emission_rate_ND | CD9: emission_rate_MDL | CE9: Calculated conc lb/dscf | CF9: 19-1 lb/MMBtu | CG9: %diff 19-1 | CH9: 19-6 lb/MMBtu | CI9: %diff 19-6 | CJ9: emission_factor | CK9: emission_factor_units | CL9: emission_factor_ND | CM9: emission_factor_MDL | CN9: run_pollutant_comment | CO9: Fuel1 | CP9: Fuel1%Btu | CQ9: Fuel2 | CR9: Fuel2%Btu | CS9: QA Comment
A10: Comments | B10: Use Run in UPL Calc? | C10: Grade | D10: Key | E10: Facility_Name | F10: Facility_ID | G10: Boiler_ID | H10: Fuel1 Used | I10: Fuel1 Fraction | J10: Fuel2 Used | K10: Fuel2 Fraction | L10: "Fuel Used/Fraction" Data Source | M10: Pollutant | N10: Reference Method | O10: Concentration | P10: Concentration UOM | Q10: Non-Detect? | R10: MDL | S10: MDL UOM | T10: HAP Conversion Value to lbs | U10: HAP Conversion UOM | V10: Volume Conversion Value to cubic feet | W10: Reserve | X10: Reserve | Y10: Reserve | Z10: Volume Conversion UOM | AA10: Submitted F Factor | AB10: Bws (percent) | AC10: %O2d | AD10: %CO2d | AE10: Emission Rate Value | AF10: Emission Rate UOM | AG10: Emission Rate MDL | AH10: Emission Factor Value | AI10: Emission Factor UOM | AJ10: Emission Factor MDL | AK10: MDL UOM | AL10: Fd | AM10: Fw | AN10: Fc | AO10: Calculated conc lb/dscf | AP10: 19-1 lb/MMBtu | AQ10: %diff 19-1 | AR10: 19-6 lb/MMBtu | AS10: %diff 19-6 | AT10: lb/MMBtu Value Used for UPL Calcs | AU10: Unit Heat Rate (MMBtu/MWh) | AV10: lb/MWh Value Used in UPL Calcs | AW10: original database export===>
A11: Scrubber inlet duct measurement; do not use | B11: No | E11: Sandow | F11: 52071 | G11: 5A | H11: Lignite | I11: 100 | L11: Part II | M11: SO2 | N11: 26A | O11: =BU11 -> 27.31 | P11: ppm | Q11: No | T11: =$C$88 -> 1.66e-07 | U11: lb/scf | AB11: =BP11 -> 8.64 | AC11: =BQ11 -> 4.4 | AD11: =BR11 -> 15 | AE11: =CA11 -> 147.37 | AF11: lb/hr | AH11: =CJ11 -> 0.057 | AI11: lb/MMBtu | AL11: =VLOOKUP(H11,$A$88:$D$104,2,FALSE) -> 9860 | AM11: =VLOOKUP(H11,$A$88:$D$104,3,FALSE) -> 11950 | AN11: =VLOOKUP(H11,$A$88:$D$104,4,FALSE) -> 1910 | AO11: =O11*T11 -> 4.53346e-06 | AP11: =IF(AC11<>"",AO11*AL11*20.9/(20.9-AC11),"no O2 data for run") -> 0.05661989309 | AQ11: =(AP11-$AH11)/$AH11 -> -0.006668542222 | AR11: =IF(AD11<>"",AO11*AN11*100/AD11,"no CO2 data for run") -> 0.05772605733 | AS11: =(AR11-$AH11)/$AH11 -> 0.01273784795 | AT11: Not used | AU11: 10.48344254 | AV11: Not used | AW11: original database export===> | BC11: No | BD11: Scrubber inlet duct measurement; do not use | BE11: 52071 | BF11: 3-Source Emissions Survey, Inlet Ducts and Stacks | BG11: SP03 | BH11: 6 | BI11: Sulfur Dioxide (SO2) | BJ11: 1 | BK11: 40114.50486 | BL11: 40114.62986 | BM11: 312 | BP11: 8.64 | BQ11: 4.4 | BR11: 15 | BS11: 266 | BT11: EPA Methods 1, 2, 3A, 4, 6C, 17, 26A, 30B | BU11: 27.31 | BV11: parts per million by volume (dry) (ppmvd) | BW11: FALSE | CA11: 147.37 | CB11: pound per hour (lb/hr) | CC11: FALSE | CE11: 4.53346e-06 | CF11: 0.05661989309 | CG11: 0.006668542222 | CH11: 0.05772605733 | CI11: -0.01273784795 | CJ11: 0.057 | CK11: pound per million British Thermal Unit (lb/MMBtu) | CL11: FALSE | CO11: coal - lignite | CP11: 100 | CS11: Scrubber inlet duct measurement; do not use
A12: Scrubber inlet duct measurement; do not use | B12: No | C12: Do Not Use | E12: Sandow | F12: 52071 | G12: 5A | H12: Lignite | I12: 100 | L12: Part II | M12: SO2 | N12: 26A | O12: =BU12 -> 26.38 | P12: ppm | Q12: No | T12: =$C$88 -> 1.66e-07 | U12: lb/scf | AC12: =BQ12 -> 4.4 | AD12: 14.8 | AE12: =CA12 -> 164.31 | AF12: lb/hr | AH12: =CJ12 -> 0.055 | AI12: lb/MMBtu | AL12: 9860 | AM12: 11950 | AN12: =VLOOKUP(H12,$A$88:$D$104,4,FALSE) -> 1910 | AO12: =O12*T12 -> 4.37908e-06 | AP12: 0.05469178981 | AQ12: -0.005603821576 | AR12: 0.0565138027 | AS12: 0.0275236855 | AT12: Not used | AU12: 10.48344254 | AV12: Not used | AW12: original database export===> | BC12: No | BD12: Scrubber inlet duct measurement; do not use | BE12: 52071 | BF12: 3-Source Emissions Survey, Inlet Ducts and Stacks | BG12: SP03 | BH12: 6 | BI12: Sulfur Dioxide (SO2) | BJ12: 2 | BK12: 40114.72778 | BL12: 40114.77639 | BM12: 313 | BQ12: 4.4 | BR12: 14.8 | BT12: EPA Methods 1, 2, 3A, 4, 6C, 17, 26A, 30B | BU12: 26.38 | BV12: parts per million by volume (dry) (ppmvd) | BW12: FALSE | CA12: 164.31 | CB12: pound per hour (lb/hr) | CC12: FALSE | CE12: 4.37908e-06 | CF12: 0.05469178981 | CG12: 0.005603821576 | CH12: 0.0565138027 | CI12: -0.0275236855 | CJ12: 0.055 | CK12: pound per million British Thermal Unit (lb/MMBtu) | CL12: FALSE | CO12: coal - lignite | CP12: 100 | CS12: Scrubber inlet duct measurement; do not use
A13: Scrubber inlet duct measurement; do not use | B13: No | C13: Do Not Use | E13: Sandow | F13: 52071 | G13: 5A | H13: Lignite | I13: 100 | L13: Part II | M13: SO2 | N13: 26A | O13: 9.31 | P13: ppm | Q13: No | T13: 1.66e-07 | U13: lb/scf | AC13: 4 | AD13: 14.9 | AE13: 54.31 | AF13: lb/hr | AH13: 0.019 | AI13: lb/MMBtu | AL13: 9860 | AM13: 11950 | AN13: 1910 | AO13: 1.54546e-06 | AP13: 0.01884491858 | AQ13: -0.008162179882 | AR13: 0.0198109302 | AS13: 0.04268053691 | AT13: Not used | AU13: 10.48344254 | AV13: Not used | AW13: original database export===> | BC13: No | BD13: Scrubber inlet duct measurement; do not use | BE13: 52071 | BF13: 3-Source Emissions Survey, Inlet Ducts and Stacks | BG13: SP03 | BH13: 6 | BI13: Sulfur Dioxide (SO2) | BJ13: 3 | BK13: 40116.41528 | BL13: 40116.49306 | BM13: 311 | BQ13: 4 | BR13: 14.9 | BT13: EPA Methods 1, 2, 3A, 4, 6C, 17, 26A, 30B | BU13: 9.31 | BV13: parts per million by volume (dry) (ppmvd) | BW13: FALSE | CA13: 54.31 | CB13: pound per hour (lb/hr) | CC13: FALSE | CE13: 1.54546e-06 | CF13: 0.01884491858 | CG13: 0.008162179882 | CH13: 0.0198109302 | CI13: -0.04268053691 | CJ13: 0.019 | CK13: pound per million British Thermal Unit (lb/MMBtu) | CL13: FALSE | CO13: coal - lignite | CP13: 100 | CS13: Scrubber inlet duct measurement; do not use
A14: Scrubber inlet duct measurement; do not use | B14: No | C14: Do Not Use | E14: Sandow | F14: 52071 | G14: 5A | H14: Lignite | I14: 100 | L14: Part II | M14: SO2 | N14: 26A | O14: 13.35 | P14: ppm | Q14: No | T14: 1.66e-07 | U14: lb/scf | AC14: 4.1 | AD14: 14.9 | AE14: 75.3 | AF14: lb/hr | AH14: 0.027 | AI14: lb/MMBtu | AL14: 9860 | AM14: 11950 | AN14: 1910 | AO14: 2.2161e-06 | AP14: 0.02718336854 | AQ14: 0.006791427249 | AR14: 0.02840772483 | AS14: 0.05213795675 | AT14: Not used | AU14: 10.48344254 | AV14: Not used | AW14: original database export===> | BC14: No | BD14: Scrubber inlet duct measurement; do not use | BE14: 52071 | BF14: 3-Source Emissions Survey, Inlet Ducts and Stacks | BG14: SP03 | BH14: 6 | BI14: Sulfur Dioxide (SO2) | BJ14: 5 | BK14: 40116.64931 | BL14: 40116.77986 | BM14: 314 | BQ14: 4.1 | BR14: 14.9 | BT14: EPA Methods 1, 2, 3A, 4, 6C, 17, 26A, 30B | BU14: 13.35 | BV14: parts per million by volume (dry) (ppmvd) | BW14: FALSE | CA14: 75.3 | CB14: pound per hour (lb/hr) | CC14: FALSE | CE14: 2.2161e-06 | CF14: 0.02718336854 | CG14: -0.006791427249 | CH14: 0.02840772483 | CI14: -0.05213795675 | CJ14: 0.027 | CK14: pound per million British Thermal Unit (lb/MMBtu) | CL14: FALSE | CO14: coal - lignite | CP14: 100 | CS14: Scrubber inlet duct measurement; do not use
A15: Scrubber inlet duct measurement; do not use | B15: No | C15: Do Not Use | E15: Sandow | F15: 52071 | G15: 5A | H15: Lignite | I15: 100 | L15: Part II | M15: SO2 | N15: 26A | O15: 0 | P15: ppm | Q15: Yes | R15: 0.01 | T15: 1.66e-07 | U15: lb/scf | AC15: 4.1 | AD15: 14.9 | AE15: 0 | AF15: lb/hr | AH15: 0 | AI15: lb/MMBtu | AL15: 9860 | AM15: 11950 | AN15: 1910 | AO15: =R15*T15 -> 1.66e-09 | AP15: 2.036207381e-05 | AR15: 2.127919463e-05 | AT15: Not used | AU15: 10.48344254 | AV15: Not used | AW15: original database export===> | BC15: No | BD15: Scrubber inlet duct measurement; do not use | BE15: 52071 | BF15: 3-Source Emissions Survey, Inlet Ducts and Stacks | BG15: SP03 | BH15: 6 | BI15: Sulfur Dioxide (SO2) | BJ15: 7 | BK15: 40122.35417 | BL15: 40122.48889 | BM15: 297 | BQ15: 4.1 | BR15: 14.9 | BT15: EPA Methods 1, 2, 3A, 4, 6C, 17, 26A, 30B | BV15: parts per million by volume (dry) (ppmvd) | BW15: TRUE | BX15: 0.01 | CB15: pound per hour (lb/hr) | CC15: TRUE | CD15: 0.06 | CE15: 1.66e-09 | CF15: 2.036207381e-05 | CG15: 0.9796379262 | CH15: 2.127919463e-05 | CI15: 0.9787208054 | CK15: pound per million British Thermal Unit (lb/MMBtu) | CL15: TRUE | CM15: 0.001 | CO15: coal - lignite | CP15: 100 | CS15: Scrubber inlet duct measurement; do not use
A16: Scrubber inlet duct measurement; do not use | B16: No | C16: Do Not Use | E16: Sandow | F16: 52071 | G16: 5A | H16: Lignite | I16: 100 | L16: Part II | M16: SO2 | N16: 26A | O16: 1.36 | P16: ppm | Q16: No | T16: 1.66e-07 | U16: lb/scf | AC16: 3.7 | AD16: 15.2 | AE16: 7.97 | AF16: lb/hr | AH16: 0.003 | AI16: lb/MMBtu | AL16: 9860 | AM16: 11950 | AN16: 1910 | AO16: 2.2576e-07 | AP16: 0.00270484106 | AQ16: -0.09838631318 | AR16: 0.002836852632 | AS16: -0.05438245614 | AT16: Not used | AU16: 10.48344254 | AV16: Not used | AW16: original database export===> | BC16: No | BD16: Scrubber inlet duct measurement; do not use | BE16: 52071 | BF16: 3-Source Emissions Survey, Inlet Ducts and Stacks | BG16: SP03 | BH16: 6 | BI16: Sulfur Dioxide (SO2) | BJ16: 8 | BK16: 40122.55069 | BL16: 40122.63403 | BM16: 302 | BQ16: 3.7 | BR16: 15.2 | BT16: EPA Methods 1, 2, 3A, 4, 6C, 17, 26A, 30B | BU16: 1.36 | BV16: parts per million by volume (dry) (ppmvd) | BW16: FALSE | CA16: 7.97 | CB16: pound per hour (lb/hr) | CC16: FALSE | CE16: 2.2576e-07 | CF16: 0.00270484106 | CG16: 0.09838631318 | CH16: 0.002836852632 | CI16: 0.05438245614 | CJ16: 0.003 | CK16: pound per million British Thermal Unit (lb/MMBtu) | CL16: FALSE | CO16: coal - lignite | CP16: 100 | CS16: Scrubber inlet duct measurement; do not use
B17: Yes | E17: Sandow | F17: 52071 | G17: 5A | H17: Lignite | I17: 100 | L17: Part II | M17: SO2 | N17: 26A | O17: 3.01 | P17: ppm | Q17: No | T17: 1.66e-07 | U17: lb/scf | AB17: =BP17 -> 19.63 | AC17: 3.59 | AD17: 15.68 | AE17: 17.44 | AF17: lb/hr | AH17: 0.006 | AI17: lb/MMBtu | AL17: 9860 | AM17: 11950 | AN17: 1910 | AO17: 4.9966e-07 | AP17: 0.005948407559 | AQ17: -0.008598740227 | AR17: 0.006086419643 | AS17: 0.01440327381 | AT17: =AH17 -> 0.006 | AU17: 10.48344254 | AV17: =AT17*AU17 -> 0.06290065522 | AW17: original database export===> | BC17: Yes | BE17: 52071 | BF17: 2-Source Emissions Survey, Stacks | BG17: SP07 | BH17: 6 | BI17: Sulfur Dioxide (SO2) | BJ17: 1 | BK17: 40114.72778 | BL17: 40114.81181 | BM17: 313.34 | BN17: 328916 | BO17: 8722 | BP17: 19.63 | BQ17: 3.59 | BR17: 15.68 | BT17: EPA Methods 1, 2, 3A, 4, 5B, 6C, 7E, 9, 10, 18, 25A, 26A, 29, 201A, CTM-027, and OTM-028 | BU17: 3.01 | BV17: parts per million by volume (dry) (ppmvd) | BW17: FALSE | CA17: 17.44 | CB17: pound per hour (lb/hr) | CC17: FALSE | CE17: 4.9966e-07 | CF17: 0.005948407559 | CG17: 0.008598740227 | CH17: 0.006086419643 | CI17: -0.01440327381 | CJ17: 0.006 | CK17: pound per million British Thermal Unit (lb/MMBtu) | CL17: FALSE | CO17: coal - lignite | CP17: 100
B18: Yes | E18: Sandow | F18: 52071 | G18: 5A | H18: Lignite | I18: 100 | L18: Part II | M18: SO2 | N18: 26A | O18: 4.52 | P18: ppm | Q18: No | T18: 1.66e-07 | U18: lb/scf | AB18: 17.1 | AC18: 4.08 | AD18: 15.27 | AE18: 28.17 | AF18: lb/hr | AH18: 0.009 | AI18: lb/MMBtu | AL18: 9860 | AM18: 11950 | AN18: 1910 | AO18: 7.5032e-07 | AP18: 0.009192713655 | AQ18: 0.02141262835 | AR18: 0.009385142109 | AS18: 0.04279356763 | AT18: =AH18 -> 0.009 | AU18: 10.48344254 | AV18: 0.09435098282 | AW18: original database export===> | BC18: Yes | BE18: 52071 | BF18: 2-Source Emissions Survey, Stacks | BG18: SP07 | BH18: 6 | BI18: Sulfur Dioxide (SO2) | BJ18: 5 | BK18: 40116.38542 | BL18: 40116.50069 | BM18: 320.17 | BN18: 340004 | BO18: 8316 | BP18: 17.1 | BQ18: 4.08 | BR18: 15.27 | BT18: EPA Methods 1, 2, 3A, 4, 5B, 6C, 7E, 9, 10, 18, 25A, 26A, 29, 201A, CTM-027, and OTM-028 | BU18: 4.52 | BV18: parts per million by volume (dry) (ppmvd) | BW18: FALSE | CA18: 28.17 | CB18: pound per hour (lb/hr) | CC18: FALSE | CE18: 7.5032e-07 | CF18: 0.009192713655 | CG18: -0.02141262835 | CH18: 0.009385142109 | CI18: -0.04279356763 | CJ18: 0.009 | CK18: pound per million British Thermal Unit (lb/MMBtu) | CL18: FALSE | CO18: coal - lignite | CP18: 100
B19: Yes | E19: Sandow | F19: 52071 | G19: 5A | H19: Lignite | I19: 100 | L19: Part II | M19: SO2 | N19: 26A | O19: 28.26 | P19: ppm | Q19: No | T19: 1.66e-07 | U19: lb/scf | AB19: 16.46 | AC19: 5.33 | AD19: 14.56 | AE19: 178.79 | AF19: lb/hr | AH19: 0.062 | AI19: lb/MMBtu | AL19: 9860 | AM19: 11950 | AN19: 1910 | AO19: 4.69116e-06 | AP19: 0.06208902414 | AQ19: 0.001435873205 | AR19: 0.06153925549 | AS19: -0.007431362992 | AT19: 0.062 | AU19: 10.48344254 | AV19: 0.6499734372 | AW19: original database export===> | BC19: Yes | BE19: 52071 | BF19: 2-Source Emissions Survey, Stacks | BG19: SP07 | BH19: 6 | BI19: Sulfur Dioxide (SO2) | BJ19: 9 | BK19: 40122.35417 | BL19: 40122.48056 | BM19: 297.69 | BN19: 299810 | BO19: 8764 | BP19: 16.46 | BQ19: 5.33 | BR19: 14.56 | BT19: EPA Methods 1, 2, 3A, 4, 5B, 6C, 7E, 9, 10, 18, 25A, 26A, 29, 201A, CTM-027, and OTM-028 | BU19: 28.26 | BV19: parts per million by volume (dry) (ppmvd) | BW19: FALSE | CA19: 178.79 | CB19: pound per hour (lb/hr) | CC19: FALSE | CE19: 4.69116e-06 | CF19: 0.06208902414 | CG19: -0.001435873205 | CH19: 0.06153925549 | CI19: 0.007431362992 | CJ19: 0.062 | CK19: pound per million British Thermal Unit (lb/MMBtu) | CL19: FALSE | CO19: coal - lignite | CP19: 100
E20: Sandow | G20: 5A | AU20: 10.48344254 | AV20: 0 | AW20: original database export===> | AX20: Key | AY20: RTI Calculated QA lb/MMBtu | AZ20: Run Grade | BA20: Submitted Value | BB20: Submitted Value UOM | BC20: Use ? | BD20: Comment | BE20: facility_id | BF20: configuration_id | BG20: submittal_id | BH20: Location | BI20: Method | BJ20: Run | BK20: RunDate | BL20: Compound | BM20: Fwt | BN20: DF | BO20: lb/dscf | BP20: ppm | BQ20: ppm converted to lb/dscf | BR20: Estimated O2%, assuming lb/MMBtu is correct | BS20: ppm@7%O2 | BT20: ng/dscm | BU20: ng/dscm@7%O2 | BV20: ppm @ 7% converted to lb/dscf | BW20: Equation 19-1 | BX20: lb/mmBtuO2
B21: Yes | C21: A | E21: Sandow | F21: 52071 | G21: 5A | H21: Lignite | L21: ERT | M21: SO2 | N21: M6C | O21: =BS21 -> 8.850903656 | P21: ppm @ 7% O2 | T21: 1.66e-07 | U21: lb/scf | AH21: =BX21 -> 0.02181644279 | AI21: lb/MMBtu | AL21: =VLOOKUP(H21,$A$88:$D$104,2,FALSE) -> 9860 | AM21: =VLOOKUP(H21,$A$88:$D$104,3,FALSE) -> 11950 | AN21: =VLOOKUP(H21,$A$88:$D$104,4,FALSE) -> 1910 | AO21: =O21*T21 -> 1.469250007e-06 | AP21: =(AO21*AL21*20.9/(20.9-7)) -> 0.02178231841 | AQ21: -0.001564158601 | AR21: =IF(AD21<>"",AO21*AN21*100/AD21,"no CO2 data for run") -> no CO2 data for run | AT21: =AH21 -> 0.02181644279 | AU21: 10.48344254 | AV21: =AT21*AU21 -> 0.2287114243 | AW21: original database export===> | AY21: 0.02178231841 | AZ21: A | BA21: 0.02181644279 | BB21: lb/mmBtuO2 | BC21: Yes | BE21: 52071 | BF21: 5A | BG21: 834 | BH21: Stack | BI21: Method 6C | BJ21: 1 | BK21: 2010-03-03 | BL21: Sulfur Dioxide | BM21: 64.06 | BN21: 1.09713e-05 | BO21: 1.824088964e-06 | BP21: 10.9713 | BQ21: 1.8212358e-06 | BR21: 3.67 | BS21: 8.850903656 | BT21: 29223491.15 | BU21: 23575538.42 | BV21: 1.469250007e-06 | BW21: 0.02178231841 | BX21: 0.02181644279
B22: Yes | C22: A | E22: Sandow | F22: 52071 | G22: 5A | H22: Lignite | L22: ERT | M22: SO2 | N22: M6C | O22: =BS22 -> 3.74424154 | P22: ppm @ 7% O2 | T22: 1.66e-07 | U22: lb/scf | AH22: =BX22 -> 0.009229117672 | AI22: lb/MMBtu | AL22: =VLOOKUP(H22,$A$88:$D$104,2,FALSE) -> 9860 | AM22: =VLOOKUP(H22,$A$88:$D$104,3,FALSE) -> 11950 | AN22: =VLOOKUP(H22,$A$88:$D$104,4,FALSE) -> 1910 | AO22: =O22*T22 -> 6.215440957e-07 | AP22: =(AO22*AL22*20.9/(20.9-7)) -> 0.009214681869 | AQ22: -0.001564158601 | AR22: =IF(AD22<>"",AO22*AN22*100/AD22,"no CO2 data for run") -> no CO2 data for run | AT22: =AH22 -> 0.009229117672 | AU22: 10.48344254 | AV22: =AT22*AU22 -> 0.09675292478 | AW22: original database export===> | AY22: 0.009214681869 | AZ22: A | BA22: 0.009229117672 | BB22: lb/mmBtuO2 | BC22: Yes | BE22: 52071 | BF22: 5A | BG22: 834 | BH22: Stack | BI22: Method 6C | BJ22: 2 | BK22: 2010-03-04 | BL22: Sulfur Dioxide | BM22: 64.06 | BN22: 4.617e-06 | BO22: 7.676226836e-07 | BP22: 4.617 | BQ22: 7.66422e-07 | BR22: 3.76 | BS22: 3.74424154 | BT22: 12297982.79 | BU22: 9973276.595 | BV22: 6.215440957e-07 | BW22: 0.009214681869 | BX22: 0.009229117672
B23: Yes | C23: A | E23: Sandow | F23: 52071 | G23: 5A | H23: Lignite | L23: ERT | M23: SO2 | N23: M6C | O23: 0.9819599303 | P23: ppm @ 7% O2 | T23: 1.66e-07 | U23: lb/scf | AH23: 0.002420416431 | AI23: lb/MMBtu | AL23: =VLOOKUP(H23,$A$88:$D$104,2,FALSE) -> 9860 | AM23: =VLOOKUP(H23,$A$88:$D$104,3,FALSE) -> 11950 | AN23: 1910 | AO23: 1.630053484e-07 | AP23: 0.002416630516 | AQ23: -0.001564158601 | AR23: =IF(AD23<>"",AO23*AN23*100/AD23,"no CO2 data for run") -> no CO2 data for run | AT23: 0.002420416431 | AU23: 10.48344254 | AV23: 0.02537429657 | AW23: original database export===> | AY23: 0.002416630516 | AZ23: A | BA23: 0.002420416431 | BB23: lb/mmBtuO2 | BC23: Yes | BE23: 52071 | BF23: 5A | BG23: 834 | BH23: Stack | BI23: Method 6C | BJ23: 3 | BK23: 2010-03-05 | BL23: Sulfur Dioxide | BM23: 64.06 | BN23: 1.2165e-06 | BO23: 2.022553595e-07 | BP23: 1.2165 | BQ23: 2.01939e-07 | BR23: 3.68 | BS23: 0.9819599303 | BT23: 3240306.707 | BU23: 2615578.585 | BV23: 1.630053484e-07 | BW23: 0.002416630516 | BX23: 0.002420416431
AW24: original database export===>
AW25: original database export===>
AW26: original database export===>
AV27: 0.02537429657
AV28: 0.06290065522
AV29: 0.09435098282
AV30: 0.09675292478
AV31: 0.2287114243
AV32: 0.6499734372
A87: Conversions
A88: 1 | B88: ppm SO2= | C88: 1.66e-07 | D88: lb/scf
A89: 1 | B89: ppm Hg= | C89: =C88*A94/A95 -> 5.197930066e-07 | D89: lb/scf
A90: 1000 | B90: mg= | C90: 1 | D90: g
A91: 1000000 | B91: ug= | C91: 1 | D91: g
A92: 454 | B92: g= | C92: 1 | D92: lb
A93: 1 | B93: m^3= | C93: 35.3145 | D93: ft^3
A94: 200.59 | B94: Hg molecular weight
A95: 64.06 | B95: SO2 molecular weight
A97: Table 19-2 | B97: Fd | C97: Fw | D97: Fc
A98: Fuel Type | B98: dscf/MMBtu | C98: wscf/MMBtu | D98: scf/MMBtu
A99: Coal
A100: Anthracite | B100: 10100 | C100: 10540 | D100: 1970
A101: Bituminous | B101: 9780 | C101: 10640 | D101: 1800
A102: Lignite | B102: 9860 | C102: 11950 | D102: 1910
A103: Oil | B103: 9190 | C103: 10320 | D103: 1420
A104: Subbituminous | B104: 9820 | D104: 1840
A105: Petroleum Coke | B105: 9830 | D105: 1850

Sheet lognormal distribution 99 %
P2: distribution of Z
N3: Normal
N4: distribution
A5: ∆z | B5: z | V5: Absolute values
AD6: Cumulative | AE6: normalization
A7: 0.101 | D7: ='Lognormal Template'!C121 -> 16.23840102 | F7: ='Lognormal Template'!F125 -> 4.920824159
B9: -5 | C9: =f(a) | G9: =(1-($F$7/6)*(3*B9-B9^3)+(($D$7-3)*(3-6*B9^2+B9^4))/24) -> 174.4497107 | N9: =NORMDIST(B9,0,1,FALSE) -> 1.486719515e-06 | P9: =G9*N9 -> 0.0002593577893 | V9: =ABS(P9) -> 0.0002593577893 | Y9: =($A$7/2)*V9 -> 1.309756836e-05 | AD9: =Y9 -> 1.309756836e-05 | AE9: =AD9/SUM($Y$9:$Y$108) -> 6.023280428e-06 | AF9: =IF(AE9>0.99,"x","") ->  | AG9: 9
A10: 1 | B10: =$B$9+A10*$A$7 -> -4.899 | G10: 156.5749561 | N10: 2.450939756e-06 | P10: 0.0003837557846 | V10: 0.0003837557846 | Y10: =($A$7)*V10 -> 3.875933424e-05 | AD10: =Y10+AD9 -> 5.18569026e-05 | AE10: 2.384783633e-05 | AF10: =IF(AE10>0.99,"x","") ->  | AG10: 10
A11: 2 | B11: -4.798 | G11: 140.0074298 | N11: 3.999502685e-06 | P11: 0.0005599600914 | V11: 0.0005599600914 | Y11: 5.655596923e-05 | AD11: 0.0001084128718 | AE11: 4.98566689e-05 | AG11: 11
A12: 3 | B12: -4.697 | G12: 124.6860705 | N12: 6.460246822e-06 | P12: 0.0008055027904 | V12: 0.0008055027904 | Y12: 8.135578183e-05 | AD12: 0.0001897686537 | AE12: 8.72703838e-05 | AG12: 12
A13: 4 | B13: -4.596 | G13: 110.5511943 | N13: 1.032908833e-05 | P13: 0.001141893051 | V13: 0.001141893051 | Y13: 0.0001153311982 | AD13: 0.0003050998519 | AE13: 0.0001403086372 | AG13: 13
A14: 5 | B14: -4.495 | G14: 97.54449524 | N14: 1.634724734e-05 | P14: 0.00159458399 | V14: 0.00159458399 | Y14: 0.000161052983 | AD14: 0.0004661528349 | AE14: 0.0002143733226 | AG14: 14
A15: 6 | B15: -4.394 | G15: 85.60904457 | N15: 2.560926051e-05 | P15: 0.002192384324 | V15: 0.002192384324 | Y15: 0.0002214308168 | AD15: 0.0006875836516 | AE15: 0.0003162044311 | AG15: 15
A16: 7 | B16: -4.293 | G16: 74.68929133 | N16: 3.971176632e-05 | P16: 0.002966043684 | V16: 0.002966043684 | Y16: 0.0002995704121 | AD16: 0.0009871540638 | AE16: 0.0004539702019 | AG16: 16
A17: 8 | B17: -4.192 | G17: 64.73106213 | N17: 6.095525222e-05 | P17: 0.003945698218 | V17: 0.003945698218 | Y17: 0.00039851552 | AD17: 0.001385669584 | AE17: 0.0006372386275 | AG17: 17
A18: 9 | B18: -4.091 | G18: 55.68156115 | N18: 9.261318561e-05 | P18: 0.005156846758 | V18: 0.005156846758 | Y18: 0.0005208415225 | AD18: 0.001906511106 | AE18: 0.0008767620614 | AG18: 18
A19: 10 | B19: -3.99 | G19: 47.48937017 | N19: 0.0001392849765 | P19: 0.006614555807 | V19: 0.006614555807 | Y19: 0.0006680701365 | AD19: 0.002574581243 | AE19: 0.001183992661 | AG19: 19
A20: 11 | B20: -3.889 | G20: 40.10444858 | N20: 0.0002073506921 | P20: 0.008315685172 | V20: 0.008315685172 | Y20: 0.0008398842024 | AD20: 0.003414465445 | AE20: 0.001570236728 | AG20: 20
A21: 12 | B21: -3.788 | G21: 33.47813335 | N21: 0.0003055459036 | P21: 0.01022910651 | V21: 0.01022910651 | Y21: 0.001033139757 | AD21: 0.004447605202 | AE21: 0.002045354728 | AG21: 21
A22: 13 | B22: -3.687 | G22: 27.56313904 | N22: 0.0004456739027 | P22: 0.01228417175 | V22: 0.01228417175 | Y22: 0.001240701346 | AD22: 0.005688306549 | AE22: 0.002615925687 | AG22: 22
A23: 14 | B23: -3.586 | G23: 22.3135578 | N23: 0.0006434691113 | P23: 0.01435808521 | V23: 0.01435808521 | Y23: 0.001450166606 | AD23: 0.007138473155 | AE23: 0.003282825061 | AG23: 23
A24: 15 | B24: -3.485 | G24: 17.68485939 | N24: 0.0009196190652 | P24: 0.01626333387 | V24: 0.01626333387 | Y24: 0.00164259672 | AD24: 0.008781069875 | AE24: 0.004038218765 | AG24: 24
A25: 16 | B25: -3.384 | G25: 13.63389116 | N25: 0.001300942167 | P25: 0.01773690391 | V25: 0.01773690391 | Y25: 0.001791427295 | AD25: 0.01057249717 | AE25: 0.00486205634 | AG25: 25
A26: 17 | B26: -3.283 | G26: 10.11887803 | N26: 0.001821703852 | P26: 0.0184335991 | V26: 0.0184335991 | Y26: 0.001861793509 | AD26: 0.01243429068 | AE26: 0.005718253773 | AG26: 26
A27: 18 | B27: -3.182 | G27: 7.099422549 | N27: 0.00252503455 | P27: 0.01792628722 | V27: 0.01792628722 | Y27: 0.001810555009 | AD27: 0.01424484569 | AE27: 0.006550887759 | AG27: 27
A28: 19 | B28: -3.081 | G28: 4.536504829 | N28: 0.003464388873 | P28: 0.01571621685 | V28: 0.01571621685 | Y28: 0.001587337902 | AD28: 0.01583218359 | AE28: 0.007280869162 | AG28: 28
A29: 20 | B29: -2.98 | G29: 2.392482591 | N29: 0.004704957527 | P29: 0.01125652897 | V29: 0.01125652897 | Y29: 0.001136909426 | AD29: 0.01696909302 | AE29: 0.007803708525 | AG29: 29
A30: 21 | B30: -2.879 | G30: 0.6310911449 | N30: 0.006324912786 | P30: 0.003991596452 | V30: 0.003991596452 | Y30: 0.0004031512416 | AD30: 0.01737224426 | AE30: 0.007989108816 | AG30: 30
A31: 22 | B31: -2.778 | G31: -0.7825566039 | N31: 0.008416337402 | P31: -0.006586260415 | V31: 0.006586260415 | Y31: 0.0006652123019 | AD31: 0.01803745656 | AE31: 0.00829502516 | AG31: 31
A32: 23 | B32: -2.677 | G32: -1.881970159 | N32: 0.0110856585 | P32: -0.02086287848 | V32: 0.02086287848 | Y32: 0.002107150727 | AD32: 0.02014460729 | AE32: 0.009264056921 | AG32: 32
A33: 24 | B33: -2.576 | G33: -2.699281429 | N33: 0.01445338648 | P33: -0.03901375771 | V33: 0.03901375771 | Y33: 0.003940389529 | AD33: 0.02408499682 | AE33: 0.01107615444 | AG33: 33
A34: 25 | B34: -2.475 | G34: -3.26524473 | N34: 0.01865294879 | P34: -0.06090644274 | V34: 0.06090644274 | Y34: 0.006151550717 | AD34: 0.03023654753 | AE34: 0.01390511582 | AG34: 34
A35: 26 | B35: -2.374 | G35: -3.609236785 | N35: 0.02382841428 | P35: -0.08600238933 | V35: 0.08600238933 | Y35: 0.008686241323 | AD35: 0.03892278886 | AE35: 0.01789972504 | AG35: 35
A36: 27 | B36: -2.273 | G36: -3.759256723 | N36: 0.03013093081 | P36: -0.1132699042 | V36: 0.1132699042 | Y36: 0.01144026033 | AD36: 0.05036304918 | AE36: 0.02316084636 | AG36: 36
A37: 28 | B37: -2.172 | G37: -3.741926081 | N37: 0.03771374986 | P37: -0.1411220642 | V37: 0.1411220642 | Y37: 0.01425332849 | AD37: 0.06461637767 | AE37: 0.02971563517 | AG37: 37
A38: 29 | B38: -2.071 | G38: -3.5824888 | N38: 0.04672578931 | P38: -0.1673946169 | V38: 0.1673946169 | Y38: 0.0169068563 | AD38: 0.08152323397 | AE38: 0.03749072241 | AG38: 38
A39: 30 | B39: -1.97 | G39: -3.304811231 | N39: 0.05730378892 | P39: -0.1893782052 | V39: 0.1893782052 | Y39: 0.01912719873 | AD39: 0.1006504327 | AE39: 0.04628689576 | AG39: 39
A40: 31 | B40: -1.869 | G40: -2.93138213 | N40: 0.06956323853 | P40: -0.2039164343 | V40: 0.2039164343 | Y40: 0.02059555987 | AD40: 0.1212459926 | AE40: 0.05575833575 | AG40: 40
A41: 32 | B41: -1.768 | G41: -2.483312659 | N41: 0.08358839927 | P41: -0.2075761301 | V41: 0.2075761301 | Y41: 0.02096518914 | AD41: 0.1422111817 | AE41: 0.06539976002 | AG41: 41
A42: 33 | B42: -1.667 | G42: -1.980336388 | N42: 0.09942188354 | P42: -0.1968887737 | V42: 0.1968887737 | Y42: 0.01988576615 | AD42: 0.1620969479 | AE42: 0.07454478165 | AG42: 42
A43: 34 | B43: -1.566 | G43: -1.440809292 | N43: 0.1170543955 | P43: -0.1686530608 | V43: 0.1686530608 | Y43: 0.01703395914 | AD43: 0.179130907 | AE43: 0.08237832067 | AG43: 43
A44: 35 | B44: -1.465 | G44: -0.8817097558 | N44: 0.1364153459 | P44: -0.1202787413 | V44: 0.1202787413 | Y44: 0.01214815287 | AD44: 0.1912790599 | AE44: 0.08796498603 | AG44: 44
A45: 36 | B45: -1.364 | G45: -0.3186385674 | N45: 0.1573651256 | P45: -0.05014259817 | V45: 0.05014259817 | Y45: 0.005064402415 | AD45: 0.1963434623 | AE45: 0.09029399208 | AG45: 45
A46: 37 | B46: -1.263 | G46: 0.2341810766 | N46: 0.1796898386 | P46: 0.04207995987 | V46: 0.04207995987 | Y46: 0.004250075946 | AD46: 0.2005935382 | AE46: 0.09224850749 | AG46: 46
A47: 38 | B47: -1.162 | G47: 0.7639035734 | N47: 0.2030992439 | P47: 0.1551482382 | V47: 0.1551482382 | Y47: 0.01566997206 | AD47: 0.2162635103 | AE47: 0.09945477918 | AG47: 47
A48: 39 | B48: -1.061 | G48: 1.259060913 | N48: 0.2272285288 | P48: 0.286094559 | V48: 0.286094559 | Y48: 0.02889555046 | AD48: 0.2451590607 | AE48: 0.1127432003 | AG48: 48
A49: 40 | B49: -0.96 | G49: 1.70956268 | N49: 0.2516443411 | P49: 0.4302017743 | V49: 0.4302017743 | Y49: 0.0434503792 | AD49: 0.2886094399 | AE49: 0.1327250634 | AG49: 49
A50: 41 | B50: -0.859 | G50: 2.106696051 | N50: 0.2758552429 | P50: 0.5811431509 | V50: 0.5811431509 | Y50: 0.05869545824 | AD50: 0.3473048982 | AE50: 0.1597177994 | AG50: 50
A51: 42 | B51: -0.758 | G51: 2.443125797 | N51: 0.2993264386 | P51: 0.7312921439 | V51: 0.7312921439 | Y51: 0.07386050653 | AD51: 0.4211654047 | AE51: 0.1936846039 | AG51: 51
A52: 43 | B52: -0.657 | G52: 2.712894281 | N52: 0.3214982967 | P52: 0.8721908904 | V52: 0.8721908904 | Y52: 0.08809127993 | AD52: 0.5092566846 | AE52: 0.2341958246 | AG52: 52
A53: 44 | B53: -0.556 | G53: 2.91142146 | N53: 0.341807853 | P53: 0.9951467182 | V53: 0.9951467182 | Y53: 0.1005098185 | AD53: 0.6097665032 | AE53: 0.280418055 | AG53: 53
A54: 45 | B54: -0.455 | G54: 3.035504884 | N54: 0.3597121923 | P54: 1.091908117 | V54: 1.091908117 | Y54: 0.1102827198 | AD54: 0.720049223 | AE54: 0.3311346254 | AG54: 54
A55: 46 | B55: -0.354 | G55: 3.083319698 | N55: 0.3747123803 | P55: 1.155358063 | V55: 1.155358063 | Y55: 0.1166911644 | AD55: 0.8367403874 | AE55: 0.384798297 | AG55: 55
A56: 47 | B56: -0.253 | G56: 3.054418639 | N56: 0.3863764857 | P56: 1.18015554 | V56: 1.18015554 | Y56: 0.1191957095 | AD56: 0.9559360969 | AE56: 0.4396137531 | AG56: 56
A57: 48 | B57: -0.152 | G57: 2.949732036 | N57: 0.3943602161 | P57: 1.163256963 | V57: 1.163256963 | Y57: 0.1174889533 | AD57: 1.07342505 | AE57: 0.49364431 | AG57: 57
A58: 49 | B58: -0.051 | G58: 2.771567813 | N58: 0.3984237932 | P58: 1.104258561 | V58: 1.104258561 | Y58: 0.1115301147 | AD58: 1.184955165 | AE58: 0.5449345296 | AG58: 58
A59: 50 | B59: 0.05 | G59: 2.523611488 | N59: 0.3984439141 | P59: 1.005517639 | V59: 1.005517639 | Y59: 0.1015572815 | AD59: 1.286512446 | AE59: 0.591638465 | AG59: 59
A60: 51 | B60: 0.151 | G60: 2.21092617 | N60: 0.3944199662 | P60: 0.8720334252 | V60: 0.8720334252 | Y60: 0.08807537595 | AD60: 1.374587822 | AE60: 0.6321423718 | AG60: 60
A61: 52 | B61: 0.252 | G61: 1.839952563 | N61: 0.3864740581 | P61: 0.7110939338 | V61: 0.7110939338 | Y61: 0.07182048731 | AD61: 1.44640831 | AE61: 0.6651710168 | AG61: 61
A62: 53 | B62: 0.353 | G62: 1.418508964 | N62: 0.3748448645 | P62: 0.5317208006 | V62: 0.5317208006 | Y62: 0.05370380086 | AD62: 1.50011211 | AE62: 0.6898682005 | AG62: 62
A63: 54 | B63: 0.454 | G63: 0.9557912642 | N63: 0.3598757186 | P63: 0.3439660681 | V63: 0.3439660681 | Y63: 0.03474057287 | AD63: 1.534852683 | AE63: 0.7058446175 | AG63: 63
A64: 55 | B64: 0.555 | G64: 0.4623729459 | N64: 0.34199778 | P64: 0.158130521 | V64: 0.158130521 | Y64: 0.01597118262 | AD64: 1.550823866 | AE64: 0.7131894092 | AG64: 64
A65: 56 | B65: 0.656 | G65: -0.04979491375 | N65: 0.3217094297 | P65: -0.0160194933 | V65: 0.0160194933 | Y65: 0.001617968824 | AD65: 1.552441835 | AE65: 0.7139334771 | AG65: 65
A66: 57 | B66: 0.757 | G66: -0.5673836444 | N66: 0.2995532643 | P66: -0.1699616228 | V66: 0.1699616228 | Y66: 0.0171661239 | AD66: 1.569607959 | AE66: 0.7218277957 | AG66: 66
A67: 58 | B67: 0.858 | G67: -1.075686983 | N67: 0.2760921663 | P67: -0.2969887493 | V67: 0.2969887493 | Y67: 0.02999586368 | AD67: 1.599603822 | AE67: 0.7356222264 | AG67: 67
A68: 59 | B68: 0.959 | G68: -1.558621071 | N68: 0.2518859097 | P68: -0.3925946865 | V68: 0.3925946865 | Y68: 0.03965206334 | AD68: 1.639255886 | AE68: 0.7538573285 | AG68: 68
A69: 60 | B69: 1.06 | G69: -1.998724461 | N69: 0.2274696325 | P69: -0.4546491185 | V69: 0.4546491185 | Y69: 0.04591956097 | AD69: 1.685175447 | AE69: 0.7749747135 | AG69: 69
A70: 61 | B70: 1.161 | G70: -2.377158107 | N70: 0.2033352807 | P70: -0.4833601111 | V70: 0.4833601111 | Y70: 0.04881937122 | AD70: 1.733994818 | AE70: 0.7974256567 | AG70: 70
A71: 62 | B71: 1.262 | G71: -2.673705374 | N71: 0.1799168403 | P71: -0.4810446228 | V71: 0.4810446228 | Y71: 0.0485855069 | AD71: 1.782580325 | AE71: 0.8197690509 | AG71: 71
A72: 63 | B72: 1.363 | G72: -2.866772031 | N72: 0.1575798393 | P72: -0.4517454759 | V72: 0.4517454759 | Y72: 0.04562629306 | AD72: 1.828206618 | AE72: 0.8407515684 | AG72: 72
A73: 64 | B73: 1.464 | G73: =(1-($F$7/6)*(3*B73-B73^3)+(($D$7-3)*(3-6*B73^2+B73^4))/24) -> -2.933386255 | N73: =NORMDIST(B73,0,1,FALSE) -> 0.1366152725 | P73: =G73*N73 -> -0.4007453627 | V73: =ABS(P73) -> 0.4007453627 | Y73: 0.04047528163 | AD73: 1.868681899 | AE73: =AD73/SUM($Y$9:$Y$108) -> 0.8593652504 | AG73: 73
A74: 65 | B74: =$B$9+A74*$A$7 -> 1.565 | G74: -2.849198628 | N74: 0.1172377877 | P74: -0.3340337439 | V74: 0.3340337439 | Y74: =($A$7)*V74 -> 0.03373740813 | AD74: =Y74+AD73 -> 1.902419308 | AE74: 0.8748803341 | AF74: =IF(AE74>0.99,"x","") ->  | AG74: 74
A75: 66 | B75: 1.666 | G75: -2.588482142 | N75: 0.09958770824 | P75: -0.2577810044 | V75: 0.2577810044 | Y75: 0.02603588144 | AD75: 1.928455189 | AE75: 0.886853657 | AG75: 75
A76: 67 | B76: 1.767 | G76: -2.124132192 | N76: 0.08373627241 | P76: -0.1778669119 | V76: 0.1778669119 | Y76: 0.0179645581 | AD76: 1.946419747 | AE76: 0.8951151578 | AG76: 76
A77: 68 | B77: 1.868 | G77: -1.427666582 | N77: 0.06969333895 | P77: -0.09949885103 | V77: 0.09949885103 | Y77: 0.01004938395 | AD77: 1.956469131 | AE77: 0.899736646 | AG77: 77
A78: 69 | B78: 1.969 | G78: -0.4692255221 | N78: 0.05741675994 | P78: -0.02694140916 | V78: 0.02694140916 | Y78: 0.002721082326 | AD78: 1.959190213 | AE78: 0.9009880113 | AG78: 78
A79: 70 | B79: 2.07 | G79: 0.7824283715 | N79: 0.04682263528 | P79: 0.03663535827 | V79: 0.03663535827 | Y79: 0.003700171185 | AD79: 1.962890385 | AE79: 0.9026896377 | AG79: 79
A80: 71 | B80: 2.171 | G80: 2.359910075 | N80: 0.03779573425 | P80: 0.08919453406 | V80: 0.08919453406 | Y80: 0.009008647941 | AD80: 1.971899033 | AE80: 0.9068325146 | AG80: 80
A81: 72 | B81: 2.272 | G81: 4.297212159 | N81: 0.03019948121 | P81: 0.1297735779 | V81: 0.1297735779 | Y81: 0.01310713136 | AD81: 1.985006164 | AE81: 0.9128601928 | AG81: 81
A82: 73 | B82: 2.373 | G82: 6.629704787 | N82: 0.02388503819 | P82: 0.158350752 | V82: 0.158350752 | Y82: 0.01599342595 | AD82: 2.00099959 | AE82: 0.9202152137 | AG82: 82
A83: 74 | B83: 2.474 | G83: 9.394135714 | N83: 0.01869916267 | P83: 0.1756624718 | V83: 0.1756624718 | Y83: 0.01774190966 | AD83: 2.0187415 | AE83: 0.9283743234 | AG83: 83
A84: 75 | B84: 2.575 | G84: 12.62863029 | N84: 0.01449065916 | P84: 0.1829971772 | V84: 0.1829971772 | Y84: 0.01848271489 | AD84: 2.037224214 | AE84: 0.936874113 | AG84: 84
A85: 76 | B85: 2.676 | G85: 16.37269146 | N85: 0.01111536901 | P85: 0.1819885072 | V85: 0.1819885072 | Y85: 0.01838083923 | AD85: 2.055605054 | AE85: 0.9453270522 | AG85: 85
A86: 77 | B86: 2.777 | G86: 20.66719976 | N86: 0.008439746274 | P86: 0.1744259222 | V86: 0.1744259222 | Y86: 0.01761701814 | AD86: 2.073222072 | AE86: 0.9534287271 | AG86: 86
A87: 78 | B87: 2.878 | G87: 25.55441332 | N87: 0.006343145276 | P87: 0.1620953562 | V87: 0.1620953562 | Y87: 0.01637163097 | AD87: 2.089593703 | AE87: 0.9609576761 | AG87: 87
A88: 79 | B88: 2.979 | G88: 31.07796787 | N88: 0.004718996853 | P88: 0.1466568325 | V88: 0.1466568325 | Y88: 0.01481234009 | AD88: 2.104406043 | AE88: 0.9677695419 | AG88: 88
A89: 80 | B89: 3.08 | G89: 37.28287671 | N89: 0.003475077378 | P89: 0.1295608814 | V89: 0.1295608814 | Y89: 0.01308564902 | AD89: 2.117491692 | AE89: 0.9737873409 | AG89: 89
A90: 81 | B90: 3.181 | G90: 44.21553076 | N90: 0.00253308074 | P90: 0.1120015094 | V90: 0.1120015094 | Y90: 0.01131215245 | AD90: 2.128803844 | AE90: 0.9789895483 | AG90: 90
A91: 82 | B91: 3.282 | G91: 51.92369852 | N91: 0.00182769342 | P91: 0.09490060215 | V91: 0.09490060215 | Y91: 0.009584960817 | AD91: 2.138388805 | AE91: 0.9833974586 | AG91: 91
A92: 83 | B92: 3.383 | G92: 60.4565261 | N92: 0.00130535136 | P92: 0.07891700855 | V92: 0.07891700855 | Y92: 0.007970617864 | AD92: 2.146359423 | AE92: 0.9870629685 | AG92: 92
A93: 84 | B93: 3.484 | G93: 69.86453717 | N93: 0.0009228290672 | P93: 0.06447302567 | V93: 0.06447302567 | Y93: 0.006511775593 | AD93: 2.152871199 | AE93: 0.9900575893 | AF93: x | AG93: 93
A94: 85 | B94: 3.585 | G94: 80.19963302 | N94: 0.0006457804109 | P94: 0.05179135197 | V94: 0.05179135197 | Y94: 0.005230926549 | AD94: 2.158102125 | AE94: 0.9924631761 | AF94: x | AG94: 94
A95: 86 | B95: 3.686 | G95: 91.51509254 | N95: 0.0004473199117 | P95: 0.04093652311 | V95: 0.04093652311 | Y95: 0.004134588834 | AD95: 2.162236714 | AE95: 0.9943645816 | AF95: x | AG95: 95
A96: 87 | B96: 3.787 | G96: 103.8655722 | N96: 0.0003067053531 | P96: 0.03185612699 | V96: 0.03185612699 | Y96: 0.003217468826 | AD96: 2.165454183 | AE96: 0.9958442239 | AF96: x | AG96: 96
A97: 88 | B97: 3.888 | G97: 117.307106 | N97: 0.000208158545 | P97: 0.0244184765 | V97: 0.0244184765 | Y97: 0.002466266127 | AD97: 2.167920449 | AE97: 0.9969784049 | AF97: x | AG97: 97
A98: 89 | B98: 3.989 | G98: 131.8971057 | N98: 0.0001398417638 | P98: 0.0184447239 | V98: 0.0184447239 | Y98: 0.001862917114 | AD98: 2.169783366 | AE98: 0.997835119 | AF98: x | AG98: 98
A99: 90 | B99: 4.09 | G99: 147.6943605 | N99: 9.299279572e-05 | P99: 0.01373451149 | V99: 0.01373451149 | Y99: 0.001387185661 | AD99: 2.171170552 | AE99: 0.9984730549 | AF99: x | AG99: 99
A100: 91 | B100: 4.191 | G100: 164.7590372 | N100: 6.121128236e-05 | P100: 0.01008511195 | V100: 0.01008511195 | Y100: 0.001018596306 | AD100: 2.172189148 | AE100: 0.9989414847 | AF100: x | AG100: 100
A101: 92 | B101: 4.292 | G101: 183.1526803 | N101: 3.988259546e-05 | P101: 0.007304604255 | V101: 0.007304604255 | Y101: 0.0007377650297 | AD101: 2.172926913 | AE101: 0.9992807664 | AF101: x | AG101: 101
A102: 93 | B102: 4.393 | G102: 202.9382118 | N102: 2.572202232e-05 | P102: 0.005219981214 | V102: 0.005219981214 | Y102: 0.0005272181026 | AD102: 2.173454131 | AE102: 0.9995232223 | AF102: x | AG102: 102
A103: 94 | B103: 4.494 | G103: 224.1799313 | N103: 1.64208854e-05 | P103: 0.003681232961 | V103: 0.003681232961 | Y103: 0.0003718045291 | AD103: 2.173825936 | AE103: 0.9996942069 | AF103: x | AG103: 103
A104: 95 | B104: 4.595 | G104: 246.9435161 | N104: 1.037666489e-05 | P104: 0.002562450114 | V104: 0.002562450114 | Y104: 0.0002588074615 | AD104: 2.174084743 | AE104: 0.9998132267 | AF104: x | AG104: 104
A105: 96 | B105: 4.696 | G105: 271.2960209 | N105: 6.49065873e-06 | P105: 0.001760889886 | V105: 0.001760889886 | Y105: 0.0001778498785 | AD105: 2.174262593 | AE105: =AD105/SUM($Y$9:$Y$108) -> 0.9998950159 | AF105: x | AG105: 105
A106: 97 | B106: =$B$9+A106*$A$7 -> 4.797 | G106: 297.3058782 | N106: 4.0187364e-06 | P106: 0.001194793954 | V106: 0.001194793954 | Y106: 0.0001206741894 | AD106: 2.174383267 | AE106: =AD106/SUM($Y$9:$Y$108) -> 0.9999505113 | AF106: x | AG106: 106
A107: 98 | B107: =$B$9+A107*$A$7 -> 4.898 | G107: 325.0428979 | N107: 2.462975138e-06 | P107: 0.0008005725763 | V107: 0.0008005725763 | Y107: 8.08578302e-05 | AD107: 2.174464125 | AE107: =AD107/SUM($Y$9:$Y$108) -> 0.999987696 | AF107: x | AG107: 107
A108: 99 | B108: =$B$9+A108*$A$7 -> 4.999 | G108: 354.5782677 | N108: 1.49417098e-06 | P108: 0.0005298005578 | V108: 0.0005298005578 | Y108: =($A$7/2)*V108 -> 2.675492817e-05 | AD108: 2.17449088 | AE108: =AD108/SUM($Y$9:$Y$108) -> 1 | AF108: x | AG108: 108
AD110: =SUM($AD$9:$AD$108) -> 106.3437342

Sheet Part II
A1: Key | B1: RTI Calculated QA lb/MMBtu | C1: Run Grade | D1: Submitted Value | E1: Submitted Value UOM | F1: Use ? | G1: Comment | H1: facility_id | I1: report_id | J1: sampling_port_id | K1: pollutant_id | L1: pollutant_name | M1: run_id | N1: start_datetime | O1: end_datetime | P1: unit_load | Q1: fuel_flow_rate | R1: fuel_heating_value | S1: fg_moisture_content | T1: fg_oxygen_content | U1: fg_CO2_content | V1: fg_temperature | W1: test_method | X1: conc | Y1: conc_units | Z1: conc_ND | AA1: conc_MDL | AB1: conc2 | AC1: conc2_units | AD1: emission_rate | AE1: emission_rate_units | AF1: emission_rate_ND | AG1: emission_rate_MDL | AH1: Calculated conc lb/dscf | AI1: 19-1 lb/MMBtu | AJ1: %diff 19-1 | AK1: 19-6 lb/MMBtu | AL1: %diff 19-6 | AM1: emission_factor | AN1: emission_factor_units | AO1: emission_factor_ND | AP1: emission_factor_MDL | AQ1: run_pollutant_comment | AR1: Fuel1 | AS1: Fuel1%Btu | AT1: Fuel2 | AU1: Fuel2%Btu | AV1: QA Comment
F2: No | G2: =AV2 -> Scrubber inlet duct measurement; do not use | H2: 52071 | I2: 3-Source Emissions Survey, Inlet Ducts and Stacks | J2: SP03 | K2: 6 | L2: Sulfur Dioxide (SO2) | M2: 1 | N2: 2009-10-28T12:07:00 | O2: 2009-10-28T15:07:00 | P2: 312 | S2: 8.64 | T2: 4.4 | U2: 15 | V2: 266 | W2: EPA Methods 1, 2, 3A, 4, 6C, 17, 26A, 30B | X2: 27.31 | Y2: parts per million by volume (dry) (ppmvd) | Z2: FALSE | AD2: 147.37 | AE2: pound per hour (lb/hr) | AF2: FALSE | AH2: =X2*$J$27 -> 4.53346e-06 | AI2: =AH2*$I$34*20.9/(20.9-T2) -> 0.05661989309 | AJ2: =(AM2-AI2)/AM2 -> 0.006668542222 | AK2: =AH2*$K$34*100/U2 -> 0.05772605733 | AL2: =(AM2-AK2)/AM2 -> -0.01273784795 | AM2: 0.057 | AN2: pound per million British Thermal Unit (lb/MMBtu) | AO2: FALSE | AV2: Scrubber inlet duct measurement; do not use
F3: No | G3: =AV3 -> Scrubber inlet duct measurement; do not use | H3: 52071 | I3: 3-Source Emissions Survey, Inlet Ducts and Stacks | J3: SP03 | K3: 6 | L3: Sulfur Dioxide (SO2) | M3: 2 | N3: 2009-10-28T17:28:00 | O3: 2009-10-28T18:38:00 | P3: 313 | T3: 4.4 | U3: 14.8 | W3: EPA Methods 1, 2, 3A, 4, 6C, 17, 26A, 30B | X3: 26.38 | Y3: parts per million by volume (dry) (ppmvd) | Z3: FALSE | AD3: 164.31 | AE3: pound per hour (lb/hr) | AF3: FALSE | AH3: =X3*$J$27 -> 4.37908e-06 | AI3: =AH3*$I$34*20.9/(20.9-T3) -> 0.05469178981 | AJ3: =(AM3-AI3)/AM3 -> 0.005603821576 | AK3: =AH3*$K$34*100/U3 -> 0.0565138027 | AL3: =(AM3-AK3)/AM3 -> -0.0275236855 | AM3: 0.055 | AN3: pound per million British Thermal Unit (lb/MMBtu) | AO3: FALSE | AV3: Scrubber inlet duct measurement; do not use
F4: No | G4: Scrubber inlet duct measurement; do not use | H4: 52071 | I4: 3-Source Emissions Survey, Inlet Ducts and Stacks | J4: SP03 | K4: 6 | L4: Sulfur Dioxide (SO2) | M4: 3 | N4: 2009-10-30T09:58:00 | O4: 2009-10-30T11:50:00 | P4: 311 | T4: 4 | U4: 14.9 | W4: EPA Methods 1, 2, 3A, 4, 6C, 17, 26A, 30B | X4: 9.31 | Y4: parts per million by volume (dry) (ppmvd) | Z4: FALSE | AD4: 54.31 | AE4: pound per hour (lb/hr) | AF4: FALSE | AH4: 1.54546e-06 | AI4: 0.01884491858 | AJ4: 0.008162179882 | AK4: 0.0198109302 | AL4: -0.04268053691 | AM4: 0.019 | AN4: pound per million British Thermal Unit (lb/MMBtu) | AO4: FALSE | AV4: Scrubber inlet duct measurement; do not use
F5: No | G5: Scrubber inlet duct measurement; do not use | H5: 52071 | I5: 3-Source Emissions Survey, Inlet Ducts and Stacks | J5: SP03 | K5: 6 | L5: Sulfur Dioxide (SO2) | M5: 5 | N5: 2009-10-30T15:35:00 | O5: 2009-10-30T18:43:00 | P5: 314 | T5: 4.1 | U5: 14.9 | W5: EPA Methods 1, 2, 3A, 4, 6C, 17, 26A, 30B | X5: 13.35 | Y5: parts per million by volume (dry) (ppmvd) | Z5: FALSE | AD5: 75.3 | AE5: pound per hour (lb/hr) | AF5: FALSE | AH5: 2.2161e-06 | AI5: 0.02718336854 | AJ5: -0.006791427249 | AK5: 0.02840772483 | AL5: -0.05213795675 | AM5: 0.027 | AN5: pound per million British Thermal Unit (lb/MMBtu) | AO5: FALSE | AV5: Scrubber inlet duct measurement; do not use
F6: No | G6: Scrubber inlet duct measurement; do not use | H6: 52071 | I6: 3-Source Emissions Survey, Inlet Ducts and Stacks | J6: SP03 | K6: 6 | L6: Sulfur Dioxide (SO2) | M6: 7 | N6: 2009-11-05T08:30:00 | O6: 2009-11-05T11:44:00 | P6: 297 | T6: 4.1 | U6: 14.9 | W6: EPA Methods 1, 2, 3A, 4, 6C, 17, 26A, 30B | Y6: parts per million by volume (dry) (ppmvd) | Z6: TRUE | AA6: 0.01 | AE6: pound per hour (lb/hr) | AF6: TRUE | AG6: 0.06 | AH6: =AA6*$J$27 -> 1.66e-09 | AI6: 2.036207381e-05 | AJ6: =(AP6-AI6)/AP6 -> 0.9796379262 | AK6: 2.127919463e-05 | AL6: =(AP6-AK6)/AP6 -> 0.9787208054 | AN6: pound per million British Thermal Unit (lb/MMBtu) | AO6: TRUE | AP6: 0.001 | AV6: Scrubber inlet duct measurement; do not use
F7: No | G7: Scrubber inlet duct measurement; do not use | H7: 52071 | I7: 3-Source Emissions Survey, Inlet Ducts and Stacks | J7: SP03 | K7: 6 | L7: Sulfur Dioxide (SO2) | M7: 8 | N7: 2009-11-05T13:13:00 | O7: 2009-11-05T15:13:00 | P7: 302 | T7: 3.7 | U7: 15.2 | W7: EPA Methods 1, 2, 3A, 4, 6C, 17, 26A, 30B | X7: 1.36 | Y7: parts per million by volume (dry) (ppmvd) | Z7: FALSE | AD7: 7.97 | AE7: pound per hour (lb/hr) | AF7: FALSE | AH7: 2.2576e-07 | AI7: 0.00270484106 | AJ7: 0.09838631318 | AK7: 0.002836852632 | AL7: 0.05438245614 | AM7: 0.003 | AN7: pound per million British Thermal Unit (lb/MMBtu) | AO7: FALSE | AV7: Scrubber inlet duct measurement; do not use
G8: Scrubber inlet duct measurement; do not use | H8: 52071 | I8: 3-Source Emissions Survey, Inlet Ducts and Stacks | J8: SP03 | L8: Sulfur Dioxide (SO2) | AR8: coal - lignite | AS8: 100 | AV8: Scrubber inlet duct measurement; do not use
G9: Scrubber inlet duct measurement; do not use | H9: 52071 | I9: 3-Source Emissions Survey, Inlet Ducts and Stacks | J9: SP03 | L9: Sulfur Dioxide (SO2) | AR9: coal - lignite | AS9: 100 | AV9: Scrubber inlet duct measurement; do not use
G10: Scrubber inlet duct measurement; do not use | H10: 52071 | I10: 3-Source Emissions Survey, Inlet Ducts and Stacks | J10: SP03 | L10: Sulfur Dioxide (SO2) | AR10: coal - lignite | AS10: 100 | AV10: Scrubber inlet duct measurement; do not use
G11: Scrubber inlet duct measurement; do not use | H11: 52071 | I11: 3-Source Emissions Survey, Inlet Ducts and Stacks | J11: SP03 | L11: Sulfur Dioxide (SO2) | AR11: coal - lignite | AS11: 100 | AV11: Scrubber inlet duct measurement; do not use
G12: Scrubber inlet duct measurement; do not use | H12: 52071 | I12: 3-Source Emissions Survey, Inlet Ducts and Stacks | J12: SP03 | L12: Sulfur Dioxide (SO2) | AR12: coal - lignite | AS12: 100 | AV12: Scrubber inlet duct measurement; do not use
G13: Scrubber inlet duct measurement; do not use | H13: 52071 | I13: 3-Source Emissions Survey, Inlet Ducts and Stacks | J13: SP03 | L13: Sulfur Dioxide (SO2) | AR13: coal - lignite | AS13: 100 | AV13: Scrubber inlet duct measurement; do not use
F15: Yes | H15: 52071 | I15: 2-Source Emissions Survey, Stacks | J15: SP07 | K15: 6 | L15: Sulfur Dioxide (SO2) | M15: 1 | N15: 2009-10-28T17:28:00 | O15: 2009-10-28T19:29:00 | P15: 313.34 | Q15: 328916 | R15: 8722 | S15: 19.63 | T15: 3.59 | U15: 15.68 | W15: EPA Methods 1, 2, 3A, 4, 5B, 6C, 7E, 9, 10, 18, 25A, 26A, 29, 201A, CTM-027, and OTM-028 | X15: 3.01 | Y15: parts per million by volume (dry) (ppmvd) | Z15: FALSE | AD15: 17.44 | AE15: pound per hour (lb/hr) | AF15: FALSE | AH15: =X15*$J$27 -> 4.9966e-07 | AI15: =AH15*$I$34*20.9/(20.9-T15) -> 0.005948407559 | AJ15: =(AM15-AI15)/AM15 -> 0.008598740227 | AK15: =AH15*$K$34*100/U15 -> 0.006086419643 | AL15: =(AM15-AK15)/AM15 -> -0.01440327381 | AM15: 0.006 | AN15: pound per million British Thermal Unit (lb/MMBtu) | AO15: FALSE
F16: Yes | H16: 52071 | I16: 2-Source Emissions Survey, Stacks | J16: SP07 | K16: 6 | L16: Sulfur Dioxide (SO2) | M16: 5 | N16: 2009-10-30T09:15:00 | O16: 2009-10-30T12:01:00 | P16: 320.17 | Q16: 340004 | R16: 8316 | S16: 17.1 | T16: 4.08 | U16: 15.27 | W16: EPA Methods 1, 2, 3A, 4, 5B, 6C, 7E, 9, 10, 18, 25A, 26A, 29, 201A, CTM-027, and OTM-028 | X16: 4.52 | Y16: parts per million by volume (dry) (ppmvd) | Z16: FALSE | AD16: 28.17 | AE16: pound per hour (lb/hr) | AF16: FALSE | AH16: 7.5032e-07 | AI16: 0.009192713655 | AJ16: -0.02141262835 | AK16: 0.009385142109 | AL16: =(AM16-AK16)/AM16 -> -0.04279356763 | AM16: 0.009 | AN16: pound per million British Thermal Unit (lb/MMBtu) | AO16: FALSE
F17: Yes | H17: 52071 | I17: 2-Source Emissions Survey, Stacks | J17: SP07 | K17: 6 | L17: Sulfur Dioxide (SO2) | M17: 9 | N17: 2009-11-05T08:30:00 | O17: 2009-11-05T11:32:00 | P17: 297.69 | Q17: 299810 | R17: 8764 | S17: 16.46 | T17: 5.33 | U17: 14.56 | W17: EPA Methods 1, 2, 3A, 4, 5B, 6C, 7E, 9, 10, 18, 25A, 26A, 29, 201A, CTM-027, and OTM-028 | X17: 28.26 | Y17: parts per million by volume (dry) (ppmvd) | Z17: FALSE | AD17: 178.79 | AE17: pound per hour (lb/hr) | AF17: FALSE | AH17: 4.69116e-06 | AI17: 0.06208902414 | AJ17: -0.001435873205 | AK17: 0.06153925549 | AL17: 0.007431362992 | AM17: 0.062 | AN17: pound per million British Thermal Unit (lb/MMBtu) | AO17: FALSE
B18: =AI18 -> 0.005948407559 | D18: =AM18 -> 0.006 | E18: =AN18 -> lb/MMBtu | H18: 52071 | I18: 2-Source Emissions Survey, Stacks | J18: SP07 | L18: Sulfur Dioxide (SO2) | N18: 2009-10-28T12:07:00 | O18: 2009-10-28T15:26:00 | P18: 312.23 | Q18: 330316 | R18: 7912 | S18: 19.63 | T18: 3.59 | U18: 15.68 | W18: EPA Methods 1, 2, 3A, 4, 5B, 6C, 7E, 9, 10, 18, 25A, 26A, 29, 201A, CTM-027, and OTM-028 | X18: 3.01 | Y18: ppmvd | Z18: FALSE | AD18: 17.44 | AE18: lb/hr | AF18: FALSE | AH18: 4.9966e-07 | AI18: 0.005948407559 | AJ18: 0.008598740227 | AK18: 0.006086419643 | AL18: -0.01440327381 | AM18: 0.006 | AN18: lb/MMBtu | AO18: FALSE | AR18: coal - lignite | AS18: 100
B19: =AI19 -> 0.009192713655 | D19: =AM19 -> 0.009 | E19: =AN18 -> lb/MMBtu | H19: 52071 | I19: 2-Source Emissions Survey, Stacks | J19: SP07 | L19: Sulfur Dioxide (SO2) | N19: 2009-10-30T15:35:00 | O19: 2009-10-30T19:43:00 | P19: 317.93 | Q19: 346472 | R19: 8316 | S19: 17.1 | T19: 4.08 | U19: 15.27 | W19: EPA Methods 1, 2, 3A, 4, 5B, 6C, 7E, 9, 10, 18, 25A, 26A, 29, 201A, CTM-027, and OTM-028 | X19: 4.52 | Y19: ppmvd | Z19: FALSE | AD19: 28.17 | AE19: lb/hr | AF19: FALSE | AH19: 7.5032e-07 | AI19: 0.009192713655 | AJ19: -0.02141262835 | AK19: 0.009385142109 | AL19: -0.04279356763 | AM19: 0.009 | AN19: lb/MMBtu | AO19: FALSE | AR19: coal - lignite | AS19: 100
B20: 0.06208902414 | D20: 0.062 | E20: =AN18 -> lb/MMBtu | H20: 52071 | I20: 2-Source Emissions Survey, Stacks | J20: SP07 | L20: Sulfur Dioxide (SO2) | N20: 2009-11-05T13:10:00 | O20: 2009-11-05T15:37:00 | P20: 301.07 | Q20: 311878 | R20: 8764 | S20: 16.46 | T20: 5.33 | U20: 14.56 | W20: EPA Methods 1, 2, 3A, 4, 5B, 6C, 7E, 9, 10, 18, 25A, 26A, 29, 201A, CTM-027, and OTM-028 | X20: 28.26 | Y20: ppmvd | Z20: FALSE | AD20: 178.79 | AE20: lb/hr | AF20: FALSE | AH20: 4.69116e-06 | AI20: 0.06208902414 | AJ20: -0.001435873205 | AK20: 0.06153925549 | AL20: 0.007431362992 | AM20: 0.062 | AN20: lb/MMBtu | AO20: FALSE | AR20: coal - lignite | AS20: 100
D21: =D18*B$32 -> 0.06290065522 | E21: lb/MWh
D22: =D19*B$32 -> 0.09435098282 | E22: lb/MWh
D23: 0.6499734372 | E23: lb/MWh
C24: Average | D24: =AVERAGE(D21:D23) -> 0.2690750251 | E24: lb/MWh | H24: Data from hard copy ICR. Only summary spreadsheet tables provided.
A26: Subcategory_ID | B26: 1-SO2 | H26: Conversions
A27: Subcategory Desc. | B27: Coal | H27: 1 | I27: ppm SO2 | J27: 1.66e-07 | K27: lb/scf
A28: ORIS Code | B28: 52071
A29: Plant Name | B29: Sandow | H29: Table 19-2 | I29: Fd | J29: Fw | K29: Fc
A30: Configuration ID | B30: 5A | H30: Fuel Type | I30: dscf/MMBtu | J30: wscf/MMBtu | K30: scf/MMBtu
A31: Boiler ID | H31: Coal
A32: Heat Rate | B32: 10.48344254 | H32: Anthracite | I32: 10100 | J32: 10540 | K32: 1970
H33: Bituminous | I33: 9780 | J33: 40640 | K33: 1800
H34: Lignite | I34: 9860 | J34: 11950 | K34: 1910
H35: Petcoke | I35: 9830 | K35: 1850
H36: Oil | I36: 9190 | J36: 10320 | K36: 1420

Sheet ERT
A1: Key | B1: RTI Calculated QA lb/MMBtu | C1: Run Grade | D1: Submitted Value | E1: Submitted Value UOM | F1: Use ? | G1: Comment | H1: facility_id | I1: configuration_id | J1: submittal_id | K1: Location | L1: Method | M1: Run | N1: RunDate | O1: Compound | P1: Fwt | Q1: DF | R1: lb/dscf | S1: ppm | T1: ppm converted to lb/dscf | U1: Estimated O2%, assuming lb/MMBtu is correct | V1: ppm@7%O2 | W1: ng/dscm | X1: ng/dscm@7%O2 | Y1: ppm @ 7% converted to lb/dscf | Z1: Equation 19-1 | AA1: lb/mmBtuO2
B2: =Z2 -> 0.02178231841 | C2: A | D2: =AA2 -> 0.02181644279 | E2: =AA1 -> lb/mmBtuO2 | F2: Yes | H2: 52071 | I2: 5A | J2: 834 | K2: Stack | L2: Method 6C | M2: 1 | N2: 2010-03-03 | O2: Sulfur Dioxide | P2: 64.06 | Q2: 1.09713e-05 | R2: 1.824088964e-06 | S2: 10.9713 | T2: =S2*$J$12 -> 1.8212358e-06 | U2: =20.9-(S2/V2*(20.9-7)) -> 3.67 | V2: 8.850903656 | W2: 29223491.15 | X2: 23575538.42 | Y2: =V2*$J$12 -> 1.469250007e-06 | Z2: =Y2*$I$19*20.9/(20.9-7) -> 0.02178231841 | AA2: 0.02181644279
B3: =Z3 -> 0.009214681869 | C3: A | D3: =AA3 -> 0.009229117672 | E3: =AA1 -> lb/mmBtuO2 | F3: Yes | H3: 52071 | I3: 5A | J3: 834 | K3: Stack | L3: Method 6C | M3: 2 | N3: 2010-03-04 | O3: Sulfur Dioxide | P3: 64.06 | Q3: 4.617e-06 | R3: 7.676226836e-07 | S3: 4.617 | T3: =S3*$J$12 -> 7.66422e-07 | U3: =20.9-(S3/V3*(20.9-7)) -> 3.76 | V3: 3.74424154 | W3: 12297982.79 | X3: 9973276.595 | Y3: =V3*$J$12 -> 6.215440957e-07 | Z3: =Y3*$I$19*20.9/(20.9-7) -> 0.009214681869 | AA3: 0.009229117672
B4: 0.002416630516 | C4: A | D4: =AA4 -> 0.002420416431 | E4: =AA1 -> lb/mmBtuO2 | F4: Yes | H4: 52071 | I4: 5A | J4: 834 | K4: Stack | L4: Method 6C | M4: 3 | N4: 2010-03-05 | O4: Sulfur Dioxide | P4: 64.06 | Q4: 1.2165e-06 | R4: 2.022553595e-07 | S4: 1.2165 | T4: =S4*$J$12 -> 2.01939e-07 | U4: 3.68 | V4: 0.9819599303 | W4: 3240306.707 | X4: 2615578.585 | Y4: 1.630053484e-07 | Z4: 0.002416630516 | AA4: 0.002420416431
H5: 52071 | I5: 5A | J5: 834 | K5: Stack | L5: Method 6C | M5: 1 | N5: 2010-03-03 | O5: Sulfur Dioxide | S5: 11 | T5: =S5*$J$12 -> 1.826e-06 | U5: 3.67 | V5: 8.87 | Y5: 1.47242e-06 | Z5: 0.02182931504 | AA5: 0.0218
C6: Run 1 | D6: =D2*B$21 -> 0.2287114243 | E6: lb/MWh | H6: 52071 | I6: 5A | J6: 834 | K6: Stack | L6: Method 6C | M6: 2 | N6: 2010-03-04 | O6: Sulfur Dioxide | S6: 4.62 | T6: 7.6692e-07 | U6: 3.76 | V6: 3.75 | Y6: 6.225e-07 | Z6: 0.009228853597 | AA6: 0.00923
C7: Run 2 | D7: =D3*B$21 -> 0.09675292478 | E7: lb/MWh | H7: 52071 | I7: 5A | J7: 834 | K7: Stack | L7: Method 6C | M7: 3 | N7: 2010-03-05 | O7: Sulfur Dioxide | S7: 1.22 | T7: 2.0252e-07 | U7: 3.68 | V7: 0.985 | Y7: 1.6351e-07 | Z7: 0.002424112212 | AA7: 0.00242
C8: Run 3 | D8: 0.02537429657 | E8: lb/MWh
C9: Average | D9: =AVERAGE(D6:D8) -> 0.1169462152 | E9: lb/MWh
H11: Conversions
H12: 1 | I12: ppm SO2 | J12: 1.66e-07 | K12: lb/scf | O12: =V2*J12 -> 1.469250007e-06
U13: O2 values match ERT entries.
H14: Table 19-2 | I14: Fd | J14: Fw | K14: Fc
A15: Subcategory_ID | B15: 1-SO2 | H15: Fuel Type | I15: dscf/MMBtu | J15: wscf/MMBtu | K15: scf/MMBtu
A16: Subcategory Desc. | B16: Coal | H16: Coal
A17: ORIS Code | B17: 52071 | H17: Anthracite | I17: 10100 | J17: 10540 | K17: 1970
A18: Plant Name | B18: Sandow | H18: Bituminous | I18: 9780 | J18: 40640 | K18: 1800
A19: Configuration ID | B19: 5A | H19: Lignite | I19: 9860 | J19: 11950 | K19: 1910
A20: Boiler ID | H20: Petcoke | I20: 9830 | K20: 1850
A21: Heat Rate | B21: 10.48344254 | H21: Oil | I21: 9190 | J21: 10320 | K21: 1420

Sheet SO2_CEMS
A1: facility_id | B1: boiler_id | C1: configuration_id | D1: submittal_id | E1: HAPs_group | F1: CEMS_type | G1: sample_date | H1: emission_value_lb/MMBtu | I1: emission_value_ppmvd | J1: emission_value_hourly | K1: emission_cem_units | L1: oxygen_content | M1: standard_fuel_f_factor
A2: 68029 | B2: =IF(D2=2027,"BLR1","BLR2") -> BLR2 | C2: =IF(D2=2027,"Unit_1","Unit_2") -> Unit_2 | D2: 2028 | E2: acid gas | F2: SO2 | G2: 2010-03-01 | H2: 0 | I2: 0.32 | J2: ppm @ 7% O2 | K2: 0.32 | L2: 0.0DN | M2: 9780
A3: 68029 | B3: BLR2 | C3: Unit_2 | D3: 2028 | E3: acid gas | F3: SO2 | G3: 2010-03-01T01:00:00 | H3: 0 | I3: -0.01 | J3: ppm @ 7% O2 | K3: -0.01 | L3: 0.0DN | M3: 9780
A4: 68029 | B4: BLR2 | C4: Unit_2 | D4: 2028 | E4: acid gas | F4: SO2 | G4: 2010-03-01T02:00:00 | H4: 0 | I4: -0.02 | J4: ppm @ 7% O2 | K4: -0.02 | L4: 0.0DN | M4: 9780
A5: 68029 | B5: BLR2 | C5: Unit_2 | D5: 2028 | E5: acid gas | F5: SO2 | G5: 2010-03-01T03:00:00 | H5: 0 | I5: -0.02 | J5: ppm @ 7% O2 | K5: -0.02 | L5: 0.0DN | M5: 9780
A6: 68029 | B6: BLR2 | C6: Unit_2 | D6: 2028 | E6: acid gas | F6: SO2 | G6: 2010-03-01T04:00:00 | H6: 0 | I6: -0.02 | J6: ppm @ 7% O2 | K6: -0.02 | L6: 0.0DN | M6: 9780
A7: 68029 | B7: BLR2 | C7: Unit_2 | D7: 2028 | E7: acid gas | F7: SO2 | G7: 2010-03-01T05:00:00 | H7: 0 | I7: -0.02 | J7: ppm @ 7% O2 | K7: -0.02 | L7: 0.0DN | M7: 9780
A8: 68029 | B8: BLR2 | C8: Unit_2 | D8: 2028 | E8: acid gas | F8: SO2 | G8: 2010-03-01T06:00:00 | H8: 0 | I8: -0.02 | J8: ppm @ 7% O2 | K8: -0.02 | L8: 0.0DN | M8: 9780
A9: 68029 | B9: BLR2 | C9: Unit_2 | D9: 2028 | E9: acid gas | F9: SO2 | G9: 2010-03-01T07:00:00 | H9: 0 | I9: -0.02 | J9: ppm @ 7% O2 | K9: -0.02 | L9: 0.0DN | M9: 9780
A10: 68029 | B10: BLR2 | C10: Unit_2 | D10: 2028 | E10: acid gas | F10: SO2 | G10: 2010-03-01T08:00:00 | H10: 0 | I10: -0.02 | J10: ppm @ 7% O2 | K10: -0.02 | L10: 0.0DN | M10: 9780
A11: 68029 | B11: BLR2 | C11: Unit_2 | D11: 2028 | E11: acid gas | F11: SO2 | G11: 2010-03-01T09:00:00 | H11: 0 | I11: -0.02 | J11: ppm @ 7% O2 | K11: -0.02 | L11: 0.0DN | M11: 9780
A12: 68029 | B12: BLR2 | C12: Unit_2 | D12: 2028 | E12: acid gas | F12: SO2 | G12: 2010-03-01T10:00:00 | H12: 0 | I12: -0.01 | J12: ppm @ 7% O2 | K12: -0.01 | L12: 0.0DN | M12: 9780
A13: 68029 | B13: BLR2 | C13: Unit_2 | D13: 2028 | E13: acid gas | F13: SO2 | G13: 2010-03-01T11:00:00 | H13: 0 | I13: -0.02 | J13: ppm @ 7% O2 | K13: -0.02 | L13: 0.0DN | M13: 9780
A14: 68029 | B14: BLR2 | C14: Unit_2 | D14: 2028 | E14: acid gas | F14: SO2 | G14: 2010-03-01T12:00:00 | H14: 0 | I14: -0.02 | J14: ppm @ 7% O2 | K14: -0.02 | L14: 0.0DN | M14: 9780
A15: 68029 | B15: BLR2 | C15: Unit_2 | D15: 2028 | E15: acid gas | F15: SO2 | G15: 2010-03-01T13:00:00 | H15: 0 | I15: -0.02 | J15: ppm @ 7% O2 | K15: -0.02 | L15: 0.0DN | M15: 9780
A16: 68029 | B16: BLR2 | C16: Unit_2 | D16: 2028 | E16: acid gas | F16: SO2 | G16: 2010-03-01T14:00:00 | H16: 0 | I16: -0.02 | J16: ppm @ 7% O2 | K16: -0.02 | L16: 0.0DN | M16: 9780
A17: 68029 | B17: BLR2 | C17: Unit_2 | D17: 2028 | E17: acid gas | F17: SO2 | G17: 2010-03-01T15:00:00 | H17: 0 | I17: -0.02 | J17: ppm @ 7% O2 | K17: -0.02 | L17: 0.0DN | M17: 9780
A18: 68029 | B18: BLR2 | C18: Unit_2 | D18: 2028 | E18: acid gas | F18: SO2 | G18: 2010-03-01T16:00:00 | H18: 0 | I18: -0.02 | J18: ppm @ 7% O2 | K18: -0.02 | L18: 0.0DN | M18: 9780
A19: 68029 | B19: BLR2 | C19: Unit_2 | D19: 2028 | E19: acid gas | F19: SO2 | G19: 2010-03-01T17:00:00 | H19: 0 | I19: -0.02 | J19: ppm @ 7% O2 | K19: -0.02 | L19: 0.0DN | M19: 9780
A20: 68029 | B20: BLR2 | C20: Unit_2 | D20: 2028 | E20: acid gas | F20: SO2 | G20: 2010-03-01T18:00:00 | H20: 0 | I20: -0.02 | J20: ppm @ 7% O2 | K20: -0.02 | L20: 0.0DN | M20: 9780
A21: 68029 | B21: BLR2 | C21: Unit_2 | D21: 2028 | E21: acid gas | F21: SO2 | G21: 2010-03-01T19:00:00 | H21: 0 | I21: -0.02 | J21: ppm @ 7% O2 | K21: -0.02 | L21: 0.0DN | M21: 9780
A22: 68029 | B22: BLR2 | C22: Unit_2 | D22: 2028 | E22: acid gas | F22: SO2 | G22: 2010-03-01T20:00:00 | H22: 0 | I22: -0.02 | J22: ppm @ 7% O2 | K22: -0.02 | L22: 0.0DN | M22: 9780
A23: 68029 | B23: BLR2 | C23: Unit_2 | D23: 2028 | E23: acid gas | F23: SO2 | G23: 2010-03-01T21:00:00 | H23: 0 | I23: -0.02 | J23: ppm @ 7% O2 | K23: -0.02 | L23: 0.0DN | M23: 9780
A24: 68029 | B24: BLR2 | C24: Unit_2 | D24: 2028 | E24: acid gas | F24: SO2 | G24: 2010-03-01T22:00:00 | H24: 0 | I24: -0.02 | J24: ppm @ 7% O2 | K24: -0.02 | L24: 0.0DN | M24: 9780
A25: 68029 | B25: BLR2 | C25: Unit_2 | D25: 2028 | E25: acid gas | F25: SO2 | G25: 2010-03-01T23:00:00 | H25: 0 | I25: -0.02 | J25: ppm @ 7% O2 | K25: -0.02 | L25: 0.0DN | M25: 9780
A26: 68029 | B26: BLR2 | C26: Unit_2 | D26: 2028 | E26: acid gas | F26: SO2 | G26: 2010-03-02 | H26: 0 | I26: -0.02 | J26: ppm @ 7% O2 | K26: -0.02 | L26: 0.0DN | M26: 9780
A27: 68029 | B27: BLR2 | C27: Unit_2 | D27: 2028 | E27: acid gas | F27: SO2 | G27: 2010-03-02T01:00:00 | H27: 0 | I27: -0.02 | J27: ppm @ 7% O2 | K27: -0.02 | L27: 0.0DN | M27: 9780
A28: 68029 | B28: BLR2 | C28: Unit_2 | D28: 2028 | E28: acid gas | F28: SO2 | G28: 2010-03-02T02:00:00 | H28: 0 | I28: -0.02 | J28: ppm @ 7% O2 | K28: -0.02 | L28: 0.0DN | M28: 9780
A29: 68029 | B29: BLR2 | C29: Unit_2 | D29: 2028 | E29: acid gas | F29: SO2 | G29: 2010-03-02T03:00:00 | H29: 0 | I29: -0.02 | J29: ppm @ 7% O2 | K29: -0.02 | L29: 0.0DN | M29: 9780
A30: 68029 | B30: BLR2 | C30: Unit_2 | D30: 2028 | E30: acid gas | F30: SO2 | G30: 2010-03-02T04:00:00 | H30: 0 | I30: -0.02 | J30: ppm @ 7% O2 | K30: -0.02 | L30: 0.0DN | M30: 9780
A31: 68029 | B31: BLR2 | C31: Unit_2 | D31: 2028 | E31: acid gas | F31: SO2 | G31: 2010-03-02T05:00:00 | H31: 0 | I31: -0.02 | J31: ppm @ 7% O2 | K31: -0.02 | L31: 0.0DN | M31: 9780
A32: 68029 | B32: BLR2 | C32: Unit_2 | D32: 2028 | E32: acid gas | F32: SO2 | G32: 2010-03-02T06:00:00 | H32: 0 | I32: -0.02 | J32: ppm @ 7% O2 | K32: -0.02 | L32: 0.0DN | M32: 9780
A33: 68029 | B33: BLR2 | C33: Unit_2 | D33: 2028 | E33: acid gas | F33: SO2 | G33: 2010-03-02T07:00:00 | H33: 0 | I33: -0.02 | J33: ppm @ 7% O2 | K33: -0.02 | L33: 0.0DN | M33: 9780
A34: 68029 | B34: BLR2 | C34: Unit_2 | D34: 2028 | E34: acid gas | F34: SO2 | G34: 2010-03-02T08:00:00 | H34: 0 | I34: -0.02 | J34: ppm @ 7% O2 | K34: -0.02 | L34: 0.0DN | M34: 9780
A35: 68029 | B35: BLR2 | C35: Unit_2 | D35: 2028 | E35: acid gas | F35: SO2 | G35: 2010-03-02T09:00:00 | H35: 0 | I35: -0.02 | J35: ppm @ 7% O2 | K35: -0.02 | L35: 0.0DN | M35: 9780
A36: 68029 | B36: BLR2 | C36: Unit_2 | D36: 2028 | E36: acid gas | F36: SO2 | G36: 2010-03-02T10:00:00 | H36: 0 | I36: -0.02 | J36: ppm @ 7% O2 | K36: -0.02 | L36: 0.0DN | M36: 9780
A37: 68029 | B37: BLR2 | C37: Unit_2 | D37: 2028 | E37: acid gas | F37: SO2 | G37: 2010-03-02T11:00:00 | H37: 0 | I37: -0.02 | J37: ppm @ 7% O2 | K37: -0.02 | L37: 0.0DN | M37: 9780
A38: 68029 | B38: BLR2 | C38: Unit_2 | D38: 2028 | E38: acid gas | F38: SO2 | G38: 2010-03-02T12:00:00 | H38: 0 | I38: -0.02 | J38: ppm @ 7% O2 | K38: -0.02 | L38: 0.0DN | M38: 9780
A39: 68029 | B39: BLR2 | C39: Unit_2 | D39: 2028 | E39: acid gas | F39: SO2 | G39: 2010-03-02T13:00:00 | H39: 0 | I39: -0.02 | J39: ppm @ 7% O2 | K39: -0.02 | L39: 0.0DN | M39: 9780
A40: 68029 | B40: BLR2 | C40: Unit_2 | D40: 2028 | E40: acid gas | F40: SO2 | G40: 2010-03-02T14:00:00 | H40: 0 | I40: -0.02 | J40: ppm @ 7% O2 | K40: -0.02 | L40: 0.0DN | M40: 9780
A41: 68029 | B41: BLR2 | C41: Unit_2 | D41: 2028 | E41: acid gas | F41: SO2 | G41: 2010-03-02T15:00:00 | H41: 0 | I41: -0.02 | J41: ppm @ 7% O2 | K41: -0.02 | L41: 0.0DN | M41: 9780
A42: 68029 | B42: BLR2 | C42: Unit_2 | D42: 2028 | E42: acid gas | F42: SO2 | G42: 2010-03-02T16:00:00 | H42: 0 | I42: -0.02 | J42: ppm @ 7% O2 | K42: -0.02 | L42: 0.0DN | M42: 9780
A43: 68029 | B43: BLR2 | C43: Unit_2 | D43: 2028 | E43: acid gas | F43: SO2 | G43: 2010-03-02T17:00:00 | H43: 0 | I43: -0.02 | J43: ppm @ 7% O2 | K43: -0.02 | L43: 0.0DN | M43: 9780
A44: 68029 | B44: BLR2 | C44: Unit_2 | D44: 2028 | E44: acid gas | F44: SO2 | G44: 2010-03-02T18:00:00 | H44: 0 | I44: -0.02 | J44: ppm @ 7% O2 | K44: -0.02 | L44: 0.0DN | M44: 9780
A45: 68029 | B45: BLR2 | C45: Unit_2 | D45: 2028 | E45: acid gas | F45: SO2 | G45: 2010-03-02T19:00:00 | H45: 0 | I45: -0.02 | J45: ppm @ 7% O2 | K45: -0.02 | L45: 0.0DN | M45: 9780
A46: 68029 | B46: BLR2 | C46: Unit_2 | D46: 2028 | E46: acid gas | F46: SO2 | G46: 2010-03-02T20:00:00 | H46: 0 | I46: -0.02 | J46: ppm @ 7% O2 | K46: -0.02 | L46: 0.0DN | M46: 9780
A47: 68029 | B47: BLR2 | C47: Unit_2 | D47: 2028 | E47: acid gas | F47: SO2 | G47: 2010-03-02T21:00:00 | H47: 0 | I47: -0.02 | J47: ppm @ 7% O2 | K47: -0.02 | L47: 0.0DN | M47: 9780
A48: 68029 | B48: BLR2 | C48: Unit_2 | D48: 2028 | E48: acid gas | F48: SO2 | G48: 2010-03-02T22:00:00 | H48: 0 | I48: -0.02 | J48: ppm @ 7% O2 | K48: -0.02 | L48: 0.0DN | M48: 9780
A49: 68029 | B49: BLR2 | C49: Unit_2 | D49: 2028 | E49: acid gas | F49: SO2 | G49: 2010-03-02T23:00:00 | H49: 0 | I49: -0.02 | J49: ppm @ 7% O2 | K49: -0.02 | L49: 0.0DN | M49: 9780
A50: 68029 | B50: BLR2 | C50: Unit_2 | D50: 2028 | E50: acid gas | F50: SO2 | G50: 2010-03-03 | H50: 0 | I50: -0.02 | J50: ppm @ 7% O2 | K50: -0.02 | L50: 0.0DN | M50: 9780
A51: 68029 | B51: BLR2 | C51: Unit_2 | D51: 2028 | E51: acid gas | F51: SO2 | G51: 2010-03-03T01:00:00 | H51: 0 | I51: -0.02 | J51: ppm @ 7% O2 | K51: -0.02 | L51: 0.0DN | M51: 9780
A52: 68029 | B52: BLR2 | C52: Unit_2 | D52: 2028 | E52: acid gas | F52: SO2 | G52: 2010-03-03T02:00:00 | H52: 0 | I52: -0.02 | J52: ppm @ 7% O2 | K52: -0.02 | L52: 0.0DN | M52: 9780
A53: 68029 | B53: BLR2 | C53: Unit_2 | D53: 2028 | E53: acid gas | F53: SO2 | G53: 2010-03-03T03:00:00 | H53: 0 | I53: -0.02 | J53: ppm @ 7% O2 | K53: -0.02 | L53: 0.0DN | M53: 9780
A54: 68029 | B54: BLR2 | C54: Unit_2 | D54: 2028 | E54: acid gas | F54: SO2 | G54: 2010-03-03T04:00:00 | H54: 0 | I54: -0.02 | J54: ppm @ 7% O2 | K54: -0.02 | L54: 0.0DN | M54: 9780
A55: 68029 | B55: BLR2 | C55: Unit_2 | D55: 2028 | E55: acid gas | F55: SO2 | G55: 2010-03-03T05:00:00 | H55: 0 | I55: -0.02 | J55: ppm @ 7% O2 | K55: -0.02 | L55: 0.0DN | M55: 9780
A56: 68029 | B56: BLR2 | C56: Unit_2 | D56: 2028 | E56: acid gas | F56: SO2 | G56: 2010-03-03T06:00:00 | H56: 0 | I56: -0.02 | J56: ppm @ 7% O2 | K56: -0.02 | L56: 0.0DN | M56: 9780
A57: 68029 | B57: BLR2 | C57: Unit_2 | D57: 2028 | E57: acid gas | F57: SO2 | G57: 2010-03-03T07:00:00 | H57: 0 | I57: -0.02 | J57: ppm @ 7% O2 | K57: -0.02 | L57: 0.0DN | M57: 9780
A58: 68029 | B58: BLR2 | C58: Unit_2 | D58: 2028 | E58: acid gas | F58: SO2 | G58: 2010-03-03T08:00:00 | H58: 0 | I58: -0.02 | J58: ppm @ 7% O2 | K58: -0.02 | L58: 0.0DN | M58: 9780
A59: 68029 | B59: BLR2 | C59: Unit_2 | D59: 2028 | E59: acid gas | F59: SO2 | G59: 2010-03-03T09:00:00 | H59: 0 | I59: 0.16 | J59: ppm @ 7% O2 | K59: 0.16 | L59: 0.0DN | M59: 9780
A60: 68029 | B60: BLR2 | C60: Unit_2 | D60: 2028 | E60: acid gas | F60: SO2 | G60: 2010-03-03T10:00:00 | H60: 0 | I60: 0.26 | J60: ppm @ 7% O2 | K60: 0.26 | L60: 0.0DN | M60: 9780
A61: 68029 | B61: BLR2 | C61: Unit_2 | D61: 2028 | E61: acid gas | F61: SO2 | G61: 2010-03-03T11:00:00 | H61: 0 | I61: 0.26 | J61: ppm @ 7% O2 | K61: 0.26 | L61: 0.0DN | M61: 9780
A62: 68029 | B62: BLR2 | C62: Unit_2 | D62: 2028 | E62: acid gas | F62: SO2 | G62: 2010-03-03T12:00:00 | H62: 0 | I62: 0.09 | J62: ppm @ 7% O2 | K62: 0.09 | L62: 0.0DN | M62: 9780
A63: 68029 | B63: BLR2 | C63: Unit_2 | D63: 2028 | E63: acid gas | F63: SO2 | G63: 2010-03-03T13:00:00 | H63: 0 | I63: -0.01 | J63: ppm @ 7% O2 | K63: -0.01 | L63: 0.0DN | M63: 9780
A64: 68029 | B64: BLR2 | C64: Unit_2 | D64: 2028 | E64: acid gas | F64: SO2 | G64: 2010-03-03T14:00:00 | H64: 0 | I64: -0.02 | J64: ppm @ 7% O2 | K64: -0.02 | L64: 0.0DN | M64: 9780
A65: 68029 | B65: BLR2 | C65: Unit_2 | D65: 2028 | E65: acid gas | F65: SO2 | G65: 2010-03-03T15:00:00 | H65: 0 | I65: -0.02 | J65: ppm @ 7% O2 | K65: -0.02 | L65: 0.0DN | M65: 9780
A66: 68029 | B66: =IF(D66=2027,"BLR1","BLR2") -> BLR2 | C66: =IF(D66=2027,"Unit_1","Unit_2") -> Unit_2 | D66: 2028 | E66: acid gas | F66: SO2 | G66: 2010-03-03T16:00:00 | H66: 0 | I66: -0.02 | J66: ppm @ 7% O2 | K66: -0.02 | L66: 0.0DN | M66: 9780
A67: 68029 | B67: BLR2 | C67: Unit_2 | D67: 2028 | E67: acid gas | F67: SO2 | G67: 2010-03-03T17:00:00 | H67: 0 | I67: -0.01 | J67: ppm @ 7% O2 | K67: -0.01 | L67: 0.0DN | M67: 9780
A68: 68029 | B68: BLR2 | C68: Unit_2 | D68: 2028 | E68: acid gas | F68: SO2 | G68: 2010-03-03T18:00:00 | H68: 0 | I68: -0.02 | J68: ppm @ 7% O2 | K68: -0.02 | L68: 0.0DN | M68: 9780
A69: 68029 | B69: BLR2 | C69: Unit_2 | D69: 2028 | E69: acid gas | F69: SO2 | G69: 2010-03-03T19:00:00 | H69: 0 | I69: -0.02 | J69: ppm @ 7% O2 | K69: -0.02 | L69: 0.0DN | M69: 9780
A70: 68029 | B70: BLR2 | C70: Unit_2 | D70: 2028 | E70: acid gas | F70: SO2 | G70: 2010-03-03T20:00:00 | H70: 0 | I70: -0.02 | J70: ppm @ 7% O2 | K70: -0.02 | L70: 0.0DN | M70: 9780
A71: 68029 | B71: BLR2 | C71: Unit_2 | D71: 2028 | E71: acid gas | F71: SO2 | G71: 2010-03-03T21:00:00 | H71: 0 | I71: -0.02 | J71: ppm @ 7% O2 | K71: -0.02 | L71: 0.0DN | M71: 9780
A72: 68029 | B72: BLR2 | C72: Unit_2 | D72: 2028 | E72: acid gas | F72: SO2 | G72: 2010-03-03T22:00:00 | H72: 0 | I72: -0.02 | J72: ppm @ 7% O2 | K72: -0.02 | L72: 0.0DN | M72: 9780
A73: 68029 | B73: BLR2 | C73: Unit_2 | D73: 2028 | E73: acid gas | F73: SO2 | G73: 2010-03-03T23:00:00 | H73: 0 | I73: -0.02 | J73: ppm @ 7% O2 | K73: -0.02 | L73: 0.0DN | M73: 9780
A74: 68029 | B74: BLR2 | C74: Unit_2 | D74: 2028 | E74: acid gas | F74: SO2 | G74: 2010-03-04 | H74: 0 | I74: -0.02 | J74: ppm @ 7% O2 | K74: -0.02 | L74: 0.0DN | M74: 9780
A75: 68029 | B75: BLR2 | C75: Unit_2 | D75: 2028 | E75: acid gas | F75: SO2 | G75: 2010-03-04T01:00:00 | H75: 0 | I75: -0.02 | J75: ppm @ 7% O2 | K75: -0.02 | L75: 0.0DN | M75: 9780
A76: 68029 | B76: BLR2 | C76: Unit_2 | D76: 2028 | E76: acid gas | F76: SO2 | G76: 2010-03-04T02:00:00 | H76: 0 | I76: -0.02 | J76: ppm @ 7% O2 | K76: -0.02 | L76: 0.0DN | M76: 9780
A77: 68029 | B77: BLR2 | C77: Unit_2 | D77: 2028 | E77: acid gas | F77: SO2 | G77: 2010-03-04T03:00:00 | H77: 0 | I77: -0.02 | J77: ppm @ 7% O2 | K77: -0.02 | L77: 0.0DN | M77: 9780
A78: 68029 | B78: BLR2 | C78: Unit_2 | D78: 2028 | E78: acid gas | F78: SO2 | G78: 2010-03-04T04:00:00 | H78: 0 | I78: -0.02 | J78: ppm @ 7% O2 | K78: -0.02 | L78: 0.0DN | M78: 9780
A79: 68029 | B79: BLR2 | C79: Unit_2 | D79: 2028 | E79: acid gas | F79: SO2 | G79: 2010-03-04T05:00:00 | H79: 0 | I79: -0.02 | J79: ppm @ 7% O2 | K79: -0.02 | L79: 0.0DN | M79: 9780
A80: 68029 | B80: BLR2 | C80: Unit_2 | D80: 2028 | E80: acid gas | F80: SO2 | G80: 2010-03-04T06:00:00 | H80: 0 | I80: -0.02 | J80: ppm @ 7% O2 | K80: -0.02 | L80: 0.0DN | M80: 9780
A81: 68029 | B81: BLR2 | C81: Unit_2 | D81: 2028 | E81: acid gas | F81: SO2 | G81: 2010-03-04T07:00:00 | H81: 0 | I81: -0.02 | J81: ppm @ 7% O2 | K81: -0.02 | L81: 0.0DN | M81: 9780
A82: 68029 | B82: BLR2 | C82: Unit_2 | D82: 2028 | E82: acid gas | F82: SO2 | G82: 2010-03-04T08:00:00 | H82: 0 | I82: -0.02 | J82: ppm @ 7% O2 | K82: -0.02 | L82: 0.0DN | M82: 9780
A83: 68029 | B83: BLR2 | C83: Unit_2 | D83: 2028 | E83: acid gas | F83: SO2 | G83: 2010-03-04T09:00:00 | H83: 0 | I83: -0.02 | J83: ppm @ 7% O2 | K83: -0.02 | L83: 0.0DN | M83: 9780
A84: 68029 | B84: BLR2 | C84: Unit_2 | D84: 2028 | E84: acid gas | F84: SO2 | G84: 2010-03-04T10:00:00 | H84: 0 | I84: -0.02 | J84: ppm @ 7% O2 | K84: -0.02 | L84: 0.0DN | M84: 9780
A85: 68029 | B85: BLR2 | C85: Unit_2 | D85: 2028 | E85: acid gas | F85: SO2 | G85: 2010-03-04T11:00:00 | H85: 0 | I85: -0.02 | J85: ppm @ 7% O2 | K85: -0.02 | L85: 0.0DN | M85: 9780
A86: 68029 | B86: BLR2 | C86: Unit_2 | D86: 2028 | E86: acid gas | F86: SO2 | G86: 2010-03-04T12:00:00 | H86: 0 | I86: -0.02 | J86: ppm @ 7% O2 | K86: -0.02 | L86: 0.0DN | M86: 9780
A87: 68029 | B87: BLR2 | C87: Unit_2 | D87: 2028 | E87: acid gas | F87: SO2 | G87: 2010-03-04T13:00:00 | H87: 0 | I87: -0.02 | J87: ppm @ 7% O2 | K87: -0.02 | L87: 0.0DN | M87: 9780
A88: 68029 | B88: BLR2 | C88: Unit_2 | D88: 2028 | E88: acid gas | F88: SO2 | G88: 2010-03-04T14:00:00 | H88: 0 | I88: -0.02 | J88: ppm @ 7% O2 | K88: -0.02 | L88: 0.0DN | M88: 9780
A89: 68029 | B89: BLR2 | C89: Unit_2 | D89: 2028 | E89: acid gas | F89: SO2 | G89: 2010-03-04T15:00:00 | H89: 0 | I89: -0.02 | J89: ppm @ 7% O2 | K89: -0.02 | L89: 0.0DN | M89: 9780
A90: 68029 | B90: BLR2 | C90: Unit_2 | D90: 2028 | E90: acid gas | F90: SO2 | G90: 2010-03-04T16:00:00 | H90: 0 | I90: -0.02 | J90: ppm @ 7% O2 | K90: -0.02 | L90: 0.0DN | M90: 9780
A91: 68029 | B91: BLR2 | C91: Unit_2 | D91: 2028 | E91: acid gas | F91: SO2 | G91: 2010-03-04T17:00:00 | H91: 0 | I91: -0.02 | J91: ppm @ 7% O2 | K91: -0.02 | L91: 0.0DN | M91: 9780
A92: 68029 | B92: BLR2 | C92: Unit_2 | D92: 2028 | E92: acid gas | F92: SO2 | G92: 2010-03-04T18:00:00 | H92: 0 | I92: -0.02 | J92: ppm @ 7% O2 | K92: -0.02 | L92: 0.0DN | M92: 9780
A93: 68029 | B93: BLR2 | C93: Unit_2 | D93: 2028 | E93: acid gas | F93: SO2 | G93: 2010-03-04T19:00:00 | H93: 0 | I93: -0.02 | J93: ppm @ 7% O2 | K93: -0.02 | L93: 0.0DN | M93: 9780
A94: 68029 | B94: BLR2 | C94: Unit_2 | D94: 2028 | E94: acid gas | F94: SO2 | G94: 2010-03-04T20:00:00 | H94: 0 | I94: -0.02 | J94: ppm @ 7% O2 | K94: -0.02 | L94: 0.0DN | M94: 9780
A95: 68029 | B95: BLR2 | C95: Unit_2 | D95: 2028 | E95: acid gas | F95: SO2 | G95: 2010-03-04T21:00:00 | H95: 0 | I95: -0.02 | J95: ppm @ 7% O2 | K95: -0.02 | L95: 0.0DN | M95: 9780
A96: 68029 | B96: BLR2 | C96: Unit_2 | D96: 2028 | E96: acid gas | F96: SO2 | G96: 2010-03-04T22:00:00 | H96: 0 | I96: -0.02 | J96: ppm @ 7% O2 | K96: -0.02 | L96: 0.0DN | M96: 9780
A97: 68029 | B97: BLR2 | C97: Unit_2 | D97: 2028 | E97: acid gas | F97: SO2 | G97: 2010-03-04T23:00:00 | H97: 0 | I97: -0.02 | J97: ppm @ 7% O2 | K97: -0.02 | L97: 0.0DN | M97: 9780
A98: 68029 | B98: BLR2 | C98: Unit_2 | D98: 2028 | E98: acid gas | F98: SO2 | G98: 2010-03-05 | H98: 0 | I98: -0.02 | J98: ppm @ 7% O2 | K98: -0.02 | L98: 0.0DN | M98: 9780
A99: 68029 | B99: BLR2 | C99: Unit_2 | D99: 2028 | E99: acid gas | F99: SO2 | G99: 2010-03-05T01:00:00 | H99: 0 | I99: -0.02 | J99: ppm @ 7% O2 | K99: -0.02 | L99: 0.0DN | M99: 9780
A100: 68029 | B100: BLR2 | C100: Unit_2 | D100: 2028 | E100: acid gas | F100: SO2 | G100: 2010-03-05T02:00:00 | H100: 0 | I100: -0.02 | J100: ppm @ 7% O2 | K100: -0.02 | L100: 0.0DN | M100: 9780
A101: 68029 | B101: BLR2 | C101: Unit_2 | D101: 2028 | E101: acid gas | F101: SO2 | G101: 2010-03-05T03:00:00 | H101: 0 | I101: -0.02 | J101: ppm @ 7% O2 | K101: -0.02 | L101: 0.0DN | M101: 9780
A102: 68029 | B102: BLR2 | C102: Unit_2 | D102: 2028 | E102: acid gas | F102: SO2 | G102: 2010-03-05T04:00:00 | H102: 0 | I102: -0.02 | J102: ppm @ 7% O2 | K102: -0.02 | L102: 0.0DN | M102: 9780
A103: 68029 | B103: BLR2 | C103: Unit_2 | D103: 2028 | E103: acid gas | F103: SO2 | G103: 2010-03-05T05:00:00 | H103: 0 | I103: -0.02 | J103: ppm @ 7% O2 | K103: -0.02 | L103: 0.0DN | M103: 9780
A104: 68029 | B104: BLR2 | C104: Unit_2 | D104: 2028 | E104: acid gas | F104: SO2 | G104: 2010-03-05T06:00:00 | H104: 0 | I104: -0.02 | J104: ppm @ 7% O2 | K104: -0.02 | L104: 0.0DN | M104: 9780
A105: 68029 | B105: BLR2 | C105: Unit_2 | D105: 2028 | E105: acid gas | F105: SO2 | G105: 2010-03-05T07:00:00 | H105: 0 | I105: -0.02 | J105: ppm @ 7% O2 | K105: -0.02 | L105: 0.0DN | M105: 9780
A106: 68029 | B106: BLR2 | C106: Unit_2 | D106: 2028 | E106: acid gas | F106: SO2 | G106: 2010-03-05T08:00:00 | H106: 0 | I106: -0.02 | J106: ppm @ 7% O2 | K106: -0.02 | L106: 0.0DN | M106: 9780
A107: 68029 | B107: BLR2 | C107: Unit_2 | D107: 2028 | E107: acid gas | F107: SO2 | G107: 2010-03-05T09:00:00 | H107: 0 | I107: -0.02 | J107: ppm @ 7% O2 | K107: -0.02 | L107: 0.0DN | M107: 9780
A108: 68029 | B108: BLR2 | C108: Unit_2 | D108: 2028 | E108: acid gas | F108: SO2 | G108: 2010-03-05T10:00:00 | H108: 0 | I108: -0.02 | J108: ppm @ 7% O2 | K108: -0.02 | L108: 0.0DN | M108: 9780
A109: 68029 | B109: BLR2 | C109: Unit_2 | D109: 2028 | E109: acid gas | F109: SO2 | G109: 2010-03-05T11:00:00 | H109: 0 | I109: -0.02 | J109: ppm @ 7% O2 | K109: -0.02 | L109: 0.0DN | M109: 9780
A110: 68029 | B110: BLR2 | C110: Unit_2 | D110: 2028 | E110: acid gas | F110: SO2 | G110: 2010-03-05T12:00:00 | H110: 0 | I110: -0.02 | J110: ppm @ 7% O2 | K110: -0.02 | L110: 0.0DN | M110: 9780
A111: 68029 | B111: BLR2 | C111: Unit_2 | D111: 2028 | E111: acid gas | F111: SO2 | G111: 2010-03-05T13:00:00 | H111: 0 | I111: -0.02 | J111: ppm @ 7% O2 | K111: -0.02 | L111: 0.0DN | M111: 9780
A112: 68029 | B112: BLR2 | C112: Unit_2 | D112: 2028 | E112: acid gas | F112: SO2 | G112: 2010-03-05T14:00:00 | H112: 0 | I112: -0.02 | J112: ppm @ 7% O2 | K112: -0.02 | L112: 0.0DN | M112: 9780
A113: 68029 | B113: BLR2 | C113: Unit_2 | D113: 2028 | E113: acid gas | F113: SO2 | G113: 2010-03-05T15:00:00 | H113: 0 | I113: -0.02 | J113: ppm @ 7% O2 | K113: -0.02 | L113: 0.0DN | M113: 9780
A114: 68029 | B114: BLR2 | C114: Unit_2 | D114: 2028 | E114: acid gas | F114: SO2 | G114: 2010-03-05T16:00:00 | H114: 0 | I114: -0.02 | J114: ppm @ 7% O2 | K114: -0.02 | L114: 0.0DN | M114: 9780
A115: 68029 | B115: BLR2 | C115: Unit_2 | D115: 2028 | E115: acid gas | F115: SO2 | G115: 2010-03-05T17:00:00 | H115: 0 | I115: -0.02 | J115: ppm @ 7% O2 | K115: -0.02 | L115: 0.0DN | M115: 9780
A116: 68029 | B116: BLR2 | C116: Unit_2 | D116: 2028 | E116: acid gas | F116: SO2 | G116: 2010-03-05T18:00:00 | H116: 0 | I116: -0.02 | J116: ppm @ 7% O2 | K116: -0.02 | L116: 0.0DN | M116: 9780
A117: 68029 | B117: BLR2 | C117: Unit_2 | D117: 2028 | E117: acid gas | F117: SO2 | G117: 2010-03-05T19:00:00 | H117: 0 | I117: -0.02 | J117: ppm @ 7% O2 | K117: -0.02 | L117: 0.0DN | M117: 9780
A118: 68029 | B118: BLR2 | C118: Unit_2 | D118: 2028 | E118: acid gas | F118: SO2 | G118: 2010-03-05T20:00:00 | H118: 0 | I118: -0.02 | J118: ppm @ 7% O2 | K118: -0.02 | L118: 0.0DN | M118: 9780
A119: 68029 | B119: BLR2 | C119: Unit_2 | D119: 2028 | E119: acid gas | F119: SO2 | G119: 2010-03-05T21:00:00 | H119: 0 | I119: -0.02 | J119: ppm @ 7% O2 | K119: -0.02 | L119: 0.0DN | M119: 9780
A120: 68029 | B120: BLR2 | C120: Unit_2 | D120: 2028 | E120: acid gas | F120: SO2 | G120: 2010-03-05T22:00:00 | H120: 0 | I120: -0.02 | J120: ppm @ 7% O2 | K120: -0.02 | L120: 0.0DN | M120: 9780
A121: 68029 | B121: BLR2 | C121: Unit_2 | D121: 2028 | E121: acid gas | F121: SO2 | G121: 2010-03-05T23:00:00 | H121: 0 | I121: -0.02 | J121: ppm @ 7% O2 | K121: -0.02 | L121: 0.0DN | M121: 9780
A122: 68029 | B122: BLR2 | C122: Unit_2 | D122: 2028 | E122: acid gas | F122: SO2 | G122: 2010-03-06 | H122: 0 | I122: -0.02 | J122: ppm @ 7% O2 | K122: -0.02 | L122: 0.0DN | M122: 9780
A123: 68029 | B123: BLR2 | C123: Unit_2 | D123: 2028 | E123: acid gas | F123: SO2 | G123: 2010-03-06T01:00:00 | H123: 0 | I123: -0.02 | J123: ppm @ 7% O2 | K123: -0.02 | L123: 0.0DN | M123: 9780
A124: 68029 | B124: BLR2 | C124: Unit_2 | D124: 2028 | E124: acid gas | F124: SO2 | G124: 2010-03-06T02:00:00 | H124: 0 | I124: -0.02 | J124: ppm @ 7% O2 | K124: -0.02 | L124: 0.0DN | M124: 9780
A125: 68029 | B125: BLR2 | C125: Unit_2 | D125: 2028 | E125: acid gas | F125: SO2 | G125: 2010-03-06T03:00:00 | H125: 0 | I125: -0.02 | J125: ppm @ 7% O2 | K125: -0.02 | L125: 0.0DN | M125: 9780
A126: 68029 | B126: BLR2 | C126: Unit_2 | D126: 2028 | E126: acid gas | F126: SO2 | G126: 2010-03-06T04:00:00 | H126: 0 | I126: -0.02 | J126: ppm @ 7% O2 | K126: -0.02 | L126: 0.0DN | M126: 9780
A127: 68029 | B127: BLR2 | C127: Unit_2 | D127: 2028 | E127: acid gas | F127: SO2 | G127: 2010-03-06T05:00:00 | H127: 0 | I127: -0.02 | J127: ppm @ 7% O2 | K127: -0.02 | L127: 0.0DN | M127: 9780
A128: 68029 | B128: BLR2 | C128: Unit_2 | D128: 2028 | E128: acid gas | F128: SO2 | G128: 2010-03-06T06:00:00 | H128: 0 | I128: -0.02 | J128: ppm @ 7% O2 | K128: -0.02 | L128: 0.0DN | M128: 9780
A129: 68029 | B129: BLR2 | C129: Unit_2 | D129: 2028 | E129: acid gas | F129: SO2 | G129: 2010-03-06T07:00:00 | H129: 0 | I129: -0.02 | J129: ppm @ 7% O2 | K129: -0.02 | L129: 0.0DN | M129: 9780
A130: 68029 | B130: =IF(D130=2027,"BLR1","BLR2") -> BLR2 | C130: =IF(D130=2027,"Unit_1","Unit_2") -> Unit_2 | D130: 2028 | E130: acid gas | F130: SO2 | G130: 2010-03-06T08:00:00 | H130: 0 | I130: -0.02 | J130: ppm @ 7% O2 | K130: -0.02 | L130: 0.0DN | M130: 9780
A131: 68029 | B131: BLR2 | C131: Unit_2 | D131: 2028 | E131: acid gas | F131: SO2 | G131: 2010-03-06T09:00:00 | H131: 0 | I131: -0.02 | J131: ppm @ 7% O2 | K131: -0.02 | L131: 0.0DN | M131: 9780
A132: 68029 | B132: BLR2 | C132: Unit_2 | D132: 2028 | E132: acid gas | F132: SO2 | G132: 2010-03-06T10:00:00 | H132: 0 | I132: -0.02 | J132: ppm @ 7% O2 | K132: -0.02 | L132: 0.0DN | M132: 9780
A133: 68029 | B133: BLR2 | C133: Unit_2 | D133: 2028 | E133: acid gas | F133: SO2 | G133: 2010-03-06T11:00:00 | H133: 0 | I133: -0.02 | J133: ppm @ 7% O2 | K133: -0.02 | L133: 0.0DN | M133: 9780
A134: 68029 | B134: BLR2 | C134: Unit_2 | D134: 2028 | E134: acid gas | F134: SO2 | G134: 2010-03-06T12:00:00 | H134: 0 | I134: -0.02 | J134: ppm @ 7% O2 | K134: -0.02 | L134: 0.0DN | M134: 9780
A135: 68029 | B135: BLR2 | C135: Unit_2 | D135: 2028 | E135: acid gas | F135: SO2 | G135: 2010-03-06T13:00:00 | H135: 0 | I135: -0.02 | J135: ppm @ 7% O2 | K135: -0.02 | L135: 0.0DN | M135: 9780
A136: 68029 | B136: BLR2 | C136: Unit_2 | D136: 2028 | E136: acid gas | F136: SO2 | G136: 2010-03-06T14:00:00 | H136: 0 | I136: -0.02 | J136: ppm @ 7% O2 | K136: -0.02 | L136: 0.0DN | M136: 9780
A137: 68029 | B137: BLR2 | C137: Unit_2 | D137: 2028 | E137: acid gas | F137: SO2 | G137: 2010-03-06T15:00:00 | H137: 0 | I137: -0.02 | J137: ppm @ 7% O2 | K137: -0.02 | L137: 0.0DN | M137: 9780
A138: 68029 | B138: BLR2 | C138: Unit_2 | D138: 2028 | E138: acid gas | F138: SO2 | G138: 2010-03-06T16:00:00 | H138: 0 | I138: -0.02 | J138: ppm @ 7% O2 | K138: -0.02 | L138: 0.0DN | M138: 9780
A139: 68029 | B139: BLR2 | C139: Unit_2 | D139: 2028 | E139: acid gas | F139: SO2 | G139: 2010-03-06T17:00:00 | H139: 0 | I139: -0.02 | J139: ppm @ 7% O2 | K139: -0.02 | L139: 0.0DN | M139: 9780
A140: 68029 | B140: BLR2 | C140: Unit_2 | D140: 2028 | E140: acid gas | F140: SO2 | G140: 2010-03-06T18:00:00 | H140: 0 | I140: -0.02 | J140: ppm @ 7% O2 | K140: -0.02 | L140: 0.0DN | M140: 9780
A141: 68029 | B141: BLR2 | C141: Unit_2 | D141: 2028 | E141: acid gas | F141: SO2 | G141: 2010-03-06T19:00:00 | H141: 0 | I141: -0.02 | J141: ppm @ 7% O2 | K141: -0.02 | L141: 0.0DN | M141: 9780
A142: 68029 | B142: BLR2 | C142: Unit_2 | D142: 2028 | E142: acid gas | F142: SO2 | G142: 2010-03-06T20:00:00 | H142: 0 | I142: -0.02 | J142: ppm @ 7% O2 | K142: -0.02 | L142: 0.0DN | M142: 9780
A143: 68029 | B143: BLR2 | C143: Unit_2 | D143: 2028 | E143: acid gas | F143: SO2 | G143: 2010-03-06T21:00:00 | H143: 0 | I143: -0.02 | J143: ppm @ 7% O2 | K143: -0.02 | L143: 0.0DN | M143: 9780
A144: 68029 | B144: BLR2 | C144: Unit_2 | D144: 2028 | E144: acid gas | F144: SO2 | G144: 2010-03-06T22:00:00 | H144: 0 | I144: -0.02 | J144: ppm @ 7% O2 | K144: -0.02 | L144: 0.0DN | M144: 9780
A145: 68029 | B145: BLR2 | C145: Unit_2 | D145: 2028 | E145: acid gas | F145: SO2 | G145: 2010-03-06T23:00:00 | H145: 0 | I145: -0.02 | J145: ppm @ 7% O2 | K145: -0.02 | L145: 0.0DN | M145: 9780
A146: 68029 | B146: BLR2 | C146: Unit_2 | D146: 2028 | E146: acid gas | F146: SO2 | G146: 2010-03-07 | H146: 0 | I146: 0.04 | J146: ppm @ 7% O2 | K146: 0.04 | L146: 19.9 | M146: 9780
A147: 68029 | B147: BLR2 | C147: Unit_2 | D147: 2028 | E147: acid gas | F147: SO2 | G147: 2010-03-07T01:00:00 | H147: 0 | I147: 0.37 | J147: ppm @ 7% O2 | K147: 0.37 | L147: 19.5 | M147: 9780
A148: 68029 | B148: BLR2 | C148: Unit_2 | D148: 2028 | E148: acid gas | F148: SO2 | G148: 2010-03-07T02:00:00 | H148: 0.009 | I148: 2.6 | J148: ppm @ 7% O2 | K148: 2.6 | L148: 19.5 | M148: 9780
A149: 68029 | B149: BLR2 | C149: Unit_2 | D149: 2028 | E149: acid gas | F149: SO2 | G149: 2010-03-07T03:00:00 | H149: 0.05 | I149: 8.02 | J149: ppm @ 7% O2 | K149: 8.02 | L149: 18.3 | M149: 9780
A150: 68029 | B150: BLR2 | C150: Unit_2 | D150: 2028 | E150: acid gas | F150: SO2 | G150: 2010-03-07T04:00:00 | H150: 0.03 | I150: 13.83 | J150: ppm @ 7% O2 | K150: 13.83 | L150: 18.3 | M150: 9780
A151: 68029 | B151: BLR2 | C151: Unit_2 | D151: 2028 | E151: acid gas | F151: SO2 | G151: 2010-03-07T05:00:00 | H151: 0.041 | I151: 16.57 | J151: ppm @ 7% O2 | K151: 16.57 | L151: 18.8 | M151: 9780
A152: 68029 | B152: BLR2 | C152: Unit_2 | D152: 2028 | E152: acid gas | F152: SO2 | G152: 2010-03-07T06:00:00 | H152: 0.05 | I152: 17.77 | J152: ppm @ 7% O2 | K152: 17.77 | L152: 18 | M152: 9780
A153: 68029 | B153: BLR2 | C153: Unit_2 | D153: 2028 | E153: acid gas | F153: SO2 | G153: 2010-03-07T07:00:00 | H153: 0.05 | I153: 18.3 | J153: ppm @ 7% O2 | K153: 18.3 | L153: 17.7 | M153: 9780
A154: 68029 | B154: BLR2 | C154: Unit_2 | D154: 2028 | E154: acid gas | F154: SO2 | G154: 2010-03-07T08:00:00 | H154: 0.046 | I154: 19.97 | J154: ppm @ 7% O2 | K154: 19.97 | L154: 17.5 | M154: 9780
A155: 68029 | B155: BLR2 | C155: Unit_2 | D155: 2028 | E155: acid gas | F155: SO2 | G155: 2010-03-07T09:00:00 | H155: 0.024 | I155: 18.5 | J155: ppm @ 7% O2 | K155: 18.5 | L155: 13.9 | M155: 9780
A156: 68029 | B156: BLR2 | C156: Unit_2 | D156: 2028 | E156: acid gas | F156: SO2 | G156: 2010-03-07T10:00:00 | H156: 0.033 | I156: 16.31 | J156: ppm @ 7% O2 | K156: 16.31 | L156: 0 | M156: 9780
A157: 68029 | B157: BLR2 | C157: Unit_2 | D157: 2028 | E157: acid gas | F157: SO2 | G157: 2010-03-07T11:00:00 | H157: 0.05 | I157: 15.85 | J157: ppm @ 7% O2 | K157: 15.85 | L157: 0 | M157: 9780
A158: 68029 | B158: BLR2 | C158: Unit_2 | D158: 2028 | E158: acid gas | F158: SO2 | G158: 2010-03-07T12:00:00 | H158: 0.05 | I158: 17.29 | J158: ppm @ 7% O2 | K158: 17.29 | L158: 0 | M158: 9780
A159: 68029 | B159: BLR2 | C159: Unit_2 | D159: 2028 | E159: acid gas | F159: SO2 | G159: 2010-03-07T13:00:00 | H159: 0.028 | I159: 18.66 | J159: ppm @ 7% O2 | K159: 18.66 | L159: 12.3 | M159: 9780
A160: 68029 | B160: BLR2 | C160: Unit_2 | D160: 2028 | E160: acid gas | F160: SO2 | G160: 2010-03-07T14:00:00 | H160: 0.007 | I160: 14.17 | J160: ppm @ 7% O2 | K160: 14.17 | L160: 13.2 | M160: 9780
A161: 68029 | B161: BLR2 | C161: Unit_2 | D161: 2028 | E161: acid gas | F161: SO2 | G161: 2010-03-07T15:00:00 | H161: 0.005 | I161: 8.34 | J161: ppm @ 7% O2 | K161: 8.34 | L161: 12.7 | M161: 9780
A162: 68029 | B162: BLR2 | C162: Unit_2 | D162: 2028 | E162: acid gas | F162: SO2 | G162: 2010-03-07T16:00:00 | H162: 0.008 | I162: 3.36 | J162: ppm @ 7% O2 | K162: 3.36 | L162: 12.4 | M162: 9780
A163: 68029 | B163: BLR2 | C163: Unit_2 | D163: 2028 | E163: acid gas | F163: SO2 | G163: 2010-03-07T17:00:00 | H163: 0.015 | I163: 3.13 | J163: ppm @ 7% O2 | K163: 3.13 | L163: 11.6 | M163: 9780
A164: 68029 | B164: BLR2 | C164: Unit_2 | D164: 2028 | E164: acid gas | F164: SO2 | G164: 2010-03-07T18:00:00 | H164: 0.01 | I164: 4.26 | J164: ppm @ 7% O2 | K164: 4.26 | L164: 10.9 | M164: 9780
A165: 68029 | B165: BLR2 | C165: Unit_2 | D165: 2028 | E165: acid gas | F165: SO2 | G165: 2010-03-07T19:00:00 | H165: 0.016 | I165: 5.14 | J165: ppm @ 7% O2 | K165: 5.14 | L165: 11.1 | M165: 9780
A166: 68029 | B166: BLR2 | C166: Unit_2 | D166: 2028 | E166: acid gas | F166: SO2 | G166: 2010-03-07T20:00:00 | H166: 0.022 | I166: 6.54 | J166: ppm @ 7% O2 | K166: 6.54 | L166: 11 | M166: 9780
A167: 68029 | B167: BLR2 | C167: Unit_2 | D167: 2028 | E167: acid gas | F167: SO2 | G167: 2010-03-07T21:00:00 | H167: 0.006 | I167: 6.36 | J167: ppm @ 7% O2 | K167: 6.36 | L167: 10.7 | M167: 9780
A168: 68029 | B168: BLR2 | C168: Unit_2 | D168: 2028 | E168: acid gas | F168: SO2 | G168: 2010-03-07T22:00:00 | H168: 0.002 | I168: 5.02 | J168: ppm @ 7% O2 | K168: 5.02 | L168: 10.7 | M168: 9780
A169: 68029 | B169: BLR2 | C169: Unit_2 | D169: 2028 | E169: acid gas | F169: SO2 | G169: 2010-03-07T23:00:00 | H169: 0.006 | I169: 2.72 | J169: ppm @ 7% O2 | K169: 2.72 | L169: 9.9 | M169: 9780
A170: 68029 | B170: BLR2 | C170: Unit_2 | D170: 2028 | E170: acid gas | F170: SO2 | G170: 2010-03-08 | H170: 0.014 | I170: 2.31 | J170: ppm @ 7% O2 | K170: 2.31 | L170: 9.2 | M170: 9780
A171: 68029 | B171: BLR2 | C171: Unit_2 | D171: 2028 | E171: acid gas | F171: SO2 | G171: 2010-03-08T01:00:00 | H171: 0.006 | I171: 3.31 | J171: ppm @ 7% O2 | K171: 3.31 | L171: 8.7 | M171: 9780
A172: 68029 | B172: BLR2 | C172: Unit_2 | D172: 2028 | E172: acid gas | F172: SO2 | G172: 2010-03-08T02:00:00 | H172: 0.011 | I172: 3.95 | J172: ppm @ 7% O2 | K172: 3.95 | L172: 8.8 | M172: 9780
A173: 68029 | B173: BLR2 | C173: Unit_2 | D173: 2028 | E173: acid gas | F173: SO2 | G173: 2010-03-08T03:00:00 | H173: 0.015 | I173: 4.21 | J173: ppm @ 7% O2 | K173: 4.21 | L173: 8.8 | M173: 9780
A174: 68029 | B174: BLR2 | C174: Unit_2 | D174: 2028 | E174: acid gas | F174: SO2 | G174: 2010-03-08T04:00:00 | H174: 0.01 | I174: 4.8 | J174: ppm @ 7% O2 | K174: 4.8 | L174: 8.6 | M174: 9780
A175: 68029 | B175: BLR2 | C175: Unit_2 | D175: 2028 | E175: acid gas | F175: SO2 | G175: 2010-03-08T05:00:00 | H175: 0.003 | I175: 4.39 | J175: ppm @ 7% O2 | K175: 4.39 | L175: 8.5 | M175: 9780
A176: 68029 | B176: BLR2 | C176: Unit_2 | D176: 2028 | E176: acid gas | F176: SO2 | G176: 2010-03-08T06:00:00 | H176: 0.005 | I176: 3.09 | J176: ppm @ 7% O2 | K176: 3.09 | L176: 8.5 | M176: 9780
A177: 68029 | B177: BLR2 | C177: Unit_2 | D177: 2028 | E177: acid gas | F177: SO2 | G177: 2010-03-08T07:00:00 | H177: 0.029 | I177: 3.86 | J177: ppm @ 7% O2 | K177: 3.86 | L177: 8.6 | M177: 9780
A178: 68029 | B178: BLR2 | C178: Unit_2 | D178: 2028 | E178: acid gas | F178: SO2 | G178: 2010-03-08T08:00:00 | H178: 0.008 | I178: 5.59 | J178: ppm @ 7% O2 | K178: 5.59 | L178: 8.5 | M178: 9780
A179: 68029 | B179: BLR2 | C179: Unit_2 | D179: 2028 | E179: acid gas | F179: SO2 | G179: 2010-03-08T09:00:00 | H179: 0.001 | I179: 5.58 | J179: ppm @ 7% O2 | K179: 5.58 | L179: 8.4 | M179: 9780
A180: 68029 | B180: BLR2 | C180: Unit_2 | D180: 2028 | E180: acid gas | F180: SO2 | G180: 2010-03-08T10:00:00 | H180: 0.002 | I180: 3.05 | J180: ppm @ 7% O2 | K180: 3.05 | L180: 8.3 | M180: 9780
A181: 68029 | B181: BLR2 | C181: Unit_2 | D181: 2028 | E181: acid gas | F181: SO2 | G181: 2010-03-08T11:00:00 | H181: 0.001 | I181: 0.79 | J181: ppm @ 7% O2 | K181: 0.79 | L181: 8.5 | M181: 9780
A182: 68029 | B182: BLR2 | C182: Unit_2 | D182: 2028 | E182: acid gas | F182: SO2 | G182: 2010-03-08T12:00:00 | H182: 0.001 | I182: 0.64 | J182: ppm @ 7% O2 | K182: 0.64 | L182: 8.9 | M182: 9780
A183: 68029 | B183: BLR2 | C183: Unit_2 | D183: 2028 | E183: acid gas | F183: SO2 | G183: 2010-03-08T13:00:00 | H183: 0.002 | I183: 0.53 | J183: ppm @ 7% O2 | K183: 0.53 | L183: 8.7 | M183: 9780
A184: 68029 | B184: BLR2 | C184: Unit_2 | D184: 2028 | E184: acid gas | F184: SO2 | G184: 2010-03-08T14:00:00 | H184: 0.002 | I184: 0.59 | J184: ppm @ 7% O2 | K184: 0.59 | L184: 8.7 | M184: 9780
A185: 68029 | B185: BLR2 | C185: Unit_2 | D185: 2028 | E185: acid gas | F185: SO2 | G185: 2010-03-08T15:00:00 | H185: 0.012 | I185: 1.61 | J185: ppm @ 7% O2 | K185: 1.61 | L185: 8.8 | M185: 9780
A186: 68029 | B186: BLR2 | C186: Unit_2 | D186: 2028 | E186: acid gas | F186: SO2 | G186: 2010-03-08T16:00:00 | H186: 0.032 | I186: 3.58 | J186: ppm @ 7% O2 | K186: 3.58 | L186: 8.8 | M186: 9780
A187: 68029 | B187: BLR2 | C187: Unit_2 | D187: 2028 | E187: acid gas | F187: SO2 | G187: 2010-03-08T17:00:00 | H187: 0.005 | I187: 6.8 | J187: ppm @ 7% O2 | K187: 6.8 | L187: 8.7 | M187: 9780
A188: 68029 | B188: BLR2 | C188: Unit_2 | D188: 2028 | E188: acid gas | F188: SO2 | G188: 2010-03-08T18:00:00 | H188: 0.001 | I188: 5.78 | J188: ppm @ 7% O2 | K188: 5.78 | L188: 8.6 | M188: 9780
A189: 68029 | B189: BLR2 | C189: Unit_2 | D189: 2028 | E189: acid gas | F189: SO2 | G189: 2010-03-08T19:00:00 | H189: 0.001 | I189: 3.74 | J189: ppm @ 7% O2 | K189: 3.74 | L189: 8.9 | M189: 9780
A190: 68029 | B190: BLR2 | C190: Unit_2 | D190: 2028 | E190: acid gas | F190: SO2 | G190: 2010-03-08T20:00:00 | H190: 0.001 | I190: 0.48 | J190: ppm @ 7% O2 | K190: 0.48 | L190: 8.9 | M190: 9780
A191: 68029 | B191: BLR2 | C191: Unit_2 | D191: 2028 | E191: acid gas | F191: SO2 | G191: 2010-03-08T21:00:00 | H191: 0.012 | I191: 1.38 | J191: ppm @ 7% O2 | K191: 1.38 | L191: 9.1 | M191: 9780
A192: 68029 | B192: BLR2 | C192: Unit_2 | D192: 2028 | E192: acid gas | F192: SO2 | G192: 2010-03-08T22:00:00 | H192: 0.001 | I192: 1.97 | J192: ppm @ 7% O2 | K192: 1.97 | L192: 12 | M192: 9780
A193: 68029 | B193: BLR2 | C193: Unit_2 | D193: 2028 | E193: acid gas | F193: SO2 | G193: 2010-03-08T23:00:00 | H193: 0 | I193: 1.84 | J193: ppm @ 7% O2 | K193: 1.84 | L193: 17.4 | M193: 9780
A194: 68029 | B194: =IF(D194=2027,"BLR1","BLR2") -> BLR2 | C194: =IF(D194=2027,"Unit_1","Unit_2") -> Unit_2 | D194: 2028 | E194: acid gas | F194: SO2 | G194: 2010-03-09 | H194: 0 | I194: 0.76 | J194: ppm @ 7% O2 | K194: 0.76 | L194: 0.0DN | M194: 9780
A195: 68029 | B195: BLR2 | C195: Unit_2 | D195: 2028 | E195: acid gas | F195: SO2 | G195: 2010-03-09T01:00:00 | H195: 0 | I195: 0.02 | J195: ppm @ 7% O2 | K195: 0.02 | L195: 0.0DN | M195: 9780
A196: 68029 | B196: BLR2 | C196: Unit_2 | D196: 2028 | E196: acid gas | F196: SO2 | G196: 2010-03-09T02:00:00 | H196: 0 | I196: -0.02 | J196: ppm @ 7% O2 | K196: -0.02 | L196: 0.0DN | M196: 9780
A197: 68029 | B197: BLR2 | C197: Unit_2 | D197: 2028 | E197: acid gas | F197: SO2 | G197: 2010-03-09T03:00:00 | H197: 0 | I197: -0.02 | J197: ppm @ 7% O2 | K197: -0.02 | L197: 0.0DN | M197: 9780
A198: 68029 | B198: BLR2 | C198: Unit_2 | D198: 2028 | E198: acid gas | F198: SO2 | G198: 2010-03-09T04:00:00 | H198: 0 | I198: -0.02 | J198: ppm @ 7% O2 | K198: -0.02 | L198: 0.0DN | M198: 9780
A199: 68029 | B199: BLR2 | C199: Unit_2 | D199: 2028 | E199: acid gas | F199: SO2 | G199: 2010-03-09T05:00:00 | H199: 0 | I199: -0.02 | J199: ppm @ 7% O2 | K199: -0.02 | L199: 0.0DN | M199: 9780
A200: 68029 | B200: BLR2 | C200: Unit_2 | D200: 2028 | E200: acid gas | F200: SO2 | G200: 2010-03-09T06:00:00 | H200: 0 | I200: -0.02 | J200: ppm @ 7% O2 | K200: -0.02 | L200: 0.0DN | M200: 9780
... 1242 more rows

Sheet sampling_runs
A1: facility_id | B1: report_id | C1: sampling_port_id | D1: run_id | E1: pollutant_name | F1: conc | G1: conc_units | H1: start_datetime | I1: end_datetime | J1: unit_load | K1: net_generation | L1: fg_moisture_content | M1: fg_flow_rate | N1: fg_flow_rate_units | O1: standard_temperature | P1: standard_pressure | Q1: normal_temperature | R1: normal_pressure | S1: fg_oxygen_content | T1: fg_CO2_content | U1: fg_temperature | V1: fg_pressure | W1: Hg_loi | X1: test_method | Y1: run_comments | Z1: fuel_id | AA1: fuel_unit_load | AB1: fuel_flow_rate | AC1: fuel_ash | AD1: fuel_heating_value | AE1: fuel_sulfur | AF1: O2 Based Calc | AG1: CO2 Based Calc
A2: 2824 | B2: 2006 RATA A | C2: bag10 | D2: average | E2: Sulfur Dioxide (SO2) | F2: 21 | G2: parts per million by volume (dry) (ppmvd) | H2: 2006-01-12 | I2: 2006-01-12 | J2: 55 | K2: 55 | L2: 15.8 | M2: 157400 | N2: dscfm | O2: 210 | S2: 6.3 | T2: 13.3 | U2: 210 | X2: 6C | Z2: subbituminous | AA2: 55 | AC2: 4.6 | AD2: 9742 | AE2: 0.32 | AF2: =F2*0.000000166*9820*20.9/(20.9-S2) -> 0.04900408685 | AG2: =F2*0.000000166*1840*100/T2 -> 0.04822736842 | AH2: =AG2/AF2 -> 0.9841499255
A3: 2824 | B3: 2006 RATA B | C3: bag10 | D3: average | E3: Sulfur Dioxide (SO2) | F3: 3.3 | G3: parts per million by volume (dry) (ppmvd) | H3: 2006-08-17 | I3: 2006-08-17 | J3: 56 | K3: 56 | L3: 15.75 | M3: 157787 | N3: dscfm | O3: 204 | S3: 6.29 | T3: 13.32 | U3: 204 | X3: 6C 7E | Z3: subbituminous | AA3: 56 | AC3: 4.63 | AD3: 9344 | AE3: 0.32 | AF3: =F3*0.000000166*9820*20.9/(20.9-S3) -> 0.007695371417 | AG3: 0.007567207207 | AH3: =AG3/AF3 -> 0.9833452861
A4: 2824 | B4: RATA 2005 | C4: bag10 | D4: average | E4: Sulfur Dioxide (SO2) | F4: 26.6 | G4: parts per million by volume (dry) (ppmvd) | H4: 2005-09-22 | I4: 2005-09-22 | J4: 62 | K4: 62 | L4: 15.75 | M4: 157387 | N4: dscfm | O4: 218 | S4: 15.75 | T4: 13.32 | U4: 218 | X4: Method 6C 7E | Z4: subbituminous | AA4: 60 | AC4: 5.31 | AD4: 9304 | AE4: 0.32 | AF4: 0.1759706627 | AG4: 0.06099627628 | AH4: 0.3466275307
A5: 2824 | B5: RATA 2007 | C5: bag10 | D5: average | E5: Sulfur Dioxide (SO2) | F5: 17 | G5: parts per million by volume (dry) (ppmvd) | H5: 2007-07-11 | I5: 2007-07-11 | J5: 54 | K5: 54 | L5: 15.75 | M5: 157387 | N5: dscfm | O5: 206 | S5: 6.29 | T5: 13.32 | U5: 206 | X5: Methods 6C and 7E | Z5: subbituminous | AA5: 54 | AC5: 4.58 | AD5: 9352 | AE5: 0.33 | AF5: 0.03964282245 | AG5: 0.03898258258 | AH5: 0.9833452861
A6: 2824 | B6: RATA 2008 | C6: bag10 | D6: average | E6: Sulfur Dioxide (SO2) | F6: 20 | G6: parts per million by volume (dry) (ppmvd) | H6: 2008-08-13 | I6: 2008-08-13 | J6: 58 | K6: 58 | L6: 15.75 | M6: 157387 | N6: dscfm | O6: 205 | S6: 6.29 | T6: 13.32 | U6: 205 | X6: Methods 6C and 7E | Z6: subbituminous | AA6: 58 | AC6: 4.77 | AD6: 9308 | AE6: 0.36 | AF6: 0.04663861465 | AG6: 0.04586186186 | AH6: 0.9833452861
A7: 2824 | B7: RATA 2009 | C7: bag10 | D7: average | E7: Sulfur Dioxide (SO2) | F7: 27 | G7: parts per million by volume (dry) (ppmvd) | H7: 2009-07-29 | I7: 2009-07-29 | J7: 56 | K7: 56 | L7: 9.2 | M7: 204358 | N7: dscfm | O7: 201 | S7: 7.3 | T7: 12.39 | U7: 201 | X7: Methods 6C and 7E | Z7: subbituminous | AA7: 56 | AC7: 4.6 | AD7: 9380 | AE7: 0.35 | AF7: 0.06763799382 | AG7: 0.06656077482 | AH7: 0.9840737588

Sheet sampling_run_pollutants1
A1: facility_id | B1: report_id | C1: sampling_port_id | D1: run_id | E1: pollutant_name | F1: conc | G1: conc_units | H1: conc_ND | I1: conc_MDL | J1: emission_rate | K1: emission_rate_units | L1: emission_rate_ND | M1: emission_rate_MDL | N1: emission_factor | O1: emission_factor_units | P1: emission_factor_ND | Q1: emission_factor_MDL | R1: run_pollutant_comment
A2: 2824 | B2: 2006 RATA A | C2: bag10 | D2: average | E2: Sulfur Dioxide (SO2) | F2: 21 | G2: parts per million by volume (dry) (ppmvd) | H2: FALSE | L2: FALSE | P2: FALSE
A3: 2824 | B3: 2006 RATA B | C3: bag10 | D3: average | E3: Sulfur Dioxide (SO2) | F3: 3.3 | G3: parts per million by volume (dry) (ppmvd) | H3: FALSE | L3: FALSE | P3: FALSE
A4: 2824 | B4: RATA 2005 | C4: bag10 | D4: average | E4: Sulfur Dioxide (SO2) | F4: 26.6 | G4: parts per million by volume (dry) (ppmvd) | H4: FALSE | L4: FALSE | P4: FALSE
A5: 2824 | B5: RATA 2007 | C5: bag10 | D5: average | E5: Sulfur Dioxide (SO2) | F5: 17 | G5: parts per million by volume (dry) (ppmvd) | H5: FALSE | L5: FALSE | P5: FALSE
A6: 2824 | B6: RATA 2008 | C6: bag10 | D6: average | E6: Sulfur Dioxide (SO2) | F6: 20 | G6: parts per million by volume (dry) (ppmvd) | H6: FALSE | L6: FALSE | P6: FALSE
A7: 2824 | B7: RATA 2009 | C7: bag10 | D7: average | E7: Sulfur Dioxide (SO2) | F7: 27 | G7: parts per million by volume (dry) (ppmvd) | H7: FALSE | L7: FALSE | P7: FALSE

Sheet UPL Normal
A1: Emissions (lb/MW) | B1: SO2
B2: 52071
A3: ORIS/Facility/Unit | B3: Sandow
A4: Runs | B4: 5A
A5: 1 | B5: 0.02537429657
A6: 2 | B6: 0.06290065522
A7: 3 | B7: 0.09435098282
A8: 4 | B8: 0.09675292478
A9: 5 | B9: 0.2287114243
A10: 6 | B10: 0.6499734372
A11: 7
A12: 8
A13: 9
A14: 10
A15: 11
A16: 12
A17: 13
A18: 14
A19: 15
A20: 16
A21: 17
A22: 18
A23: 19
A24: 20
A25: 21
A26: 22
A27: 23
A28: 24
A29: 25
A30: 26
A31: 27
A32: 28
A33: 29
A34: 30
A35: 31
A36: 32
A37: 33
A38: 34
A39: 35
A41: ni = number test Runs = | B41: =COUNT(B5:B39) -> 6
A45: Total Number of sources = | C45: =COUNTA(B2:Q2) -> 1
A48: n =Total # test Runs = | C48: =SUM(B41:B41) -> 6
C53: =C48-1 -> 5
A58: This step is for QC only:
A60: means | B60: =AVERAGE(B5:B39) -> 0.1930106202
C67: =AVERAGE(B5:B39) -> 0.1930106202
A68: UPL Mean =
A72: Pooled Variance = | C72: =VAR(B5:H39) -> 0.0548238743
A78: m= number future Runs = | C78: 3
A81: Term1 | C81: =1/C48+1/C78 -> 0.5
A85: Term2 | C85: =C72*C81 -> 0.02741193715
A91: Squared root Term2 | C91: =SQRT(C85) -> 0.1655655071
A94: NOTE: the pvalue for the t-statistic is calculated as: 2*alpha, where 1-alpha is desired confidence, so if 99% confidence is desired then alpha=0.01 and 2*alpha=2*(0.01)
A97: t-statistic | B97: = quantile t-distribution with df degrees of freedom at .99 confidence level = | C97: =TINV(2*0.01,C53) -> 3.364929999
A100: UPL POOLED VARIANCE = | C100: =C67+C97*C91 -> 0.7501269619 | D100: =IFERROR(IF(FIND("MM",A$1,1)>0,"lb/MMBtu","lb/MW"),"lb/MW") -> lb/MW | E100: =C100*1000 -> 750.1269619 | F100: lb/GWhr
B105: Normal UPL | C105: ='UPL Pooled Template '!F107 -> 0.7501269619
B106: Lognormal UPL | C106: ='Lognormal Template'!D165 -> 1.008975932 | D106: =IFERROR(IF(FIND("MM",A$1,1)>0,"lb/MMBtu","lb/MW"),"lb/MW") -> lb/MW
B108: Final UPL | C108: =C106 -> 1.008975932 | D108: lb/MW

Sheet UPL Pooled Template
A1: ='UPL Normal'!B1 -> SO2 | B1: Emissions (lb/MW)
A2: Runs | B2: 52071 Sandow 5A
A3: 1 | B3: 0.02537429657
A4: 2 | B4: 0.06290065522
A5: 3 | B5: 0.09435098282
A6: 4 | B6: 0.09675292478
A7: 5 | B7: 0.2287114243
A8: 6 | B8: 0.6499734372
A9: 7
A10: 8
A11: 9
A12: 10
A13: 11
A14: 12
A15: 13
A16: 14
A17: 15
A18: 16
A19: 17
A20: 18
A21: 19
A22: 20
A23: 21
A24: 22
A25: 23
A26: 24
A27: 25
A28: 26
A29: 27
A30: 28
A31: 29
A32: 30
A33: 31
A34: 32
A35: 33
A36: 34
A37: 35
A38: Use for large sample sets and small sample sets that are Normal.
A40: Testing Normality | B40: Raw Data
A41: Sample Size | B41: =COUNT(B3:L37) -> 6
A42: Kurtosis | B42: =KURT(B3:L37) -> 4.198150703
A43: SE Kurtosis | B43: =SQRT((B41^2-1)/((B41-3)*(B41+5))) -> 1.029857301
A44: Result Kurtosis | B44: =IF(ABS(B42/B43)>NORMSINV(1-0.05/2),"non normal","normal") -> non normal
A45: Skewness | B45: =SKEW(B3:L37) -> 2.026228033
A46: SE Skewness | B46: =SQRT((6*B41*(B41-1))/((B41-2)*(B41+1)*(B41+3))) -> 0.8451542547
A47: Result Skewness | B47: =IF(ABS(B45/B46)>NORMSINV(1-0.05/2),"non normal","normal") -> non normal
A50: ni = number test Runs = | B50: =COUNT(B3:B37) -> 6 | C50: 0 | D50: 0 | E50: 0 | F50: 0 | G50: 0 | H50: 0 | I50: 0 | J50: 0 | K50: 0 | L50: 0
A52: Total Number of sources = | B52: =COUNTA(B2:L2) -> 1
A55: n =Total # test Runs = | B55: =SUM(B50:L50) -> 6
B60: =B55-1 -> 5
A65: This step is for QC only:
A67: means | B67: =AVERAGE(B3:B37) -> 0.1930106202
B74: =AVERAGE(B3:L37) -> 0.1930106202
A75: Mean =
A79: Pooled Variance = | D79: =VAR(B3:L37) -> 0.0548238743
A85: m= number future Runs = | B85: ='UPL Normal'!C78 -> 3
A88: Term1 | B88: =1/B55+1/B85 -> 0.5
A92: Term2 | B92: =D79*B88 -> 0.02741193715
A98: Squared root Term2 | C98: =SQRT(B92) -> 0.1655655071
A101: NOTE: the pvalue for the t-statistic is calculated as: 2*alpha, where 1-alpha is desired confidence, so if 99% confidence is desired then alpha=0.01 and 2*alpha=2*(0.01)
A104: t-statistic | B104: = quantile t-distribution with df degrees of freedom at .99 confidence level = | H104: =TINV(2*0.01,B60) -> 3.364929999
A107: UPL POOLED VARIANCE = | F107: =B74+H104*C98 -> 0.7501269619
